Workbook

Sheet Contents
A1: .
H4: Gas Distribution Regulatory Information Notice
H5: Regulatory templates
H7: =CONCATENATE("For ",dms_TradingName) -> For ActewAGL Distribution
H8: for access arrangement period
H9: =CONCATENATE(FRCP_y1," to ",FRCP_y5) -> 2016-17 to 2020-21
H10: Table of Contents

Sheet Instructions
D7: INSTRUCTIONS
D9: The pro formas in this spreadsheet must be filled out as part of an access arrangement proposal
D10: Please follow the instructions below when completing the pro formas in this spreadsheet:
D11: 1 | E11: Complete the Business Details pro forma first.
D12: 2 | E12: Only input data into the yellow input cells.
D13: 3 | E13: Check all pre-entered formulas to ensure they are operating correctly and as intended.
D14: 4 | E14: Ensure all links within each worksheet and between worksheets are correct.
D15: 5 | E15: As stated in the notice, further information must be provided in the accompanying proposal.
D16: 6 | E16: The service provider is encouraged to add extra rows in a regulatory template if it considers that this is necessary to fully complete the regulatory template in question.

Sheet Business & other details
B1: =(LOOKUP(dms_Model,J15:J22,K15:K22)) -> REGULATORY REPORTING STATEMENT | J1: Data is in this column used for data validation and database purposes.
B2: =dms_TradingName -> ActewAGL Distribution
B3: =CONCATENATE(FRCP_y1," to ",FRCP_y5) -> 2016-17 to 2020-21 | C3: =CONCATENATE(LEFT(FRCP_y1,4),"-",LEFT(FRCP_y5,2),RIGHT(FRCP_y5,2)) -> 2016-2021
B4: BUSINESS & OTHER DETAILS
B7: Instructions
B8: Complete the following business details regulatory template before entering data or values in any other regulatory template. This regulatory template is linked to other cells within the spreadsheet and automatically generates column headings.
B10: SUBMISSION PARTICULARS INPUT SHEETS
B12: Entity details
B14: Trading name | C14: ActewAGL Distribution
B15: ACN / ABN | C15: =INDEX(dms_ABN_List,MATCH(dms_TradingName,dms_TradingName_List)) -> 76670568688 | J15: CA | K15: CATEGORY ANALYSIS
J16: CAM/Service change Backcast | K16: REGULATORY REPORTING STATEMENT
J17: CPI | K17: CPI
B18: Business address | C18: Address 1 | E18: ActewAGL House | J18: EB | K18: ECONOMIC BENCHMARKING
D19: Address 2 | E19: 40 Bunda St | J19: PTRM | K19: POST TAX REVENUE MODEL
C20: Suburb | E20: Canberra | J20: Reset | K20: REGULATORY REPORTING STATEMENT
D21: State | E21: ACT | G21: 2600 | J21: RFM | K21: ROLL FORWARD MODEL
J22: WACC | K22: WEIGHTED AVERAGE COST OF CAPITAL
B23: Postal address | C23: Address 1 | E23: GPO Box 366
D24: Address 2
C25: Suburb | E25: Canberra
D26: State | E26: ACT | F26: p/code | G26: 2601
J27: ActewAGL Distribution | K27: 76670568688
J28: Ausgrid | K28: 67505337385
B29: Contact name/s | C29: Philip Deamer | J29: AusNet (D) | K29: 91064651118
B30: Contact phone/s | C30: 02 6248 3438 | J30: AusNet (T) | K30: 78079798173
B31: Contact email address/s | C31: GasAAReview @actewagl.com.au | J31: Citipower | K31: 76064651056
J32: Electranet | K32: 41094482416
B33: Regulatory control period details | J33: Endeavour Energy | K33: 59253130878
J34: Energex | K34: 40078849055
B35: Forthcoming regulatory control period | C35: =CONCATENATE(IF(dms_RPT="Calendar",H38+1,(LEFT(H38,4)+1&"-"&IF(MID(H38,6,2)<"09","0"&RIGHT(H38,1)+1,RIGHT(H38,2)+1)))) -> 2016-17 | D35: =CONCATENATE(IF(dms_RPT="Calendar",C35+1,(LEFT(C35,4)+1&"-"&IF(MID(C35,6,2)<"09","0"&RIGHT(C35,1)+1,RIGHT(C35,2)+1)))) -> 2017-18 | E35: =CONCATENATE(IF(dms_RPT="Calendar",D35+1,(LEFT(D35,4)+1&"-"&IF(MID(D35,6,2)<"09","0"&RIGHT(D35,1)+1,RIGHT(D35,2)+1)))) -> 2018-19 | F35: =CONCATENATE(IF(dms_RPT="Calendar",E35+1,(LEFT(E35,4)+1&"-"&IF(MID(E35,6,2)<"09","0"&RIGHT(E35,1)+1,RIGHT(E35,2)+1)))) -> 2019-20 | G35: =CONCATENATE(IF(dms_RPT="Calendar",F35+1,(LEFT(F35,4)+1&"-"&IF(MID(F35,6,2)<"09","0"&RIGHT(F35,1)+1,RIGHT(F35,2)+1)))) -> 2020-21 | J35: Ergon Energy | K35: 50087646062
J36: Essential Energy | K36: 37428185226
J37: Jemena Electricity | K37: 82064651083
B38: Current regulatory control period | C38: 2010-11 | D38: =CONCATENATE(IF(dms_RPT="Calendar",C38+1,(LEFT(C38,4)+1&"-"&IF(MID(C38,6,2)<"09","0"&RIGHT(C38,1)+1,RIGHT(C38,2)+1)))) -> 2011-12 | E38: =CONCATENATE(IF(dms_RPT="Calendar",D38+1,(LEFT(D38,4)+1&"-"&IF(MID(D38,6,2)<"09","0"&RIGHT(D38,1)+1,RIGHT(D38,2)+1)))) -> 2012-13 | F38: =CONCATENATE(IF(dms_RPT="Calendar",E38+1,(LEFT(E38,4)+1&"-"&IF(MID(E38,6,2)<"09","0"&RIGHT(E38,1)+1,RIGHT(E38,2)+1)))) -> 2013-14 | G38: =CONCATENATE(IF(dms_RPT="Calendar",F38+1,(LEFT(F38,4)+1&"-"&IF(MID(F38,6,2)<"09","0"&RIGHT(F38,1)+1,RIGHT(F38,2)+1)))) -> 2014-15 | H38: =CONCATENATE(IF(dms_RPT="Calendar",G38+1,(LEFT(G38,4)+1&"-"&IF(MID(G38,6,2)<"09","0"&RIGHT(G38,1)+1,RIGHT(G38,2)+1)))) -> 2015-16 | J38: Powercor Australia | K38: 89064651109
J39: Powerlink | K39: 82078849233
J40: Qld,SA &ACT Gas Reset | K40: 22222222222
B41: Previous regulatory control period | C41: =CONCATENATE(IF(dms_RPT="Calendar",D41-1,(LEFT(D41,4)-1&"-"&IF(MID(D41,3,1)="0","0"&RIGHT(D41,2)-1,RIGHT(D41,2)-1)))) -> 2005-06 | D41: =CONCATENATE(IF(dms_RPT="Calendar",E41-1,(LEFT(E41,4)-1&"-"&IF(MID(E41,3,1)="0","0"&RIGHT(E41,2)-1,RIGHT(E41,2)-1)))) -> 2006-07 | E41: =CONCATENATE(IF(dms_RPT="Calendar",F41-1,(LEFT(F41,4)-1&"-"&IF(MID(F41,3,1)="0","0"&RIGHT(F41,2)-1,RIGHT(F41,2)-1)))) -> 2007-08 | F41: =CONCATENATE(IF(dms_RPT="Calendar",G41-1,(LEFT(G41,4)-1&"-"&IF(MID(G41,3,1)="0","0"&RIGHT(G41,2)-1,RIGHT(G41,2)-1)))) -> 2008-09 | G41: =CONCATENATE(IF(dms_RPT="Calendar",C38-1,(LEFT(C38,4)-1&"-"&IF(MID(C38,3,1)="0","0"&RIGHT(C38,2)-1,RIGHT(C38,2)-1)))) -> 2009-10 | J41: SA Power Networks | K41: 13332330749
J42: TasNetworks (D) | K42: 24167357299
J43: TasNetworks (T) | K43: 24167357299
B44: Sector | C44: Gas | J44: TransGrid | K44: 19622755774
B45: Segment | C45: Distribution | J45: United Energy | K45: 70064651029
B46: Source | C46: Regulatory proposal | J46: Victorian DNSP Backcasting | K46: 33333333666
B47: Regulatory Year Ending | C47: =CONCATENATE(LEFT(H38, 2) &IF(H38>"2009-10",,"") &RIGHT(H38,2)) -> 2016 | J47: Victorian DNSP Reset | K47: 33333333333
B48: Reporting Period Type | C48: Financial
B49: Model or RIN Type | C49: Reset
B50: Security Classification | C50: Confidential
B51: Data quality (actual, estimate, public, consolidated) | C51: Consolidated
B52: RIN response - version no. | C52: 1
B53: Amended RIN submission - amendment reason
B54: Template - version no. | C54: 1
B55: $ real (the last month before the FRCP_y1) | C55: =CONCATENATE(IF(dms_RPT="Financial","June ","December "),(IF(dms_RPT="Financial",LEFT(CRCP_y6,2),LEFT(CRCP_y6,2))&(RIGHT(CRCP_y6,2)))) -> June 2016
B56: Previous $ real - End Year 5 | C56: =CONCATENATE(IF(C48="Financial","June ","December "),(IF(C48="Financial",LEFT(G41,2),LEFT(H38,2))&(RIGHT(G41,2)))) -> June 2010
B57: Previous $ real - Beginning Year 1 | C57: =CONCATENATE(IF(C48="Financial","July ","January "),(LEFT(C41,4))) -> July 2005
B58: EBSS - First application of scheme in forthcoming period? | C58: No
B59: Form of control | C59: Revenue Cap

Sheet 1. CPI
C1: =SheetHeader -> REGULATORY REPORTING STATEMENT
C2: =dms_TradingName -> ActewAGL Distribution
C3: =CONCATENATE(FRCP_y1," to ",FRCP_y5) -> 2016-17 to 2020-21
C4: 1. CPI ESCALATION
C7: Instructions
C8: SERVICE PROVIDERS ARE NOT TO MAKE ANY CHANGES TO THIS TEMPLATE EXCEPT AS INDICATED
C10: Service providers should insert inflation forecasts (yellow cells)
C12: Table 1.1 provides CPI index figures used to calculate CPI escalators to be used in the RIN
C14: Tables 1.2 provide the CPI escalators for converting nominal values to real values.
C17: Table 1 - CPI ESCALATION
C18: Table 1.1 - CPI (historical/estimated)
D21: CPI Index | E21: ABS series ID A2325846C, 25/1/12 release | F21: ABS series ID A2325846C, 22/1/14 release | G21: Annual CPI
C22: Actual | D22: 1997-12-01 | E22: 120 | F22: 66.8
C23: Actual | D23: 1998-12-01 | E23: 121.9 | F23: 67.8 | G23: =E23/E22-1 -> 0.01583333333
C24: Actual | D24: 1999-12-01 | E24: 124.1 | F24: 69.1 | G24: 0.01804757998
C25: Actual | D25: 2000-12-01 | E25: 131.3 | F25: 73.1 | G25: 0.05801772764
C26: Actual | D26: 2001-12-01 | E26: 135.4 | F26: 75.4 | G26: 0.03122619954
C27: Actual | D27: 2002-12-01 | E27: 139.5 | F27: 77.6 | G27: 0.03028064993
C28: Actual | D28: 2003-12-01 | E28: 142.8 | F28: 79.5 | G28: 0.02365591398
C29: Actual | D29: 2004-12-01 | E29: 146.5 | F29: 81.5 | G29: 0.02591036415
C30: Actual | D30: 2005-12-01 | E30: 150.6 | F30: 83.8 | G30: 0.02798634812
C31: Actual | D31: 2006-12-01 | E31: 155.5 | F31: 86.6 | G31: 0.03253652058
C32: Actual | D32: 2007-12-01 | E32: 160.1 | F32: 89.1 | G32: 0.02958199357
C33: Actual | D33: 2008-12-01 | E33: 166 | F33: 92.4 | G33: 0.03685196752
C34: Actual | D34: 2009-12-01 | E34: 169.5 | F34: 94.3 | G34: 0.02108433735
C35: Actual | D35: 2010-12-01 | E35: 174 | F35: 96.9 | G35: =E35/E34-1 -> 0.02654867257
C36: Actual | D36: 2011-12-01 | E36: 179.4 | F36: 99.8 | G36: 0.03103448276
C37: Actual | D37: 2012-12-01 | F37: 102 | G37: =F37/F36-1 -> 0.02204408818
C38: Actual | D38: 2013-12-01 | F38: 104.8 | G38: =F38/F37-1 -> 0.02745098039
C39: Actual | D39: 2014-12-01 | F39: 106.6 | G39: =F39/F38-1 -> 0.01717557252
C40: Estimated | D40: 2015-12-01
C41: Estimated | D41: 2016-12-01
C42: Estimated | D42: 2017-12-01
C43: Estimated | D43: 2018-12-01
C44: Estimated | D44: 2019-12-01
C45: Estimated | D45: 2020-12-01
C47: Table 1.2 - CPI p.a.
E48: 2014-15
E49: 0.02487922705
C50: =CONCATENATE("Escalator : Nominal $ to Real $ ", dms_DollarReal) -> Escalator : Nominal $ to Real $ June 2016 | E50: 1
C52: Example
C53: Costs ($nominal) | E53: 200
C54: Costs (real $2015) | E54: =E53*E$50 -> 200

Sheet 2. Escalators
B1: REGULATORY REPORTING STATEMENT
B2: ActewAGL Distribution
B3: 2016-17 to 2020-21 | C3: 2016-2021
B4: 2. REAL COST ESCALATORS
B7: Instructions This template asks for real cost escalators used to escalate unit costs. Please identify the unit used in this sheet.
B8: =CONCATENATE("In Tables 2.1 and 2.2 enter the current access arrangement period data and, subject to cl.6.1 of the ", dms_TradingName, ", enter the next access arrangement period data via link from the ", dms_TradingName, " capex model.") -> In Tables 2.1 and 2.2 enter the current access arrangement period data and, subject to cl.6.1 of the ActewAGL Distribution, enter the next access arrangement period data via link from the ActewAGL Distribution capex model.
B9: =CONCATENATE("If linked/adjustable escalation is not provided in the ", dms_TradingName, " capex model, ensure the escalation in table 2.2 is linked through to all capex categories/subcategories and projects.") -> If linked/adjustable escalation is not provided in the ActewAGL Distribution capex model, ensure the escalation in table 2.2 is linked through to all capex categories/subcategories and projects.
B11: Table 2 - REAL COST ESCALATORS
B12: Table 2.1 - Real cost escalators ( % )
C13: Current access arrangement | J13: Next access arrangement
C14: 0
C15: Approved | J15: Actual
C16: 2009-10 | D16: =CRCP_y1 -> 2010-11 | E16: =CRCP_y2 -> 2011-12 | F16: =CRCP_y3 -> 2012-13 | G16: =CRCP_y4 -> 2013-14 | H16: =CRCP_y5 -> 2014-15 | I16: =CRCP_y6 -> 2015-16 | J16: =CRCP_y5 -> 2014-15
B17: EBA EGW labour
B18: Contract EGW labour
B19: EBA ACT (Construction WPI (ACT))
B20: EBA NSW / Other (Construction WPI (NSW))
B21: Non-EBA ACT EGWWS WPI (ACT)
B22: Non-EBA NSW / Other (EGWWS WPI (NSW))
B23: Concrete
B24: Steel
B25: Plastic
B26: Aluminium
B27: Brass
B28: Other
B29: General
C30: =SUM(C17:C29) -> 0 | D30: 0 | E30: 0 | F30: 0 | G30: 0 | H30: 0 | I30: =SUM(I17:I29) -> 0 | J30: =SUM(J17:J29) -> 0
B31: Source(s) of data:
B33: Table 2.2 - Input / Cost Mix (Weights)
C34: Forecast | N34: Forecast
C35: 0 | N35: Cumulative Factor
C36: Labour | G36: Materials
C37: EBA ACT | D37: EBA NSW/Other | E37: Non-EBA ACT | F37: Non-EBA NSW/Other | G37: =B23 -> Concrete | H37: =B24 -> Steel | I37: =B25 -> Plastic | J37: =B26 -> Aluminium | K37: =B27 -> Brass | L37: =B28 -> Other | M37: Total | N37: =CRCP_y5 -> 2014-15
B38: CAPEX
B39: Mains
B40: Mains - E to G
B41: Mains - New Estates
B42: Mains - I&C Contract
B43: Mains - I&C Tariff
B44: Mains - Medium Density
B46: Services
B47: Connections - E to G
B48: Connections - New Estates
B49: Connections - I&C Contract
B50: Connections - I&C Tariff
B51: Connections - Medium Density
B53: Meters
B54: New Meter - E to G
B55: New Meter - New Estates
B56: New Meter - I&C Contract
B57: New Meter - I&C Tariff
B58: New Meter - Medium Density
B59: New - Meter Data Loggers & Metreteks
B61: Growth Capex
B62: Growth Capacity Development-GNCDM Medium Pressure
B63: Growth Capacity Development-GNCDM High Pressure
B64: Growth Capacity Development-GNCDF Medium Pressure
B65: Growth Capacity Development-GNCDF High Pressure
B67: Stay in Business (SIB)
B68: Mains and Services Renewal
B69: SIB Facilities and SCADA
B70: Meter Renewal and Upgrades
B71: Third Party Relocations
B73: Non-Distribution Capital
B74: Non-Network
B76: Management Fee
B77: Construction Management Fee & Margin
B79: Overheads
B80: Cost Allocation Methodology
B84: Source(s) of data:

Sheet 3 - Capex summary (hidden)
B1: =SheetHeader -> REGULATORY REPORTING STATEMENT
B2: =dms_TradingName -> ActewAGL Distribution
B3: =CONCATENATE(FRCP_y1," to ",FRCP_y5) -> 2016-17 to 2020-21
B4: 4. CAPITAL EXPENDITURE SUMMARY
B6: Instructions This template aggregates information relating to capital expenditure inclusive of related party margins from tabs 4 to 15. No input is required. Please check that the forecast capex aligns with the AAI proposed totals and the capex totals in the PTRM and RFM models.
B9: Table 3 - CAPTIAL EXPENDITURE SUMMARY
B10: Table 3.1 - Capex by driver (actual/forecast)
C11: Previous access arrangement period | H11: Current access arrangement period | N11: Next access arrangement period
C12: $0's, nominal | L12: =CONCATENATE("$0's, real ",dms_DollarReal) -> $0's, real June 2016 | N12: =CONCATENATE("Real, $ ",dms_DollarReal) -> Real, $ June 2016
C13: Actual | L13: Forecast
C14: =PRCP_y1 -> 2005-06 | D14: =PRCP_y2 -> 2006-07 | E14: =PRCP_y3 -> 2007-08 | F14: =PRCP_y4 -> 2008-09 | G14: =PRCP_y5 -> 2009-10 | H14: =CRCP_y1 -> 2010-11 | I14: =CRCP_y2 -> 2011-12 | J14: =CRCP_y3 -> 2012-13 | K14: =CRCP_y4 -> 2013-14 | L14: =CRCP_y5 -> 2014-15 | M14: =CRCP_y6 -> 2015-16 | N14: =FRCP -> 2016-17 | O14: 2017-18 | P14: 2018-19 | Q14: 2019-20 | R14: 2020-21
B15: Connections/ Market expansion
B16: Total direct expenditure (excl escalation) | C16: ='4. Connections market expansn'!#REF! ->  | D16: ='4. Connections market expansn'!#REF! ->  | E16: ='4. Connections market expansn'!#REF! ->  | F16: ='4. Connections market expansn'!#REF! ->  | G16: ='4. Connections market expansn'!#REF! ->  | H16: ='4. Connections market expansn'!#REF! ->  | I16: ='4. Connections market expansn'!#REF! ->  | J16: ='4. Connections market expansn'!#REF! ->  | K16: ='4. Connections market expansn'!G243 -> 8353382.112 | L16: ='4. Connections market expansn'!#REF! ->  | M16: ='4. Connections market expansn'!#REF! ->  | N16: ='4. Connections market expansn'!#REF! ->  | O16: ='4. Connections market expansn'!#REF! ->  | P16: ='4. Connections market expansn'!#REF! ->  | Q16: ='4. Connections market expansn'!#REF! ->  | R16: ='4. Connections market expansn'!#REF! -> 
B17: Escalation | C17: ='4. Connections market expansn'!#REF! ->  | D17: ='4. Connections market expansn'!#REF! ->  | E17: ='4. Connections market expansn'!#REF! ->  | F17: ='4. Connections market expansn'!#REF! ->  | G17: ='4. Connections market expansn'!#REF! ->  | H17: ='4. Connections market expansn'!#REF! ->  | I17: ='4. Connections market expansn'!#REF! ->  | J17: ='4. Connections market expansn'!#REF! ->  | K17: ='4. Connections market expansn'!#REF! ->  | L17: ='4. Connections market expansn'!#REF! ->  | M17: ='4. Connections market expansn'!#REF! ->  | N17: ='4. Connections market expansn'!#REF! ->  | O17: ='4. Connections market expansn'!#REF! ->  | P17: ='4. Connections market expansn'!#REF! ->  | Q17: ='4. Connections market expansn'!#REF! ->  | R17: ='4. Connections market expansn'!#REF! -> 
B18: Total direct expenditure (incl escalation) | C18: ='4. Connections market expansn'!#REF! ->  | D18: ='4. Connections market expansn'!#REF! ->  | E18: ='4. Connections market expansn'!#REF! ->  | F18: ='4. Connections market expansn'!#REF! ->  | G18: ='4. Connections market expansn'!#REF! ->  | H18: ='4. Connections market expansn'!#REF! ->  | I18: ='4. Connections market expansn'!#REF! ->  | J18: ='4. Connections market expansn'!#REF! ->  | K18: ='4. Connections market expansn'!#REF! ->  | L18: ='4. Connections market expansn'!#REF! ->  | M18: ='4. Connections market expansn'!#REF! ->  | N18: ='4. Connections market expansn'!#REF! ->  | O18: ='4. Connections market expansn'!#REF! ->  | P18: ='4. Connections market expansn'!#REF! ->  | Q18: ='4. Connections market expansn'!#REF! ->  | R18: ='4. Connections market expansn'!#REF! -> 
B19: Augmentation/ Growth capacity development
B20: Total direct expenditure (excl escalation) | C20: ='5. Augmentation growth capacity'!#REF! ->  | D20: ='5. Augmentation growth capacity'!#REF! ->  | E20: ='5. Augmentation growth capacity'!#REF! ->  | F20: ='5. Augmentation growth capacity'!#REF! ->  | G20: ='5. Augmentation growth capacity'!#REF! ->  | H20: ='5. Augmentation growth capacity'!#REF! ->  | I20: ='5. Augmentation growth capacity'!#REF! ->  | J20: ='5. Augmentation growth capacity'!#REF! ->  | K20: ='5. Augmentation growth capacity'!G210 -> 10575504 | L20: ='5. Augmentation growth capacity'!#REF! ->  | M20: ='5. Augmentation growth capacity'!#REF! ->  | N20: ='5. Augmentation growth capacity'!#REF! ->  | O20: ='5. Augmentation growth capacity'!#REF! ->  | P20: ='5. Augmentation growth capacity'!#REF! ->  | Q20: ='5. Augmentation growth capacity'!#REF! ->  | R20: ='5. Augmentation growth capacity'!I210 -> 0
B21: Escalation | C21: ='5. Augmentation growth capacity'!#REF! ->  | D21: ='5. Augmentation growth capacity'!#REF! ->  | E21: ='5. Augmentation growth capacity'!#REF! ->  | F21: ='5. Augmentation growth capacity'!#REF! ->  | G21: ='5. Augmentation growth capacity'!#REF! ->  | H21: ='5. Augmentation growth capacity'!#REF! ->  | I21: ='5. Augmentation growth capacity'!#REF! ->  | J21: ='5. Augmentation growth capacity'!#REF! ->  | K21: ='5. Augmentation growth capacity'!#REF! ->  | L21: ='5. Augmentation growth capacity'!#REF! ->  | M21: ='5. Augmentation growth capacity'!#REF! ->  | N21: ='5. Augmentation growth capacity'!#REF! ->  | O21: ='5. Augmentation growth capacity'!#REF! ->  | P21: ='5. Augmentation growth capacity'!#REF! ->  | Q21: ='5. Augmentation growth capacity'!#REF! ->  | R21: ='5. Augmentation growth capacity'!#REF! -> 
B22: Total direct expenditure (incl escalation) | C22: ='5. Augmentation growth capacity'!#REF! ->  | D22: ='5. Augmentation growth capacity'!#REF! ->  | E22: ='5. Augmentation growth capacity'!#REF! ->  | F22: ='5. Augmentation growth capacity'!#REF! ->  | G22: ='5. Augmentation growth capacity'!#REF! ->  | H22: ='5. Augmentation growth capacity'!#REF! ->  | I22: ='5. Augmentation growth capacity'!#REF! ->  | J22: ='5. Augmentation growth capacity'!#REF! ->  | K22: ='5. Augmentation growth capacity'!#REF! ->  | L22: ='5. Augmentation growth capacity'!#REF! ->  | M22: ='5. Augmentation growth capacity'!#REF! ->  | N22: ='5. Augmentation growth capacity'!#REF! ->  | O22: ='5. Augmentation growth capacity'!#REF! ->  | P22: ='5. Augmentation growth capacity'!#REF! ->  | Q22: ='5. Augmentation growth capacity'!#REF! ->  | R22: ='5. Augmentation growth capacity'!#REF! -> 
B23: Mains and service renewal
B24: Total direct expenditure (excl escalation) | C24: ='6. Mains & services renewal'!#REF! ->  | D24: ='6. Mains & services renewal'!#REF! ->  | E24: ='6. Mains & services renewal'!#REF! ->  | F24: ='6. Mains & services renewal'!#REF! ->  | G24: ='6. Mains & services renewal'!#REF! ->  | H24: ='6. Mains & services renewal'!#REF! ->  | I24: ='6. Mains & services renewal'!#REF! ->  | J24: ='6. Mains & services renewal'!#REF! ->  | K24: ='6. Mains & services renewal'!G131 -> 0 | L24: ='6. Mains & services renewal'!#REF! ->  | M24: ='6. Mains & services renewal'!#REF! ->  | N24: ='6. Mains & services renewal'!#REF! ->  | O24: ='6. Mains & services renewal'!#REF! ->  | P24: ='6. Mains & services renewal'!#REF! ->  | Q24: ='6. Mains & services renewal'!#REF! ->  | R24: ='6. Mains & services renewal'!#REF! -> 
B25: Escalation | C25: ='6. Mains & services renewal'!#REF! ->  | D25: ='6. Mains & services renewal'!#REF! ->  | E25: ='6. Mains & services renewal'!#REF! ->  | F25: ='6. Mains & services renewal'!#REF! ->  | G25: ='6. Mains & services renewal'!#REF! ->  | H25: ='6. Mains & services renewal'!#REF! ->  | I25: ='6. Mains & services renewal'!#REF! ->  | J25: ='6. Mains & services renewal'!#REF! ->  | K25: ='6. Mains & services renewal'!#REF! ->  | L25: ='6. Mains & services renewal'!#REF! ->  | M25: ='6. Mains & services renewal'!#REF! ->  | N25: ='6. Mains & services renewal'!#REF! ->  | O25: ='6. Mains & services renewal'!#REF! ->  | P25: ='6. Mains & services renewal'!#REF! ->  | Q25: ='6. Mains & services renewal'!#REF! ->  | R25: ='6. Mains & services renewal'!#REF! -> 
B26: Total direct expenditure (incl escalation) | C26: ='6. Mains & services renewal'!#REF! ->  | D26: ='6. Mains & services renewal'!#REF! ->  | E26: ='6. Mains & services renewal'!#REF! ->  | F26: ='6. Mains & services renewal'!#REF! ->  | G26: ='6. Mains & services renewal'!#REF! ->  | H26: ='6. Mains & services renewal'!#REF! ->  | I26: ='6. Mains & services renewal'!#REF! ->  | J26: ='6. Mains & services renewal'!#REF! ->  | K26: ='6. Mains & services renewal'!G135 -> 0 | L26: ='6. Mains & services renewal'!#REF! ->  | M26: ='6. Mains & services renewal'!#REF! ->  | N26: ='6. Mains & services renewal'!#REF! ->  | O26: ='6. Mains & services renewal'!#REF! ->  | P26: ='6. Mains & services renewal'!#REF! ->  | Q26: ='6. Mains & services renewal'!#REF! ->  | R26: ='6. Mains & services renewal'!#REF! -> 
B27: Facilities renewal and upgrade
B28: Total direct expenditure (excl escalation)
B29: Escalation
B30: Total direct expenditure (incl escalation)
B31: Meter renewal and upgrade
B32: Total direct expenditure (excl escalation) | C32: ='8. Meter renewal & upgrade'!#REF! ->  | D32: ='8. Meter renewal & upgrade'!#REF! ->  | E32: ='8. Meter renewal & upgrade'!#REF! ->  | F32: ='8. Meter renewal & upgrade'!#REF! ->  | G32: ='8. Meter renewal & upgrade'!#REF! ->  | H32: ='8. Meter renewal & upgrade'!#REF! ->  | I32: ='8. Meter renewal & upgrade'!#REF! ->  | J32: ='8. Meter renewal & upgrade'!#REF! ->  | K32: ='8. Meter renewal & upgrade'!D55 -> 2114502.972 | L32: ='8. Meter renewal & upgrade'!#REF! ->  | M32: ='8. Meter renewal & upgrade'!#REF! ->  | N32: ='8. Meter renewal & upgrade'!#REF! ->  | O32: ='8. Meter renewal & upgrade'!#REF! ->  | P32: ='8. Meter renewal & upgrade'!#REF! ->  | Q32: ='8. Meter renewal & upgrade'!#REF! -> 
B33: Escalation | C33: ='8. Meter renewal & upgrade'!#REF! ->  | D33: ='8. Meter renewal & upgrade'!#REF! ->  | E33: ='8. Meter renewal & upgrade'!#REF! ->  | F33: ='8. Meter renewal & upgrade'!#REF! ->  | G33: ='8. Meter renewal & upgrade'!#REF! ->  | H33: ='8. Meter renewal & upgrade'!#REF! ->  | I33: ='8. Meter renewal & upgrade'!#REF! ->  | J33: ='8. Meter renewal & upgrade'!#REF! ->  | K33: ='8. Meter renewal & upgrade'!#REF! ->  | L33: ='8. Meter renewal & upgrade'!#REF! ->  | M33: ='8. Meter renewal & upgrade'!#REF! ->  | N33: ='8. Meter renewal & upgrade'!#REF! ->  | O33: ='8. Meter renewal & upgrade'!#REF! ->  | P33: ='8. Meter renewal & upgrade'!#REF! ->  | Q33: ='8. Meter renewal & upgrade'!#REF! -> 
B34: Total direct expenditure (incl escalation) | C34: ='8. Meter renewal & upgrade'!#REF! ->  | D34: ='8. Meter renewal & upgrade'!#REF! ->  | E34: ='8. Meter renewal & upgrade'!#REF! ->  | F34: ='8. Meter renewal & upgrade'!#REF! ->  | G34: ='8. Meter renewal & upgrade'!#REF! ->  | H34: ='8. Meter renewal & upgrade'!#REF! ->  | I34: ='8. Meter renewal & upgrade'!#REF! ->  | J34: ='8. Meter renewal & upgrade'!#REF! ->  | K34: ='8. Meter renewal & upgrade'!#REF! ->  | L34: ='8. Meter renewal & upgrade'!#REF! ->  | M34: ='8. Meter renewal & upgrade'!#REF! ->  | N34: ='8. Meter renewal & upgrade'!#REF! ->  | O34: ='8. Meter renewal & upgrade'!#REF! ->  | P34: ='8. Meter renewal & upgrade'!#REF! ->  | Q34: ='8. Meter renewal & upgrade'!#REF! -> 
B35: IT system
B36: Total direct expenditure (excl escalation)
B37: Escalation
B38: Total direct expenditure (incl escalation)
B39: Capitalised regulatory expenditure
B40: Total direct expenditure (excl escalation) | C40: ='9. Capitalised regulatory exp.'!#REF! ->  | D40: ='9. Capitalised regulatory exp.'!#REF! ->  | E40: ='9. Capitalised regulatory exp.'!#REF! ->  | F40: ='9. Capitalised regulatory exp.'!#REF! ->  | G40: ='9. Capitalised regulatory exp.'!#REF! ->  | H40: ='9. Capitalised regulatory exp.'!#REF! ->  | I40: ='9. Capitalised regulatory exp.'!#REF! ->  | J40: ='9. Capitalised regulatory exp.'!#REF! ->  | K40: ='9. Capitalised regulatory exp.'!G54 -> 0 | L40: ='9. Capitalised regulatory exp.'!#REF! ->  | M40: ='9. Capitalised regulatory exp.'!#REF! ->  | N40: ='9. Capitalised regulatory exp.'!#REF! ->  | O40: ='9. Capitalised regulatory exp.'!#REF! ->  | P40: ='9. Capitalised regulatory exp.'!#REF! ->  | Q40: ='9. Capitalised regulatory exp.'!#REF! ->  | R40: ='9. Capitalised regulatory exp.'!H54 -> 0
B41: Escalation | C41: ='9. Capitalised regulatory exp.'!#REF! ->  | D41: ='9. Capitalised regulatory exp.'!#REF! ->  | E41: ='9. Capitalised regulatory exp.'!#REF! ->  | F41: ='9. Capitalised regulatory exp.'!#REF! ->  | G41: ='9. Capitalised regulatory exp.'!#REF! ->  | H41: ='9. Capitalised regulatory exp.'!#REF! ->  | I41: ='9. Capitalised regulatory exp.'!#REF! ->  | J41: ='9. Capitalised regulatory exp.'!#REF! ->  | K41: ='9. Capitalised regulatory exp.'!#REF! ->  | L41: ='9. Capitalised regulatory exp.'!#REF! ->  | M41: ='9. Capitalised regulatory exp.'!#REF! ->  | N41: ='9. Capitalised regulatory exp.'!#REF! ->  | O41: ='9. Capitalised regulatory exp.'!#REF! ->  | P41: ='9. Capitalised regulatory exp.'!#REF! ->  | Q41: ='9. Capitalised regulatory exp.'!#REF! ->  | R41: ='9. Capitalised regulatory exp.'!#REF! -> 
B42: Total direct costs (incl escalation) | C42: ='9. Capitalised regulatory exp.'!#REF! ->  | D42: ='9. Capitalised regulatory exp.'!#REF! ->  | E42: ='9. Capitalised regulatory exp.'!#REF! ->  | F42: ='9. Capitalised regulatory exp.'!#REF! ->  | G42: ='9. Capitalised regulatory exp.'!#REF! ->  | H42: ='9. Capitalised regulatory exp.'!#REF! ->  | I42: ='9. Capitalised regulatory exp.'!#REF! ->  | J42: ='9. Capitalised regulatory exp.'!#REF! ->  | K42: ='9. Capitalised regulatory exp.'!#REF! ->  | L42: ='9. Capitalised regulatory exp.'!#REF! ->  | M42: ='9. Capitalised regulatory exp.'!#REF! ->  | N42: ='9. Capitalised regulatory exp.'!#REF! ->  | O42: ='9. Capitalised regulatory exp.'!#REF! ->  | P42: ='9. Capitalised regulatory exp.'!#REF! ->  | Q42: ='9. Capitalised regulatory exp.'!#REF! ->  | R42: ='9. Capitalised regulatory exp.'!#REF! -> 
B43: Other
B44: Total direct costs (excl escalation) | C44: ='11. Other non-distb'!#REF! ->  | D44: ='11. Other non-distb'!#REF! ->  | E44: ='11. Other non-distb'!#REF! ->  | F44: ='11. Other non-distb'!#REF! ->  | G44: ='11. Other non-distb'!#REF! ->  | H44: ='11. Other non-distb'!#REF! ->  | I44: ='11. Other non-distb'!#REF! ->  | J44: ='11. Other non-distb'!#REF! ->  | K44: ='11. Other non-distb'!G114 -> 0 | L44: ='11. Other non-distb'!#REF! ->  | M44: ='11. Other non-distb'!H114 -> 0 | N44: ='11. Other non-distb'!#REF! ->  | O44: ='11. Other non-distb'!#REF! ->  | P44: ='11. Other non-distb'!#REF! ->  | Q44: ='11. Other non-distb'!#REF! ->  | R44: ='11. Other non-distb'!#REF! -> 
B45: Escalation | C45: ='11. Other non-distb'!#REF! ->  | D45: ='11. Other non-distb'!#REF! ->  | E45: ='11. Other non-distb'!#REF! ->  | F45: ='11. Other non-distb'!#REF! ->  | G45: ='11. Other non-distb'!#REF! ->  | H45: ='11. Other non-distb'!#REF! ->  | I45: ='11. Other non-distb'!#REF! ->  | J45: ='11. Other non-distb'!#REF! ->  | K45: ='11. Other non-distb'!#REF! ->  | L45: ='11. Other non-distb'!#REF! ->  | M45: ='11. Other non-distb'!#REF! ->  | N45: ='11. Other non-distb'!#REF! ->  | O45: ='11. Other non-distb'!#REF! ->  | P45: ='11. Other non-distb'!#REF! ->  | Q45: ='11. Other non-distb'!#REF! ->  | R45: ='11. Other non-distb'!#REF! -> 
B46: Total direct costs (incl escalation) | C46: ='11. Other non-distb'!#REF! ->  | D46: ='11. Other non-distb'!#REF! ->  | E46: ='11. Other non-distb'!#REF! ->  | F46: ='11. Other non-distb'!#REF! ->  | G46: ='11. Other non-distb'!#REF! ->  | H46: ='11. Other non-distb'!#REF! ->  | I46: ='11. Other non-distb'!#REF! ->  | J46: ='11. Other non-distb'!#REF! ->  | K46: ='11. Other non-distb'!#REF! ->  | L46: ='11. Other non-distb'!#REF! ->  | M46: ='11. Other non-distb'!#REF! ->  | N46: ='11. Other non-distb'!#REF! ->  | O46: ='11. Other non-distb'!#REF! ->  | P46: ='11. Other non-distb'!#REF! ->  | Q46: ='11. Other non-distb'!#REF! ->  | R46: ='11. Other non-distb'!#REF! -> 
B47: Overheads
B48: Total costs | C48: ='14. Overheads'!#REF! ->  | D48: ='14. Overheads'!#REF! ->  | E48: ='14. Overheads'!#REF! ->  | F48: ='14. Overheads'!#REF! ->  | G48: ='14. Overheads'!#REF! ->  | H48: ='14. Overheads'!#REF! ->  | I48: ='14. Overheads'!#REF! ->  | J48: ='14. Overheads'!#REF! ->  | K48: ='14. Overheads'!C120 -> 0 | L48: ='14. Overheads'!#REF! ->  | M48: ='14. Overheads'!#REF! ->  | N48: ='14. Overheads'!#REF! ->  | O48: ='14. Overheads'!#REF! ->  | P48: ='14. Overheads'!#REF! ->  | Q48: ='14. Overheads'!#REF! -> 
B49: Related party margin
B50: Total cost | C50: ='15. Related party transactions'!#REF! ->  | D50: ='15. Related party transactions'!#REF! ->  | E50: ='15. Related party transactions'!#REF! ->  | F50: ='15. Related party transactions'!#REF! ->  | G50: ='15. Related party transactions'!#REF! ->  | H50: ='15. Related party transactions'!#REF! ->  | I50: ='15. Related party transactions'!#REF! ->  | J50: ='15. Related party transactions'!#REF! ->  | K50: ='15. Related party transactions'!C115 -> 23725072.71 | L50: ='15. Related party transactions'!#REF! ->  | M50: ='15. Related party transactions'!#REF! ->  | N50: ='15. Related party transactions'!#REF! ->  | O50: ='15. Related party transactions'!#REF! ->  | P50: ='15. Related party transactions'!#REF! ->  | Q50: ='15. Related party transactions'!#REF! ->  | R50: ='15. Related party transactions'!#REF! -> 
B51: Gross total capex (excl escalation) | C51: =SUM(C16,C20,C24,C28,C40,C32,C36,C44,C48,C50) ->  | D51: =SUM(D16,D20,D24,D28,D40,D32,D36,D44,D48,D50) ->  | K51: 44768461.79 | R51: =SUM(R16,R20,R24,R28,R40,R32,R36,R44,R48,R50) -> 
B52: Total escalation | C52: =SUM(C17,C21,C25,C29,C41,C33,C37,C45) ->  | D52: =SUM(D17,D21,D25,D29,D41,D33,D37,D45) ->  | R52: =SUM(R17,R21,R25,R29,R41,R33,R37,R45) -> 
B53: Gross total capex (incl escalation) | C53: =SUM(C18,C22,C26,C30,C42,C34,C38,C46,C48,C50) ->  | D53: =SUM(D18,D22,D26,D30,D42,D34,D38,D46,D48,D50) ->  | R53: =SUM(R18,R22,R26,R30,R42,R34,R38,R46,R48,R50) -> 
B54: Less: Contributions
B55: Net total capex (excl escalation) | C55: =C51-C54 ->  | D55: =D51-D54 ->  | K55: 44768461.79 | M55: =M51-M54 -> 
B56: Net total capex (incl escalation) | C56: =C53-C54 ->  | D56: =D53-D54 ->  | M56: =M53-M54 ->  | R56: =R53-R54 -> 
B59: Table 3.2 - Capex by driver (approved)
C60: Previous access arrangement period | H60: Current access arrangement period
C61: $0's, nominal
C62: Approved
C63: =PRCP_y1 -> 2005-06 | D63: =PRCP_y2 -> 2006-07 | E63: =PRCP_y3 -> 2007-08 | F63: =PRCP_y4 -> 2008-09 | G63: =PRCP_y5 -> 2009-10 | H63: =CRCP_y1 -> 2010-11 | I63: =CRCP_y2 -> 2011-12 | J63: =CRCP_y3 -> 2012-13 | K63: =CRCP_y4 -> 2013-14 | L63: =CRCP_y5 -> 2014-15 | M63: =CRCP_y6 -> 2015-16
B64: Connections/ Market expansion
B65: Total direct costs (excl escalation) | C65: ='4. Connections market expansn'!#REF! ->  | D65: ='4. Connections market expansn'!#REF! ->  | E65: ='4. Connections market expansn'!#REF! ->  | F65: ='4. Connections market expansn'!#REF! ->  | G65: ='4. Connections market expansn'!#REF! ->  | H65: ='4. Connections market expansn'!#REF! ->  | I65: ='4. Connections market expansn'!#REF! ->  | J65: ='4. Connections market expansn'!#REF! ->  | K65: ='4. Connections market expansn'!#REF! ->  | L65: ='4. Connections market expansn'!#REF! -> 
B66: Escalation | C66: ='4. Connections market expansn'!#REF! ->  | D66: ='4. Connections market expansn'!#REF! ->  | E66: ='4. Connections market expansn'!#REF! ->  | F66: ='4. Connections market expansn'!#REF! ->  | G66: ='4. Connections market expansn'!#REF! ->  | H66: ='4. Connections market expansn'!#REF! ->  | I66: ='4. Connections market expansn'!#REF! ->  | J66: ='4. Connections market expansn'!#REF! ->  | K66: ='4. Connections market expansn'!#REF! ->  | L66: ='4. Connections market expansn'!#REF! -> 
B67: Total direct costs (incl escalation) | C67: ='4. Connections market expansn'!#REF! ->  | D67: ='4. Connections market expansn'!#REF! ->  | E67: ='4. Connections market expansn'!#REF! ->  | F67: ='4. Connections market expansn'!#REF! ->  | G67: ='4. Connections market expansn'!#REF! ->  | H67: ='4. Connections market expansn'!#REF! ->  | I67: ='4. Connections market expansn'!#REF! ->  | J67: ='4. Connections market expansn'!#REF! ->  | K67: ='4. Connections market expansn'!#REF! ->  | L67: ='4. Connections market expansn'!#REF! -> 
B68: Augmentation/ Growth capacity development
B69: Total direct costs (excl escalation) | C69: ='5. Augmentation growth capacity'!#REF! ->  | D69: ='5. Augmentation growth capacity'!#REF! ->  | E69: ='5. Augmentation growth capacity'!#REF! ->  | F69: ='5. Augmentation growth capacity'!#REF! ->  | G69: ='5. Augmentation growth capacity'!#REF! ->  | H69: ='5. Augmentation growth capacity'!#REF! ->  | I69: ='5. Augmentation growth capacity'!#REF! ->  | J69: ='5. Augmentation growth capacity'!#REF! ->  | K69: ='5. Augmentation growth capacity'!G249 -> 0 | L69: ='5. Augmentation growth capacity'!#REF! ->  | M69: ='5. Augmentation growth capacity'!H249 -> 0
B70: Escalation | C70: ='5. Augmentation growth capacity'!#REF! ->  | D70: ='5. Augmentation growth capacity'!#REF! ->  | E70: ='5. Augmentation growth capacity'!#REF! ->  | F70: ='5. Augmentation growth capacity'!#REF! ->  | G70: ='5. Augmentation growth capacity'!#REF! ->  | H70: ='5. Augmentation growth capacity'!#REF! ->  | I70: ='5. Augmentation growth capacity'!#REF! ->  | J70: ='5. Augmentation growth capacity'!#REF! ->  | K70: ='5. Augmentation growth capacity'!#REF! ->  | L70: ='5. Augmentation growth capacity'!#REF! ->  | M70: ='5. Augmentation growth capacity'!#REF! -> 
B71: Total direct costs (incl escalation) | C71: ='5. Augmentation growth capacity'!#REF! ->  | D71: ='5. Augmentation growth capacity'!#REF! ->  | E71: ='5. Augmentation growth capacity'!#REF! ->  | F71: ='5. Augmentation growth capacity'!#REF! ->  | G71: ='5. Augmentation growth capacity'!#REF! ->  | H71: ='5. Augmentation growth capacity'!#REF! ->  | I71: ='5. Augmentation growth capacity'!#REF! ->  | J71: ='5. Augmentation growth capacity'!#REF! ->  | K71: ='5. Augmentation growth capacity'!#REF! ->  | L71: ='5. Augmentation growth capacity'!#REF! ->  | M71: ='5. Augmentation growth capacity'!#REF! -> 
B72: Mains and service renewal
B73: Total direct costs (excl escalation) | C73: ='6. Mains & services renewal'!#REF! ->  | D73: ='6. Mains & services renewal'!#REF! ->  | E73: ='6. Mains & services renewal'!#REF! ->  | F73: ='6. Mains & services renewal'!#REF! ->  | G73: ='6. Mains & services renewal'!#REF! ->  | H73: ='6. Mains & services renewal'!#REF! ->  | I73: ='6. Mains & services renewal'!#REF! ->  | J73: ='6. Mains & services renewal'!#REF! ->  | K73: ='6. Mains & services renewal'!#REF! ->  | L73: ='6. Mains & services renewal'!#REF! -> 
B74: Escalation | C74: ='6. Mains & services renewal'!#REF! ->  | D74: ='6. Mains & services renewal'!#REF! ->  | E74: ='6. Mains & services renewal'!#REF! ->  | F74: ='6. Mains & services renewal'!#REF! ->  | G74: ='6. Mains & services renewal'!#REF! ->  | H74: ='6. Mains & services renewal'!#REF! ->  | I74: ='6. Mains & services renewal'!#REF! ->  | J74: ='6. Mains & services renewal'!#REF! ->  | K74: ='6. Mains & services renewal'!#REF! ->  | L74: ='6. Mains & services renewal'!#REF! -> 
B75: Total direct costs (incl escalation) | C75: ='6. Mains & services renewal'!#REF! ->  | D75: ='6. Mains & services renewal'!#REF! ->  | E75: ='6. Mains & services renewal'!#REF! ->  | F75: ='6. Mains & services renewal'!#REF! ->  | G75: ='6. Mains & services renewal'!#REF! ->  | H75: ='6. Mains & services renewal'!#REF! ->  | I75: ='6. Mains & services renewal'!#REF! ->  | J75: ='6. Mains & services renewal'!#REF! ->  | K75: ='6. Mains & services renewal'!#REF! ->  | L75: ='6. Mains & services renewal'!#REF! -> 
B76: Facilities renewal and upgrade
B77: Total direct costs (excl escalation)
B78: Escalation
B79: Total direct costs (incl escalation)
B80: Meter renewal and upgrade
B81: Total direct costs (excl escalation) | C81: ='8. Meter renewal & upgrade'!#REF! ->  | D81: ='8. Meter renewal & upgrade'!#REF! ->  | E81: ='8. Meter renewal & upgrade'!#REF! ->  | F81: ='8. Meter renewal & upgrade'!#REF! ->  | G81: ='8. Meter renewal & upgrade'!#REF! ->  | H81: ='8. Meter renewal & upgrade'!#REF! ->  | I81: ='8. Meter renewal & upgrade'!#REF! ->  | J81: ='8. Meter renewal & upgrade'!#REF! ->  | K81: ='8. Meter renewal & upgrade'!D168 -> 0 | L81: ='8. Meter renewal & upgrade'!#REF! ->  | M81: ='8. Meter renewal & upgrade'!#REF! -> 
B82: Escalation | C82: ='8. Meter renewal & upgrade'!#REF! ->  | D82: ='8. Meter renewal & upgrade'!#REF! ->  | E82: ='8. Meter renewal & upgrade'!#REF! ->  | F82: ='8. Meter renewal & upgrade'!#REF! ->  | G82: ='8. Meter renewal & upgrade'!#REF! ->  | H82: ='8. Meter renewal & upgrade'!#REF! ->  | I82: ='8. Meter renewal & upgrade'!#REF! ->  | J82: ='8. Meter renewal & upgrade'!#REF! ->  | K82: ='8. Meter renewal & upgrade'!#REF! ->  | L82: ='8. Meter renewal & upgrade'!#REF! ->  | M82: ='8. Meter renewal & upgrade'!#REF! -> 
B83: Total direct costs (incl escalation) | C83: ='8. Meter renewal & upgrade'!#REF! ->  | D83: ='8. Meter renewal & upgrade'!#REF! ->  | E83: ='8. Meter renewal & upgrade'!#REF! ->  | F83: ='8. Meter renewal & upgrade'!#REF! ->  | G83: ='8. Meter renewal & upgrade'!#REF! ->  | H83: ='8. Meter renewal & upgrade'!#REF! ->  | I83: ='8. Meter renewal & upgrade'!#REF! ->  | J83: ='8. Meter renewal & upgrade'!#REF! ->  | K83: ='8. Meter renewal & upgrade'!#REF! ->  | L83: ='8. Meter renewal & upgrade'!#REF! ->  | M83: ='8. Meter renewal & upgrade'!#REF! -> 
B84: IT
B85: Total direct costs (excl escalation)
B86: Escalation
B87: Total direct costs (incl escalation)
B88: Capitalised regulatory costs
B89: Total direct costs (excl escalation) | C89: ='9. Capitalised regulatory exp.'!#REF! ->  | D89: ='9. Capitalised regulatory exp.'!#REF! ->  | E89: ='9. Capitalised regulatory exp.'!#REF! ->  | F89: ='9. Capitalised regulatory exp.'!#REF! ->  | G89: ='9. Capitalised regulatory exp.'!#REF! ->  | H89: ='9. Capitalised regulatory exp.'!#REF! ->  | I89: ='9. Capitalised regulatory exp.'!#REF! ->  | J89: ='9. Capitalised regulatory exp.'!#REF! ->  | K89: ='9. Capitalised regulatory exp.'!G89 -> 0 | L89: ='9. Capitalised regulatory exp.'!#REF! ->  | M89: ='9. Capitalised regulatory exp.'!#REF! -> 
B90: Escalation | C90: ='9. Capitalised regulatory exp.'!#REF! ->  | D90: ='9. Capitalised regulatory exp.'!#REF! ->  | E90: ='9. Capitalised regulatory exp.'!#REF! ->  | F90: ='9. Capitalised regulatory exp.'!#REF! ->  | G90: ='9. Capitalised regulatory exp.'!#REF! ->  | H90: ='9. Capitalised regulatory exp.'!#REF! ->  | I90: ='9. Capitalised regulatory exp.'!#REF! ->  | J90: ='9. Capitalised regulatory exp.'!#REF! ->  | K90: ='9. Capitalised regulatory exp.'!#REF! ->  | L90: ='9. Capitalised regulatory exp.'!#REF! ->  | M90: ='9. Capitalised regulatory exp.'!#REF! -> 
B91: Total direct costs (incl escalation) | C91: ='9. Capitalised regulatory exp.'!#REF! ->  | D91: ='9. Capitalised regulatory exp.'!#REF! ->  | E91: ='9. Capitalised regulatory exp.'!#REF! ->  | F91: ='9. Capitalised regulatory exp.'!#REF! ->  | G91: ='9. Capitalised regulatory exp.'!#REF! ->  | H91: ='9. Capitalised regulatory exp.'!#REF! ->  | I91: ='9. Capitalised regulatory exp.'!#REF! ->  | J91: ='9. Capitalised regulatory exp.'!#REF! ->  | K91: ='9. Capitalised regulatory exp.'!#REF! ->  | L91: ='9. Capitalised regulatory exp.'!#REF! ->  | M91: ='9. Capitalised regulatory exp.'!#REF! -> 
B92: Other
B93: Total direct costs (excl escalation) | C93: ='11. Other non-distb'!#REF! ->  | D93: ='11. Other non-distb'!#REF! ->  | E93: ='11. Other non-distb'!#REF! ->  | F93: ='11. Other non-distb'!#REF! ->  | G93: ='11. Other non-distb'!#REF! ->  | H93: ='11. Other non-distb'!#REF! ->  | I93: ='11. Other non-distb'!#REF! ->  | J93: ='11. Other non-distb'!#REF! ->  | K93: ='11. Other non-distb'!G190 -> 0 | L93: ='11. Other non-distb'!#REF! ->  | M93: ='11. Other non-distb'!H190 -> 0
B94: Escalation | C94: ='11. Other non-distb'!#REF! ->  | D94: ='11. Other non-distb'!#REF! ->  | E94: ='11. Other non-distb'!#REF! ->  | F94: ='11. Other non-distb'!#REF! ->  | G94: ='11. Other non-distb'!#REF! ->  | H94: ='11. Other non-distb'!#REF! ->  | I94: ='11. Other non-distb'!#REF! ->  | J94: ='11. Other non-distb'!#REF! ->  | K94: ='11. Other non-distb'!#REF! ->  | L94: ='11. Other non-distb'!#REF! ->  | M94: ='11. Other non-distb'!#REF! -> 
B95: Total direct costs (incl escalation) | C95: ='11. Other non-distb'!#REF! ->  | D95: ='11. Other non-distb'!#REF! ->  | E95: ='11. Other non-distb'!#REF! ->  | F95: ='11. Other non-distb'!#REF! ->  | G95: ='11. Other non-distb'!#REF! ->  | H95: ='11. Other non-distb'!#REF! ->  | I95: ='11. Other non-distb'!#REF! ->  | J95: ='11. Other non-distb'!#REF! ->  | K95: ='11. Other non-distb'!#REF! ->  | L95: ='11. Other non-distb'!#REF! ->  | M95: ='11. Other non-distb'!#REF! -> 
B96: Overheads
B97: Total costs | C97: ='14. Overheads'!#REF! ->  | D97: ='14. Overheads'!#REF! ->  | E97: ='14. Overheads'!#REF! ->  | F97: ='14. Overheads'!#REF! ->  | G97: ='14. Overheads'!#REF! ->  | H97: ='14. Overheads'!#REF! ->  | I97: ='14. Overheads'!#REF! ->  | J97: ='14. Overheads'!#REF! ->  | K97: ='14. Overheads'!C138 -> 0 | L97: ='14. Overheads'!#REF! -> 
B98: Related party margin
B99: Total cost | C99: ='15. Related party transactions'!#REF! ->  | D99: ='15. Related party transactions'!#REF! ->  | E99: ='15. Related party transactions'!#REF! ->  | F99: ='15. Related party transactions'!#REF! ->  | G99: ='15. Related party transactions'!#REF! ->  | H99: ='15. Related party transactions'!#REF! ->  | I99: ='15. Related party transactions'!#REF! ->  | J99: ='15. Related party transactions'!#REF! ->  | K99: ='15. Related party transactions'!C132 -> 0 | L99: ='15. Related party transactions'!#REF! ->  | M99: ='15. Related party transactions'!#REF! -> 
B100: Gross total capex (excl escalation) excluding overheads and RPM | C100: =SUM(C65,C69,C73,C77,C88,C81,C85,C93) ->  | D100: =SUM(D65,D69,D73,D77,D88,D81,D85,D93) ->  | M100: =SUM(M65,M69,M73,M77,M88,M81,M85,M93) -> 
B101: Total escalation | C101: =SUM(C66,C70,C74,C78,C89,C82,C86,C94) ->  | D101: =SUM(D66,D70,D74,D78,D89,D82,D86,D94) ->  | M101: =SUM(M66,M70,M74,M78,M89,M82,M86,M94) -> 
B102: Gross total capex (incl escalation) excluding overheads and RPM | C102: =SUM(C67,C71,C75,C79,C90,C83,C91,C95) ->  | D102: =SUM(D67,D71,D75,D79,D90,D83,D91,D95) ->  | M102: =SUM(M67,M71,M75,M79,M90,M83,M91,M95) -> 
B103: Gross total capex (incl escalation) including overheads, excluding RPM | C103: =C102+C97 ->  | D103: =D102+D97 ->  | E103: =E102+E97 ->  | F103: =F102+F97 ->  | G103: =G102+G97 ->  | H103: =H102+H97 ->  | I103: =I102+I97 ->  | J103: =J102+J97 ->  | K103: =K102+K97 ->  | L103: =L102+L97 -> 
B104: Gross total capex (incl escalation) including overheads and RPM | C104: =C103+C99 ->  | D104: =D103+D99 ->  | E104: =E103+E99 ->  | F104: =F103+F99 ->  | G104: =G103+G99 ->  | H104: =H103+H99 ->  | I104: =I103+I99 ->  | J104: =J103+J99 ->  | K104: =K103+K99 ->  | L104: =L103+L99 -> 
B105: Less: Contributions
B106: Net total capex (incl escalation) including overheads and RPM | C106: =C104-C105 ->  | M106: =M104-M105 -> 

Sheet 4. Connections market expansn
B1: =SheetHeader -> REGULATORY REPORTING STATEMENT
B2: =dms_TradingName -> ActewAGL Distribution
B3: =CONCATENATE(FRCP_y1," to ",FRCP_y5) -> 2016-17 to 2020-21
B4: 4. NEW CUSTOMER CONNECTIONS / MARKET EXPANSION CAPTIAL EXPENDITURE
B7: Instructions This template asks for information relating to new connections/ market expansion capital expenditure. This does not include expenditure relating to network capacity expansion, which should be included at tab 5 relating to augmentation.
B8: =CONCATENATE("As set out in cl.6.1 of the ",dms_TradingName," RIN, for tables 4.1 to 4.10, where the requested data is captured in the ",dms_TradingName," capex model it is not required to be reentered in the RIN template tables. If the requested data has not been provided in the ActewAGL RIN please enter into the tables. This may require the insertion of new lines in each table.") -> As set out in cl.6.1 of the ActewAGL Distribution RIN, for tables 4.1 to 4.10, where the requested data is captured in the ActewAGL Distribution capex model it is not required to be reentered in the RIN template tables. If the requested data has not been provided in the ActewAGL RIN please enter into the tables. This may require the insertion of new lines in each table.
B9: Reported expenditure is to be entered EXCLUSIVE of any profit margins or management fees paid pursuant to arrangements or contracts with any related parties. Include any related party margins or management fees in the separate 'Related party margin' line item.
B10: Subject to cl.6.1 of the ActewAGL RIN, where linked/adjustable overhead expenditure and related party margin expenditure is not provided in the ActewAGL capex model, overhead expenditure and related party margin expenditure should be linked to allocations derived in tabs '12 - Overheads' and '13 - Related party transactions'.
B11: Capital expenditure amounts entered should be GROSS of customer contributions. There is a separate line item for customer contributions from which net capital expenditure is derived. If the expenditure is not split by the line items specified, provide assumptions on how the expenditure is split between line items. This can be provided as a note to this template or in the written RIN submission.
B15: TABLE 4 - NEW CUSTOMER CONNECTIONS / MARKET EXPANSION CAPITAL EXPENDITURE
B16: TABLE 4.1 - NEW CUSTOMER CONNECTIONS
E17: Current Access Arrangement
E19: Actual
C20: 2010-11 | D20: 2011-12 | E20: 2012-13 | F20: 2013-14 | G20: 2014-15
B22: Table 4.1.1 - Number of new customer connections
B23: Electricity to gas | C23: 661 | D23: 754 | E23: 769 | F23: 614 | G23: 508
B24: New homes | C24: 2108 | D24: 1743 | E24: 1754 | F24: 1656 | G24: 1740
B25: New medium density/high rise | C25: 1553 | D25: 1752 | E25: 2722 | F25: 2217 | G25: 2891
B26: I&C tariff | C26: 79 | D26: 77 | E26: 96 | F26: 106 | G26: 79
B27: I&C Contract | C27: 6 | D27: 2 | E27: 4 | F27: 4 | G27: 0
B28: Total number of new connections | C28: =SUM(C23:C27) -> 4407 | D28: 4328 | E28: 5345 | F28: 4597 | G28: =SUM(G23:G27) -> 5218
B29: Total number of new connections (from tab 27 - Customer numbers)
B30: Difference | G30: =G28-G29 -> 5218
B31: Source(s) of data:
B33: Table 4.1.2 - Volume of mains / services / metres per connection
B34: Number of mains metres per connection
B35: Electricity to gas | C35: 0.4962178517 | D35: 1.712599469 | E35: 1.140312094 | F35: 1.545602606 | G35: =467/G23 -> 0.9192913386
B36: New estates | C36: 20.98695446 | D36: 35.20080321 | E36: 11.75484607 | F36: 27.8955314 | G36: =39904/G24 -> 22.93333333
B37: Medium density/high rise | C37: 3.923696072 | D37: 4.091267123 | E37: 2.566017634 | F37: 4.392647722 | G37: =14187/G25 -> 4.907298513
B38: I&C tariff | C38: 94.30379747 | D38: 18.83896104 | E38: 56.87291667 | F38: 14.33301887 | G38: =1399/G26 -> 17.70886076
B39: I&C Contract | C39: na | D39: na | E39: na | F39: na | G39: 0
B40: Number of services per connection
B41: Electricity to gas | C41: 1.072617247 | D41: 1.00795756 | E41: 0.9921976593 | F41: 1.016286645 | G41: 1
B42: New estates | C42: 0.944971537 | D42: 0.9971313827 | E42: 1 | F42: 0.9981884058 | G42: 1
B43: Medium density/high rise | C43: 0.4829362524 | D43: 0.2865296804 | E43: 0.2086700955 | F43: 0.2904826342 | G43: 0.2
B44: I&C tariff | C44: 0.5063291139 | D44: 0.5714285714 | E44: 0.53125 | F44: 0.5660377358 | G44: 1.1
B45: I&C Contract | C45: na | D45: na | E45: na | F45: na | G45: na
B46: Number of metres per connection
B47: Electricity to gas | C47: 1 | D47: 1.00132626 | E47: 1.00130039 | F47: 1.006514658 | G47: 1
B48: New estates | C48: 1 | D48: 1 | E48: 1 | F48: 1.000603865 | G48: 1
B49: Medium density/high rise | C49: 0.5891822279 | D49: 0.3253424658 | E49: 0.283247612 | F49: 0.6211096076 | G49: 0.3
B50: I&C tariff | C50: 1 | D50: 1 | E50: 1 | F50: 1 | G50: 1
B51: I&C Contract | C51: 1 | D51: 1 | E51: 1 | F51: 1 | G51: 1
B53: Source(s) of data:
B55: TABLE 4.2 - NEW CUSTOMER CONNECTIONS EXPENDITURE
G57: =CONCATENATE("$0's, real ",dms_DollarReal) -> $0's, real June 2016
G58: Actual
C59: 2010-11 | D59: 2011-12 | E59: 2012-13 | F59: 2013-14 | G59: =CRCP_y5 -> 2014-15
B61: Table 4.2.1 - Unit rates - mains / services / meters (direct expenditure)
B62: Unit rates of mains per connection
B63: Electricity to gas
B64: New estates
B65: Medium density/high rise
B66: I&C tariff
B67: I&C Contract
B68: Unit rates service per connection
B69: Electricity to gas
B70: New estates
B71: Medium density/high rise
B72: I&C tariff
B73: I&C Contract
B74: Unit rates of meter per connection
B75: Electricity to gas
B76: New estates
B77: Medium density/high rise
B78: I&C tariff
B79: I&C Contract
B81: Source(s) of data:
G82: 0
B83: Table 4.2.2 - Electricity to gas expenditure
B84: Number of new electricity to gas connections | C84: =C23 -> 661 | D84: 754 | E84: 769 | F84: 614 | G84: =G23 -> 508
B85: Direct contractor expenditure (excl escalation)
B86: Distribution mains
B87: Service pipes
B88: Meters
B89: Total contractor expenditure (excl escalation)
B90: Direct internal labour expenditure (excl escalation)
B91: Distribution mains
B92: Service pipes
B93: Meters
B94: Total labour expenditure (excl escalation)
B95: Other internal direct expenditure (excl escalation)
B96: Distribution mains
B97: Service pipes
B98: Meters
B99: Total material expenditure (excl escalation)
B100: Total direct expenditure (excl escalation)
B101: Distribution mains
B102: Service pipes
B103: Meters
B104: Total direct expenditure (excl escalation)
B105: Escalation
B106: Total direct expenditure (inc escalation)
B107: Total overhead expenditure
B108: Related party margin expenditure
B109: Total gross expenditure
B110: Less customer contributions
B111: Total net expenditure
B112: Source(s) of data:
G113: 0
B114: Table 4.2.3 - New homes
B115: Number of new estates connections | C115: =C24 -> 2108 | D115: 1743 | E115: 1754 | F115: 1656 | G115: =G24 -> 1740
B116: Direct contractor expenditure (excl escalation)
B117: Distribution mains
B118: Service pipes
B119: Meters
B120: Total contractor expenditure (excl escalation)
B121: Direct internal labour expenditure (excl escalation)
B122: Distribution mains
B123: Service pipes
B124: Meters
B125: Total labour expenditure (excl escalation)
B126: Other internal direct expenditure (excl escalation)
B127: Distribution mains
B128: Service pipes
B129: Meters
B130: Total material expenditure (excl escalation)
B131: Total direct expenditure (excl escalation)
B132: Distribution mains
B133: Service pipes
B134: Meters
B135: Total direct expenditure (excl escalation)
B136: Escalation
B137: Total direct expenditure (inc escalation)
B138: Total overhead expenditure
B139: Related party margin expenditure
B140: Total gross expenditure
B141: Less customer contributions
B142: Total net expenditure
B143: Source(s) of data:
G144: 0
B145: Table 4.2.4 - Medium density / high rise
B146: Number of new medium density/high rise connections | C146: =C25 -> 1553 | D146: 1752 | E146: 2722 | F146: 2217 | G146: =G25 -> 2891
B147: Direct contractor expenditure (excl escalation)
B148: Distribution mains
B149: Service pipes
B150: Meters
B151: MDL
B152: Total contractor expenditure (excl escalation)
B153: Direct internal labour expenditure (excl escalation)
B154: Distribution mains
B155: Service pipes
B156: Meters
B157: MDL
B158: Total labour expenditure (excl escalation)
B159: Other internal direct expenditure (excl escalation)
B160: Distribution mains
B161: Service pipes
B162: Meters
B163: MDL
B164: Total material expenditure (excl escalation)
B165: Total direct expenditure (excl escalation)
B166: Distribution mains
B167: Service pipes
B168: Meters
B169: MDL
B170: Total direct expenditure (excl escalation)
B171: Escalation
B172: Total direct expenditure (inc escalation)
B173: Total overhead expenditure
B174: Related party margin expenditure
B175: Total gross expenditure
B176: Less customer contributions
B177: Total net expenditure
B178: Source(s) of data:
G179: 0
B180: Table 4.2.5 - I&C tariff
B181: Number of new I&C tariff connections | C181: =C26 -> 79 | D181: 77 | E181: 96 | F181: 106 | G181: =G26 -> 79
B182: Direct contractor expenditure (excl escalation)
B183: Distribution mains
B184: Service pipes
B185: Meters
B186: Total contractor expenditure (excl escalation)
B187: Direct internal labour expenditure (excl escalation)
B188: Distribution mains
B189: Service pipes
B190: Meters
B191: Total labour expenditure (excl escalation)
B192: Other internal direct expenditure (excl escalation)
B193: Distribution mains
B194: Service pipes
B195: Meters
B196: Total material expenditure (excl escalation)
B197: Total direct expenditure (excl escalation)
B198: Distribution mains
B199: Service pipes
B200: Meters
B201: Total direct expenditure (excl escalation)
B202: Escalation
B203: Total direct expenditure (inc escalation)
B204: Total overhead expenditure
B205: Related party margin expenditure
B206: Total gross expenditure
B207: Less customer contributions
B208: Total net expenditure
B209: Source(s) of data:
G210: 0
B211: Table 4.2.6 - I&C Contract
B212: Number of new I&C Contract connections | C212: =C27 -> 6 | D212: 2 | E212: 4 | F212: 4 | G212: =G27 -> 0
B213: Direct contractor expenditure (excl escalation)
... 72 more rows

Sheet 5. Augmentation growth capacity
E1: =SheetHeader -> REGULATORY REPORTING STATEMENT
E2: =dms_TradingName -> ActewAGL Distribution
E3: =CONCATENATE(FRCP_y1," to ",FRCP_y5) -> 2016-17 to 2020-21
E4: 5. AUGMENTATION/GROWTH CAPACITY CAPITAL EXPENDITURE
A6: Asset category
A7: HPM | B7: HP mains | E7: Instructions
A8: HPS | B8: HP services | E8: This template asks for information relating to augmentation capital expenditure
A9: MPM | B9: MP mains
A10: MPS | B10: MP services | E10: As set out in cl.6.1 of the ActewAGL RIN, for tables 5.1 to 5.2, where the requested data is captured in the ActewAGL capex model it is not required to be reentered in the RIN template tables. If the requested data has not been provided in the ActewAGL RIN please enter into the tables. This may require the insertion of new lines in each table.
A11: TRS | B11: TRS & DRS - valves & regulators | E11: Reported expenditure is to be entered EXCLUSIVE of any profit margins or management fees paid pursuant to arrangements or contracts with any related parties. Include any related party margins or management fees in the separate 'Related party margin' line item.
A12: TM | B12: Tariff meters | E12: Subject to cl.6.1 of the ActewAGL RIN, where linked/adjustable overhead expenditure and related party margin expenditure is not provided in the ActewAGL capex model, overhead expenditure and related party margin expenditure should be linked to allocations derived in tabs '12 - Overheads' and '13 - Related party transactions'.
A13: RC | B13: Regulatory expenditure | E13: Capital expenditure amounts entered should be GROSS of customer contributions. There is a separate line item for customer contributions from which net capital expenditure is derived.
A14: ITS | B14: IT System | E14: For the conversion of Tables 5.1 to 5.3 to real $2014-15 check the accuracy of the CPI escalation used.
G15: 0
E16: Table 5 - AUGMENTATION / GROWTH CAPITAL EXPENDITURE
E17: Table 5.1 - Network Augmentation/ Growth capacity development (actual/forecast)
H18: Next access arrangement period | I18: Supporting documentation (business case, costing spreadsheet, contracts)
G19: =CONCATENATE("$0's, real ",dms_DollarReal) -> $0's, real June 2016
A20: Internal identification code | B20: Asset category | C20: Percent allocation | G20: Actual
G21: =CRCP_y5 -> 2014-15 | H21: Variance (actual vs approved) %
E22: 160401 - HUME New Hume Primary Regulating Station | F22: Direct internal labour expenditure | G22: 0
F23: Direct contractor expenditure | G23: 3172215
F24: Other internal direct expenditure | G24: 0
F25: Total direct expenditure (excl escalation) | G25: =SUM(G22:G24) -> 3172215
F26: Escalation | G26: 0
F27: Total direct expenditure (inc escalation) | G27: 3172215
F28: Total overhead expenditure | G28: 0
F29: Related party margin expenditure | G29: 0
F30: Total gross expenditure | G30: =SUM(G27:G29) -> 3172215 | H30: =SUM(H28:H29) -> 0
F31: Less customer contributions | G31: 0
F32: Total net expenditure | G32: =G30-G31 -> 3172215 | H32: =H30-H31 -> 0
E33: 160404 - HUME Primary Mains | F33: Direct internal labour expenditure | G33: 0
F34: Direct contractor expenditure | G34: 4021985
F35: Other internal direct expenditure | G35: 0
F36: Total direct expenditure (excl escalation) | G36: 4021985
F37: Escalation | G37: 0
F38: Total direct expenditure (inc escalation) | G38: 4021985
F39: Total overhead expenditure | G39: 0
F40: Related party margin expenditure | G40: 0
F41: Total gross expenditure | G41: =SUM(G38,G39:G40) -> 4021985 | H41: =SUM(H39:H40) -> 0
F42: Less customer contributions | G42: 0
F43: Total net expenditure | G43: =G41-G42 -> 4021985 | H43: =H41-H42 -> 0
E44: 160408 - AMAROO - Capacity Development | F44: Direct internal labour expenditure | G44: 0
F45: Direct contractor expenditure | G45: 2235445
F46: Other internal direct expenditure | G46: 0
F47: Total direct expenditure (excl escalation) | G47: 2235445
F48: Escalation | G48: 0
F49: Total direct expenditure (inc escalation) | G49: 2235445
F50: Total overhead expenditure | G50: 0
F51: Related party margin expenditure | G51: 0
F52: Total gross expenditure | G52: =SUM(G49,G50:G51) -> 2235445 | H52: =SUM(H50:H51) -> 0
F53: Less customer contributions | G53: 0
F54: Total net expenditure | G54: =G52-G53 -> 2235445 | H54: =H52-H53 -> 0
E55: 160409 - HUME - TUGGERANONG Interconnection Stage 2 | F55: Direct internal labour expenditure | G55: 0
F56: Direct contractor expenditure | G56: 22879
F57: Other internal direct expenditure | G57: 0
F58: Total direct expenditure (excl escalation) | G58: 22879
F59: Escalation | G59: 0
F60: Total direct expenditure (inc escalation) | G60: 22879
F61: Total overhead expenditure | G61: 0
F62: Related party margin expenditure | G62: 0
F63: Total gross expenditure | G63: =SUM(G60,G61:G62) -> 22879 | H63: =SUM(H61:H62) -> 0
F64: Less customer contributions | G64: 0
F65: Total net expenditure | G65: =G63-G64 -> 22879 | H65: =H63-H64 -> 0
E66: 160783 - MOLONGLO Secondary Extension STAGE 1 - CDP | F66: Direct internal labour expenditure | G66: 0
F67: Direct contractor expenditure | G67: 362527
F68: Other internal direct expenditure | G68: 0
F69: Total direct expenditure (excl escalation) | G69: 362527
F70: Escalation | G70: 0
F71: Total direct expenditure (inc escalation) | G71: 362527
F72: Total overhead expenditure | G72: 0
F73: Related party margin expenditure | G73: 0
F74: Total gross expenditure | G74: =SUM(G71,G72:G73) -> 362527 | H74: =SUM(H72:H73) -> 0
F75: Less customer contributions | G75: 0
F76: Total net expenditure | G76: =G74-G75 -> 362527 | H76: 0
E77: 20000486 - DUFFY, Eucumbene Drive CD | F77: Direct internal labour expenditure | G77: 0
F78: Direct contractor expenditure | G78: 225
F79: Other internal direct expenditure | G79: 0
F80: Total direct expenditure (excl escalation) | G80: 225
F81: Escalation | G81: 0
F82: Total direct expenditure (inc escalation) | G82: 225
F83: Total overhead expenditure | G83: 0
F84: Related party margin expenditure | G84: 0
F85: Total gross expenditure | G85: =SUM(G82:G84) -> 225 | H85: =SUM(H83:H84) -> 0
F86: Less customer contributions | G86: 0
F87: Total net expenditure | G87: =G85-G86 -> 225 | H87: =H85-H86 -> 0
E88: 20001433 - WATSON PHILLIP PRS 399AS Regulator Replacement | F88: Direct internal labour expenditure | G88: 0
F89: Direct contractor expenditure | G89: 316923
F90: Other internal direct expenditure | G90: 0
F91: Total direct expenditure (excl escalation) | G91: 316923
F92: Escalation
F93: Total direct expenditure (inc escalation) | G93: =SUM(G91:G92) -> 316923
F94: Total overhead expenditure
F95: Related party margin expenditure | G95: 0
F96: Total gross expenditure | G96: =SUM(G93:G95) -> 316923 | H96: 0
F97: Less customer contributions
F98: Total net expenditure | G98: =G96-G97 -> 316923 | H98: 0
E99: 20001434 - MONCRIEFF Secondary Extension - CDP | F99: Direct internal labour expenditure | G99: 0
F100: Direct contractor expenditure | G100: 231471
F101: Other internal direct expenditure | G101: 0
F102: Total direct expenditure (excl escalation) | G102: 231471
F103: Escalation
F104: Total direct expenditure (inc escalation) | G104: =SUM(G102:G103) -> 231471
F105: Total overhead expenditure
F106: Related party margin expenditure | G106: 0
F107: Total gross expenditure | G107: =SUM(G104:G106) -> 231471 | H107: 0
F108: Less customer contributions
F109: Total net expenditure | G109: =G107-G108 -> 231471 | H109: 0
E110: 20000749 - FORDE, Mulligans Flat Road Capacity Development Mains Medium Pressure - 586580 | F110: Direct internal labour expenditure | G110: 0
F111: Direct contractor expenditure | G111: 10367
F112: Other internal direct expenditure | G112: 0
F113: Total direct expenditure (excl escalation) | G113: 10367
F114: Escalation
F115: Total direct expenditure (inc escalation) | G115: =SUM(G113:G114) -> 10367
F116: Total overhead expenditure
F117: Related party margin expenditure | G117: 0
F118: Total gross expenditure | G118: =SUM(G115:G117) -> 10367 | H118: 0
F119: Less customer contributions
F120: Total net expenditure | G120: =G118-G119 -> 10367 | H120: 0
E121: 20000750 - STIRLING, Freemantle Drive Capacity Development Mains Medium Pressure - 586582 | F121: Direct internal labour expenditure | G121: 0
F122: Direct contractor expenditure | G122: 11528
F123: Other internal direct expenditure | G123: 0
F124: Total direct expenditure (excl escalation) | G124: 11528
F125: Escalation
F126: Total direct expenditure (inc escalation) | G126: =SUM(G124:G125) -> 11528
F127: Total overhead expenditure
F128: Related party margin expenditure | G128: 0
F129: Total gross expenditure | G129: =SUM(G126:G128) -> 11528 | H129: 0
F130: Less customer contributions
F131: Total net expenditure | G131: =G129-G130 -> 11528 | H131: 0
E132: 20000809 - M76730 O'CONNOR, Dryandra Street Capacity Development (210 kpa) | F132: Direct internal labour expenditure | G132: 0
F133: Direct contractor expenditure | G133: 1975
F134: Other internal direct expenditure | G134: 0
F135: Total direct expenditure (excl escalation) | G135: 1975
F136: Escalation
F137: Total direct expenditure (inc escalation) | G137: =SUM(G135:G136) -> 1975
F138: Total overhead expenditure
F139: Related party margin expenditure | G139: 0
F140: Total gross expenditure | G140: =SUM(G137:G139) -> 1975 | H140: 0
F141: Less customer contributions
F142: Total net expenditure | G142: =G140-G141 -> 1975 | H142: 0
E143: 20000810 - M76529 EVATT, McDowell Street - CD | F143: Direct internal labour expenditure | G143: 0
F144: Direct contractor expenditure | G144: 5760
F145: Other internal direct expenditure | G145: 0
F146: Total direct expenditure (excl escalation) | G146: 5760
F147: Escalation
F148: Total direct expenditure (inc escalation) | G148: =SUM(G146:G147) -> 5760
F149: Total overhead expenditure
F150: Related party margin expenditure | G150: 0
F151: Total gross expenditure | G151: =SUM(G148:G150) -> 5760 | H151: 0
F152: Less customer contributions
F153: Total net expenditure | G153: =G151-G152 -> 5760 | H153: 0
E154: 20000808 - M76726 FARRER, Longerong Street - CDP (210kPA) Capacity Development New PE80 Pipe | F154: Direct internal labour expenditure | G154: 0
F155: Direct contractor expenditure | G155: 34738
F156: Other internal direct expenditure | G156: 0
F157: Total direct expenditure (excl escalation) | G157: 34738
F158: Escalation
F159: Total direct expenditure (inc escalation) | G159: =SUM(G157:G158) -> 34738
F160: Total overhead expenditure
F161: Related party margin expenditure | G161: 0
F162: Total gross expenditure | G162: =SUM(G159:G161) -> 34738 | H162: 0
F163: Less customer contributions
F164: Total net expenditure | G164: =G162-G163 -> 34738 | H164: 0
E165: 20001087 - HARRISON, Manning Clarke Crescent Capacity Development - 586578 | F165: Direct internal labour expenditure | G165: 0
F166: Direct contractor expenditure | G166: 18188
F167: Other internal direct expenditure | G167: 0
F168: Total direct expenditure (excl escalation) | G168: 18188
F169: Escalation
F170: Total direct expenditure (inc escalation) | G170: =SUM(G168:G169) -> 18188
F171: Total overhead expenditure
F172: Related party margin expenditure | G172: 0
F173: Total gross expenditure | G173: =SUM(G170:G172) -> 18188 | H173: 0
F174: Less customer contributions
F175: Total net expenditure | G175: =G173-G174 -> 18188 | H175: 0
E176: 20001088 - BRUCE,Thynne Street Capacity Development - 586578 | F176: Direct internal labour expenditure | G176: 0
F177: Direct contractor expenditure | G177: 58200
F178: Other internal direct expenditure | G178: 0
F179: Total direct expenditure (excl escalation) | G179: 58200
F180: Escalation
F181: Total direct expenditure (inc escalation) | G181: =SUM(G179:G180) -> 58200
F182: Total overhead expenditure
F183: Related party margin expenditure | G183: 0
F184: Total gross expenditure | G184: =SUM(G181:G183) -> 58200 | H184: 0
F185: Less customer contributions
F186: Total net expenditure | G186: =G184-G185 -> 58200 | H186: 0
E187: 20001762 - REID, Euree Street Mains Project Extension | F187: Direct internal labour expenditure | G187: 0
F188: Direct contractor expenditure | G188: 58152
F189: Other internal direct expenditure | G189: 0
F190: Total direct expenditure (excl escalation) | G190: 58152
F191: Escalation
F192: Total direct expenditure (inc escalation) | G192: =SUM(G190:G191) -> 58152
F193: Total overhead expenditure
F194: Related party margin expenditure | G194: 0
F195: Total gross expenditure | G195: =SUM(G192:G194) -> 58152 | H195: 0
F196: Less customer contributions
F197: Total net expenditure | G197: =G195-G196 -> 58152 | H197: 0
E198: 20001986 - KAMBAH, Drakeford Drive Mains Extension | F198: Direct internal labour expenditure | G198: 0
F199: Direct contractor expenditure | G199: 12926
F200: Other internal direct expenditure | G200: 0
F201: Total direct expenditure (excl escalation) | G201: 12926
... 50 more rows

Sheet 6. Mains & services renewal
E1: =SheetHeader -> REGULATORY REPORTING STATEMENT
E2: =dms_TradingName -> ActewAGL Distribution
E3: =CONCATENATE(FRCP_y1," to ",FRCP_y5) -> 2016-17 to 2020-21 | F3: =CONCATENATE(LEFT(FRCP_y1,4),"-",LEFT(FRCP_y5,2),RIGHT(FRCP_y5,2)) -> 2016-2021
E4: 6. MAINS & SERVICES RENEWAL CAPITAL EXPENDITURE
A7: Asset category | E7: Instructions
A8: HPM | B8: HP mains | E8: This template asks for information relating to mains and services renewal capital expenditure.
A9: TRS | B9: TRS & DRS - valves & regulators | E9: =CONCATENATE("As set out in cl.7.1 of the ",dms_TradingName," RIN, for tables 6.1 to 6.3, where the requested data is captured in the ",dms_TradingName," capex model it is not required to be reentered in the RIN template tables. If the requested data has not been provided in the ",dms_TradingName," capex model please enter into the tables below. This may require the insertion of new lines in each table.") -> As set out in cl.7.1 of the ActewAGL Distribution RIN, for tables 6.1 to 6.3, where the requested data is captured in the ActewAGL Distribution capex model it is not required to be reentered in the RIN template tables. If the requested data has not been provided in the ActewAGL Distribution capex model please enter into the tables below. This may require the insertion of new lines in each table.
A10: CM | B10: Contract meters | E10: Reported expenditure is to be entered EXCLUSIVE of any profit margins or management fees paid pursuant to arrangements or contracts with any related parties. Include any related party margins or management fees in the separate 'Related party margin' line item.
A11: ITS | B11: IT System | E11: =CONCATENATE("Subject to cl.7.1 of the ",dms_TradingName," RIN, where linked/adjustable overhead expenditure and related party margin expenditure is not provided in the ",dms_TradingName," capex model, overhead expenditure and related party margin expenditure should be linked to allocations derived in tabs '14. Overheads' and '15. Related party transactions'.") -> Subject to cl.7.1 of the ActewAGL Distribution RIN, where linked/adjustable overhead expenditure and related party margin expenditure is not provided in the ActewAGL Distribution capex model, overhead expenditure and related party margin expenditure should be linked to allocations derived in tabs '14. Overheads' and '15. Related party transactions'.
A12: ERC | B12: Equity raising expenditure | E12: Capital expenditure amounts entered should be GROSS of customer contributions. There is a separate line item for customer contributions from which net capital expenditure is derived.
E13: For the conversion to real $ check the accuracy of the CPI escalation used.
G15: 0
E16: Table 6 - MAINS & SERVICES RENEWAL CAPITAL EXPENDITURE
E17: Table 6.1 - Mains & services renewal expenditure (actual/forecast)
E18: Table 6.1.1 - Proactive mains replacement expenditure
G20: =CONCATENATE("$0's, real ",dms_DollarReal) -> $0's, real June 2016
G21: Actual
G22: =CRCP_y5 -> 2014-15 | H22: Variance (actual v approved) %
E23: [insert project name] | F23: Length of mains replaced (metres) | H23: =SUM(#REF!)/SUM(#REF!)-1 -> 
F24: Low pressure - high pressure | H24: =SUM(#REF!)/SUM(#REF!)-1 -> 
F25: Low pressure - medium pressure | H25: =SUM(#REF!)/SUM(#REF!)-1 -> 
F26: Low pressure - low pressure | H26: =SUM(#REF!)/SUM(#REF!)-1 -> 
F27: Medium pressure - medium pressure | H27: =SUM(#REF!)/SUM(#REF!)-1 -> 
F28: Medium pressure - high pressure | G28: =SUM(G23:G27) -> 0 | H28: =SUM(#REF!)/SUM(#REF!)-1 -> 
F29: Total volume
F30: Direct expenditure
F31: Direct expenditure
F32: Direct internal labour expenditure
F33: Direct contractor expenditure
F34: Other internal direct expenditure | H34: =SUM(#REF!)/SUM(#REF!)-1 -> 
F35: Total direct expenditure (excl escalation) | G35: =SUM(G32:G34) -> 0
F36: Escalation
F37: Total direct expenditure (inc escalation) | G37: =SUM(G35:G36) -> 0
F38: Total overhead expenditure | H38: =SUM(#REF!)/SUM(#REF!)-1 -> 
F39: Related party margin expenditure
F40: Total gross expenditure | G40: =SUM(G37:G39) -> 0 | H40: =SUM(#REF!)/SUM(#REF!)-1 -> 
F41: Less customer contributions
F42: Total net expenditure | G42: =G40-G41 -> 0 | H42: =SUM(#REF!)/SUM(#REF!)-1 -> 
E44: TOTALS | F44: Length of mains replaced (metres) | G44: =SUMIF($F$43:$H$43,"Length of mains replaced (metres)",G43:G43) -> 0 | H44: =SUMIF($F$43:$H$43,"Length of mains replaced (metres)",H43:H43) -> 0
F45: Direct expenditure
F46: Direct internal labour expenditure | G46: =SUMIF($F$43:$H$43,"Direct contractor expenditure on mains replaced (excl. escalation)",G43:G43) -> 0 | H46: =SUMIF($F$43:$H$43,"Direct contractor expenditure on mains replaced (excl. escalation)",H43:H43) -> 0
F47: Direct contractor expenditure | G47: =SUMIF($F$43:$H$43,"Direct internal labour expenditure on mains replaced (excl. escalation)",G43:G43) -> 0 | H47: =SUMIF($F$43:$H$43,"Direct internal labour expenditure on mains replaced (excl. escalation)",H43:H43) -> 0
F48: Other internal direct expenditure | G48: =SUMIF($F$43:$H$43,"Direct material expenditure on mains replaced (excl. escalation)",G43:G43) -> 0 | H48: =SUMIF($F$43:$H$43,"Direct material expenditure on mains replaced (excl. escalation)",H43:H43) -> 0
F49: Total direct expenditure (excl escalation) | G49: =SUM(G46:G48) -> 0 | H49: =SUMIF($F$43:$H$43,"Total direct expenditure on mains replaced (excl. escalation)",H43:H43) -> 0
F50: Escalation
F51: Total direct expenditure (inc escalation) | G51: =SUM(G49:G50) -> 0
F52: Total overhead expenditure | H52: =SUMIF($F$43:$H$43,"Total overhead expenditure on mains replaced",H43:H43) -> 0
F53: Related party margin expenditure | H53: =SUMIF($F$43:$H$43,"Related party margin expenditure",H43:H43) -> 0
F54: Total gross expenditure | G54: =SUM(G51:G53) -> 0 | H54: =SUM(H52:H53) -> 0
F55: Less customer contributions | H55: =SUMIF($F$43:$H$43,"Less customer contributions",H43:H43) -> 0
F56: Total net expenditure | G56: =G54-G55 -> 0 | H56: =SUMIF($F$43:$H$43,"Net total expenditure on mains replaced (incl. escalation)",H43:H43) -> 0
E57: Source(s) of data:
G58: 0
E59: Table 6.1.2 - Ad hoc/reactive mains and services replacement
G61: =CONCATENATE("$0's, real ",dms_DollarReal) -> $0's, real June 2016 | H61: Variance
G62: Actual | H62: Actual v approved
G63: =CRCP_y5 -> 2014-15 | H63: %
E64: 150634 - Relocate steel gas main Corranderrk Street, Reid | F64: Length of mains replaced (metres) | H64: =SUM(#REF!)/SUM(#REF!)-1 -> 
F65: Direct expenditure
F66: Direct internal labour expenditure
F67: Direct contractor expenditure
F68: Other internal direct expenditure
F69: Total direct expenditure (excl escalation) | H69: =SUM(#REF!)/SUM(#REF!)-1 -> 
F70: Escalation
F71: Total direct expenditure (inc escalation)
F72: Total overhead expenditure | H72: =SUM(#REF!)/SUM(#REF!)-1 -> 
F73: Related party margin expenditure | H73: =SUM(#REF!)/SUM(#REF!)-1 -> 
F74: Total gross expenditure | H74: =SUM(#REF!)/SUM(#REF!)-1 -> 
F75: Less customer contributions | H75: =SUM(#REF!)/SUM(#REF!)-1 -> 
F76: Total net expenditure | H76: =SUM(#REF!)/SUM(#REF!)-1 -> 
E77: 160358 - DR48 Relocation - Watson ACT | F77: Length of mains replaced (metres) | H77: =SUM(#REF!)/SUM(#REF!)-1 -> 
F78: Direct expenditure
F79: Direct internal labour expenditure
F80: Direct contractor expenditure
F81: Other internal direct expenditure
F82: Total direct expenditure (excl escalation) | H82: =SUM(#REF!)/SUM(#REF!)-1 -> 
F83: Escalation
F84: Total direct expenditure (inc escalation)
F85: Total overhead expenditure | H85: =SUM(#REF!)/SUM(#REF!)-1 -> 
F86: Related party margin expenditure | H86: =SUM(#REF!)/SUM(#REF!)-1 -> 
F87: Total gross expenditure | H87: =SUM(#REF!)/SUM(#REF!)-1 -> 
F88: Less customer contributions | H88: =SUM(#REF!)/SUM(#REF!)-1 -> 
F89: Total net expenditure | H89: =SUM(#REF!)/SUM(#REF!)-1 -> 
E90: ActewAGL Funded Relocation Projects | F90: Length of mains replaced (metres) | H90: =SUM(#REF!)/SUM(#REF!)-1 -> 
F91: Direct expenditure (excl escalation)
F92: Direct internal labour expenditure (excl escalation) | G92: 0
F93: Direct contractor expenditure (excl escalation) | G93: 0
F94: Other internal direct expenditure (excl escalation) | G94: 0
F95: Total direct expenditure (excl escalation) | G95: =SUM(G92:G94) -> 0 | H95: =SUM(#REF!)/SUM(#REF!)-1 -> 
F96: Escalation | G96: 0
F97: Total direct expenditure (inc escalation)
F98: Total overhead expenditure | G98: 0 | H98: =SUM(#REF!)/SUM(#REF!)-1 -> 
F99: Related party margin expenditure | G99: =G$58*G93 -> 0 | H99: =SUM(#REF!)/SUM(#REF!)-1 -> 
F100: Total gross expenditure | G100: =SUM(G95:G99) -> 0 | H100: =SUM(#REF!)/SUM(#REF!)-1 -> 
F101: Less customer contributions | G101: 0 | H101: =SUM(#REF!)/SUM(#REF!)-1 -> 
F102: Total net expenditure | G102: =G100-G101 -> 0 | H102: =SUM(#REF!)/SUM(#REF!)-1 -> 
F103: Services replaced (number) | H103: =SUM(#REF!)/SUM(#REF!)-1 -> 
F104: Direct expenditure (excl escalation)
F105: Direct internal labour expenditure (excl escalation) | G105: 0
F106: Direct contractor expenditure (excl escalation)
F107: Other internal direct expenditure (excl escalation)
F108: Total direct expenditure (excl escalation) | H108: =SUM(#REF!)/SUM(#REF!)-1 -> 
F109: Escalation
F110: Total direct expenditure (inc escalation)
F111: Total overhead expenditure | H111: =SUM(#REF!)/SUM(#REF!)-1 -> 
F112: Related party margin expenditure | H112: =SUM(#REF!)/SUM(#REF!)-1 -> 
F113: Total gross expenditure | H113: =SUM(#REF!)/SUM(#REF!)-1 -> 
F114: Less customer contributions | H114: =SUM(#REF!)/SUM(#REF!)-1 -> 
F115: Total net expenditure | H115: =SUM(#REF!)/SUM(#REF!)-1 -> 
E116: Total | F116: Direct expenditure
F117: Direct internal labour expenditure | H117: =SUM(#REF!)/SUM(#REF!)-1 -> 
F118: Direct contractor expenditure | H118: =SUM(#REF!)/SUM(#REF!)-1 -> 
F119: Other internal direct expenditure | H119: =SUM(#REF!)/SUM(#REF!)-1 -> 
F120: Total direct expenditure (excl escalation) | H120: =SUM(#REF!)/SUM(#REF!)-1 -> 
F121: Escalation
F122: Total direct expenditure (inc escalation)
F123: Total overhead expenditure | H123: =SUM(#REF!)/SUM(#REF!)-1 -> 
F124: Related party margin | H124: =SUM(#REF!)/SUM(#REF!)-1 -> 
F125: Total gross expenditure | H125: =SUM(#REF!)/SUM(#REF!)-1 -> 
F126: Less customer contributions | H126: =SUM(#REF!)/SUM(#REF!)-1 -> 
F127: Total net expenditure | H127: =SUM(#REF!)/SUM(#REF!)-1 -> 
E128: Source(s) of data:
E130: Table 6.1.3 - Total mains replacement expenditure
F131: Total direct expenditure (excl escalation) | H131: =SUM(#REF!)/SUM(#REF!)-1 -> 
F132: Escalation
F133: Total direct expenditure (inc escalation)
F134: Total overhead cost | H134: =SUM(#REF!)/SUM(#REF!)-1 -> 
F135: Total related party margin | H135: =SUM(#REF!)/SUM(#REF!)-1 -> 
F136: Total gross expenditure | H136: =SUM(#REF!)/SUM(#REF!)-1 -> 
F137: Less total customer contributions | H137: =SUM(#REF!)/SUM(#REF!)-1 -> 
F138: Total net expenditure | H138: =SUM(#REF!)/SUM(#REF!)-1 -> 
E139: Source(s) of data:

Sheet 7. Facilities renewal & upgrade
E1: =SheetHeader -> REGULATORY REPORTING STATEMENT
E2: =dms_TradingName -> ActewAGL Distribution
E3: =CONCATENATE(FRCP_y1," to ",FRCP_y5) -> 2016-17 to 2020-21
E4: 7. FACILITIES RENEWAL AND UPGRADE CAPITAL EXPENDITURE
A7: HPM | B7: HP mains | E7: Instructions
A8: HPS | B8: HP services | E8: This template asks for information relating to facilities renewal and upgrade capital expenditure
A9: MPM | B9: MP mains | E9: =CONCATENATE("As set out in cl.6.1 of the ",dms_TradingName," RIN, for tables 8.1 to 8.2, where the requested data is captured in the ",dms_TradingName," capex model it is not required to be reentered in the RIN template tables. If the requested data has not been provided in the ",dms_TradingName," capex model, please enter into the tables below. This may require the insertion of new lines in each table.") -> As set out in cl.6.1 of the ActewAGL Distribution RIN, for tables 8.1 to 8.2, where the requested data is captured in the ActewAGL Distribution capex model it is not required to be reentered in the RIN template tables. If the requested data has not been provided in the ActewAGL Distribution capex model, please enter into the tables below. This may require the insertion of new lines in each table.
A10: MPS | B10: MP services | E10: Reported expenditure is to be entered EXCLUSIVE of any profit margins or management fees paid pursuant to arrangements or contracts with any related parties. Include any related party margins or management fees in the separate 'Related party margin' line item.
A11: TRS | B11: TRS & DRS - valves & regulators | E11: =CONCATENATE("Subject to cl.6.1 of the ",dms_TradingName," RIN, where linked/adjustable escalation is not provided in the ",dms_TradingName," capex model, escalation should be linked to allocations derived in tab '2.Escalators'.") -> Subject to cl.6.1 of the ActewAGL Distribution RIN, where linked/adjustable escalation is not provided in the ActewAGL Distribution capex model, escalation should be linked to allocations derived in tab '2.Escalators'.
A12: CM | B12: Contract meters | E12: Subject to cl.6.1 of the ActewAGL RIN, where linked/adjustable overhead expenditure and related party margin expenditure is not provided in the ActewAGL capex model, overhead expenditure and related party margin expenditure should be linked to allocations derived in tabs '14. Overheads' and '15. Related party transactions'.
A13: TM | B13: Tariff meters | E13: Capital expenditure amounts entered should be GROSS of customer contributions. There is a separate line item for customer contributions from which net capital expenditure is derived.
A14: ITS | B14: IT System | E14: Capital expenditure amounts entered should be GROSS of customer contributions. There is a separate line item for customer contributions from which net capital expenditure is derived.
G15: 0
E16: Table 7 - FACILITIES RENEWAL AND UPGRADE CAPITAL EXPENDITURE
E17: Table 7.1 - Facilities renewal and upgrade expenditure (actual / forecast)
I18: Supporting documentation (business case, costing spreadsheet, contracts)
G19: $0's, real June 2016
A20: Internal identification code | B20: Asset category | C20: Percent allocation | G20: Actual
G21: =CRCP_y5 -> 2014-15 | H21: Variance (actual vs approved) %
E22: Facilities
E23: 160763 - Canberra Primary Main Pigging Facilities | F23: Direct expenditure
F24: Direct internal labour expenditure | G24: 0
F25: Direct contractor expenditure | G25: 1958323.593
F26: Other internal direct expenditure | G26: 0
F27: Total direct expenditure (excl escalation) | G27: 1958323.593
F28: Escalation
F29: Total direct expenditure (inc escalation) | G29: 1958323.593
F30: Total overhead expenditure
F31: Related party margin expenditure | G31: 0
F32: Total gross expenditure | G32: 1958323.593
F33: Less customer contributions
F34: Total net expenditure | G34: 1958323.593
E35: 160782 - Canberra Primary Main Majura Weld Misalignment | F35: Direct expenditure
F36: Direct internal labour expenditure
F37: Direct contractor expenditure | G37: 282978
F38: Other internal direct expenditure
F39: Total direct expenditure (excl escalation) | G39: =SUM(G36:G38) -> 282978
F40: Escalation
F41: Total direct expenditure (inc escalation) | G41: =SUM(G39:G40) -> 282978
F42: Total overhead expenditure
F43: Related party margin expenditure
F44: Total gross expenditure | G44: =SUM(G41:G43) -> 282978
F45: Less customer contributions
F46: Total net expenditure | G46: =G44-G45 -> 282978
E47: 20001713 - Canberra DCVG Defect Survey | F47: Direct expenditure
F48: Direct internal labour expenditure
F49: Direct contractor expenditure | G49: 12948
F50: Other internal direct expenditure
F51: Total direct expenditure (excl escalation) | G51: =SUM(G48:G50) -> 12948
F52: Escalation
F53: Total direct expenditure (inc escalation) | G53: =SUM(G51:G52) -> 12948
F54: Total overhead expenditure
F55: Related party margin expenditure
F56: Total gross expenditure | G56: =SUM(G53:G55) -> 12948
F57: Less customer contributions
F58: Total net expenditure | G58: =G56-G57 -> 12948
E59: 20002091 - Phillip PRS - Regulator on Bypass | F59: Direct expenditure (excl escalation)
F60: Direct internal labour expenditure (excl escalation) | G60: 0
F61: Direct contractor expenditure (excl escalation) | G61: 113698
F62: Other internal direct expenditure (excl escalation) | G62: 0
F63: Total direct expenditure (excl escalation) | G63: =SUM(G60:G62) -> 113698
F64: Escalation | G64: 0
F65: Total direct expenditure (inc escalation) | G65: =SUM(G63:G64) -> 113698
F66: Total overhead expenditure | G66: 0
F67: Related party margin expenditure | G67: 0
F68: Total gross expenditure | G68: =SUM(G65:G67) -> 113698 | H68: =SUM(H65:H67) -> 0
F69: Less customer contributions | G69: 0
F70: Total net expenditure | G70: =G68-G69 -> 113698
E71: 20002094 - Canberra Primary Main Isolation Valve | F71: Direct expenditure (excl escalation)
F72: Direct internal labour expenditure (excl escalation) | G72: 0
F73: Direct contractor expenditure (excl escalation) | G73: 112409
F74: Other internal direct expenditure (excl escalation) | G74: 0
F75: Total direct expenditure (excl escalation) | G75: =SUM(G72:G74) -> 112409
F76: Escalation | G76: 0
F77: Total direct expenditure (inc escalation) | G77: =SUM(G75:G76) -> 112409
F78: Total overhead expenditure | G78: 0
F79: Related party margin expenditure | G79: 0
F80: Total gross expenditure | G80: =SUM(G77:G79) -> 112409 | H80: =SUM(H77:H79) -> 0
F81: Less customer contributions | G81: 0
F82: Total net expenditure | G82: =G80-G81 -> 112409
E83: 20001452 - Canberra Primary Main Integrity Assessment | F83: Direct expenditure (excl escalation)
F84: Direct internal labour expenditure (excl escalation) | G84: 0
F85: Direct contractor expenditure (excl escalation) | G85: 198100.7311
F86: Other internal direct expenditure (excl escalation) | G86: 0
F87: Total direct expenditure (excl escalation) | G87: 198100.7311
F88: Escalation
F89: Total direct expenditure (inc escalation) | G89: 198100.7311
F90: Total overhead expenditure
F91: Related party margin expenditure | G91: 0
F92: Total gross expenditure | G92: 198100.7311 | H92: =SUM(H89:H91) -> 0
F93: Less customer contributions
F94: Total net expenditure | G94: 198100.7311
E95: 20000487 - Canberra Airport Cathodic Protection Test Point Replacement | F95: Direct expenditure (excl escalation)
F96: Direct internal labour expenditure (excl escalation) | G96: 0
F97: Direct contractor expenditure (excl escalation) | G97: 3226
F98: Other internal direct expenditure (excl escalation) | G98: 0
F99: Total direct expenditure (excl escalation) | G99: =SUM(G96:G98) -> 3226
F100: Escalation | G100: 0
F101: Total direct expenditure (inc escalation) | G101: =SUM(G99:G100) -> 3226
F102: Total overhead expenditure | G102: 0
F103: Related party margin expenditure | G103: 0
F104: Total gross expenditure | G104: =SUM(G101:G103) -> 3226 | H104: =SUM(H101:H103) -> 0
F105: Less customer contributions | G105: 0
F106: Total net expenditure | G106: =G104-G105 -> 3226
E107: =CONCATENATE(E22, " Totals") -> Facilities Totals | F107: =CONCATENATE("Total direct expenditure (excl escalation) - ",E22) -> Total direct expenditure (excl escalation) - Facilities | G107: =SUMIF($F$23:$F$106,"Total direct expenditure (excl escalation)",G$23:G$106) -> 2681683.325
F108: =CONCATENATE("Escalation - ",E22) -> Escalation - Facilities
F109: =CONCATENATE("Total direct expenditure (inc escalation) - ",E22) -> Total direct expenditure (inc escalation) - Facilities | G109: =SUMIF($F$23:$F$106,"Total direct expenditure (inc escalation)",G$23:G$106) -> 2681683.325
F110: =CONCATENATE("Total overhead expenditure - ",E22) -> Total overhead expenditure - Facilities | G110: =SUMIF($F$23:$F$106,"Total overhead expenditure",G$23:G$106) -> 0
F111: =CONCATENATE("Total related party margin - ",E22) -> Total related party margin - Facilities | G111: =SUMIF($F$23:$F$106,"Related party margin",G$23:G$106) -> 0
F112: =CONCATENATE("Total gross expenditure - ",E22) -> Total gross expenditure - Facilities | G112: =SUMIF($F$23:$F$106,"Total gross expenditure",G$23:G$106) -> 2681683.325
F113: Less customer contributions | G113: =SUMIF($F$23:$F$106,"Less customer contributions",G$23:G$106) -> 0
F114: =CONCATENATE("Total net expenditure - ",E22) -> Total net expenditure - Facilities | G114: =SUMIF($F$23:$F$106,"Total net expenditure",G$23:G$106) -> 2681683.325
E116: SCADA Facilities & Upgrades
E117: SCADA | F117: Direct expenditure (excl escalation)
F118: Direct internal labour expenditure (excl escalation) | G118: 0
F119: Direct contractor expenditure (excl escalation)
F120: Other internal direct expenditure (excl escalation)
F121: Total direct expenditure (excl escalation)
F122: Escalation
F123: Total direct expenditure (inc escalation)
F124: Total overhead expenditure | G124: 0
F125: Related party margin expenditure | G125: 0
F126: Total gross expenditure | G126: =SUM(G123:G125) -> 0 | H126: =SUM(H123:H125) -> 0
F127: Less customer contributions | G127: 0
F128: Total net expenditure | G128: =G126-G127 -> 0
E129: =CONCATENATE(E116, " Totals") -> SCADA Facilities & Upgrades Totals | F129: =CONCATENATE("Total direct expenditure - ",E116) -> Total direct expenditure - SCADA Facilities & Upgrades | G129: =SUMIF($F$116:$F$128,"Total direct expenditure (excl escalation)",G$116:G$128) -> 0
F130: =CONCATENATE("Total overhead expenditure - ",E116) -> Total overhead expenditure - SCADA Facilities & Upgrades | G130: =SUMIF($F$116:$F$128,"Total overhead expenditure",G$116:G$128) -> 0
F131: =CONCATENATE("Total related party margin expenditure - ",E116) -> Total related party margin expenditure - SCADA Facilities & Upgrades | G131: =SUMIF($F$116:$F$128,"Related party margin",G$116:G$128) -> 0
F132: =CONCATENATE("Total gross expenditure - ",E116) -> Total gross expenditure - SCADA Facilities & Upgrades | G132: =SUMIF($F$116:$F$128,"Total gross expenditure",G$116:G$128) -> 0
F133: Less total customer contributions | G133: =SUMIF($F$116:$F$128,"Less customer contributions",G$116:G$128) -> 0
F134: =CONCATENATE("Total net expenditure - ",E116) -> Total net expenditure - SCADA Facilities & Upgrades | G134: =SUMIF($F$116:$F$128,"Total net expenditure",G$116:G$128) -> 0
E136: TOTALS | F136: Total direct expenditure (excl escalation) | G136: =SUM(G107,G129) -> 2681683.325
F137: Escalation | G137: =SUM(G108,G122) -> 0
F138: Total direct expenditure (inc escalation) | G138: =SUM(G136:G137) -> 2681683.325
F139: Total overhead expenditure | G139: =SUM(G110,G130) -> 0
F140: Related party margin expenditure | G140: =SUM(G111,G131) -> 0 | H140: 0
F141: Total gross expenditure | G141: =SUM(G138:G140) -> 2681683.325
F142: Less customer contributions | G142: =SUM(G113,G133) -> 0
F143: Total net expenditure | G143: =SUM(G114,G134) -> 2681683.325
E144: Source(s) of data:
E146: Table 7.2 - Facilities renewal and upgrade expenditure (approved)
G150: =CRCP_y5 -> 2014-15
E151: < insert sub-category >
E152: <insert project name> | F152: Direct expenditure
F153: Direct internal labour expenditure
F154: Direct contractor expenditure
F155: Other internal direct expenditure
F156: Total direct expenditure | G156: =SUM(G153:G155) -> 0
F157: Total overhead expenditure | G157: 0
F158: Related party margin expenditure | G158: 0
F159: Total gross expenditure | G159: =SUM(G157:G158) -> 0
F160: Less customer contributions
F161: Total net expenditure | G161: =G159-G160 -> 0
E162: <insert project name> | F162: Direct expenditure
F163: Direct internal labour expenditure
F164: Direct contractor expenditure
F165: Other internal direct expenditure
F166: Total direct expenditure | G166: =SUM(G163:G165) -> 0
F167: Total overhead expenditure | G167: 0
F168: Related party margin expenditure | G168: 0
F169: Total gross expenditure | G169: =SUM(G167:G168) -> 0
F170: Less customer contributions
F171: Total net expenditure | G171: =G169-G170 -> 0
E172: =CONCATENATE(E151, " Totals") -> < insert sub-category > Totals | F172: =CONCATENATE("Total direct expenditure - ",E151) -> Total direct expenditure - < insert sub-category > | G172: =SUMIF($E$152:$G$171,"Total direct expenditure (excl escalation)",G$152:G$171) -> 0
F173: =CONCATENATE("Total overhead expenditure - ", E151) -> Total overhead expenditure - < insert sub-category > | G173: =SUMIF($E$152:$G$171,"Total overhead expenditure",G$152:G$171) -> 0
F174: =CONCATENATE("Total related party margin expenditure - ",E151) -> Total related party margin expenditure - < insert sub-category > | G174: =SUMIF($E$152:$G$171,"Related party margin",G$152:G$171) -> 0
F175: =CONCATENATE("Total gross expenditure - ",E151) -> Total gross expenditure - < insert sub-category > | G175: =SUMIF($E$152:$G$171,"Total gross expenditure",G$152:G$171) -> 0
F176: Less customer contributions | G176: =SUMIF($E$152:$G$171,"Less customer contributions",G$152:G$171) -> 0
F177: =CONCATENATE("Total net expenditure - ",E152) -> Total net expenditure - <insert project name> | G177: =SUMIF($E$152:$G$171,"Total net expenditure",G$152:G$171) -> 0
E178: < insert sub-category >
E179: <insert project name> | F179: Direct expenditure
F180: Direct internal labour expenditure
F181: Direct contractor expenditure
F182: Other internal direct expenditure
F183: Total direct expenditure | G183: =SUM(G180:G182) -> 0
F184: Total overhead expenditure | G184: 0
F185: Related party margin expenditure | G185: 0
F186: Total gross expenditure | G186: =SUM(G184:G185) -> 0
F187: Less customer contributions
F188: Total net expenditure | G188: =G186-G187 -> 0
E189: <insert project name> | F189: Direct expenditure
F190: Direct internal labour expenditure
F191: Direct contractor expenditure
F192: Other internal direct expenditure
F193: Total direct expenditure | G193: =SUM(G190:G192) -> 0
F194: Total overhead expenditure | G194: 0
F195: Related party margin expenditure | G195: 0
F196: Total gross expenditure | G196: =SUM(G194:G195) -> 0
F197: Less customer contributions
F198: Total net expenditure | G198: =G196-G197 -> 0
E199: =CONCATENATE(E178, " Totals") -> < insert sub-category > Totals | F199: =CONCATENATE("Total direct expenditure - ",E178) -> Total direct expenditure - < insert sub-category > | G199: =SUMIF($E$179:$G$198,"Total direct expenditure (excl escalation)",$G$179:$G$198) -> 0
F200: =CONCATENATE("Total overhead expenditure - ", E178) -> Total overhead expenditure - < insert sub-category > | G200: =SUMIF($E$179:$G$198,"Total overhead expenditure",$G$179:$G$198) -> 0
F201: =CONCATENATE("Total related party margin expenditure - ",E178) -> Total related party margin expenditure - < insert sub-category > | G201: =SUMIF($E$179:$G$198,"Related party margin",$G$179:$G$198) -> 0
F202: =CONCATENATE("Total gross expenditure - ",E178) -> Total gross expenditure - < insert sub-category > | G202: =SUMIF($E$179:$G$198,"Total gross expenditure",$G$179:$G$198) -> 0
F203: Less customer contributions | G203: =SUMIF($E$179:$G$198,"Less customer contributions",$G$179:$G$198) -> 0
F204: =CONCATENATE("Total net expenditure - ",E178) -> Total net expenditure - < insert sub-category > | G204: =SUMIF($E$179:$G$198,"Total net expenditure",$G$179:$G$198) -> 0
E206: TOTALS | F206: Total direct expenditure | G206: =SUM(G172,G199) -> 0
F207: Total overhead expenditure | G207: =SUM(G173,G200) -> 0
F208: Total related party margin expenditure | G208: =SUM(G174,G201) -> 0
F209: Total gross expenditure | G209: =SUM(G175,G202) -> 0
... 3 more rows

Sheet 7.5 EBSS (ActewAGL)
C1: REGULATORY REPORTING STATEMENT
C2: =dms_TradingName -> 
C3: =CONCATENATE(FRCP_y1," to ",FRCP_y5) -> 
C4: 7.5 EFFICIENCY BENEFIT SHARING SCHEME - ROLLING CARRY-OVER MECHANISM
C7: Instructions
C8: The DNSP is required to populate all input cells (yellow) in table 7.5.1 presented below. Efficiency gains are calculated using the formulae below. Adjusted target and actual amounts are used to calculate the carry-over amounts. For the first application of the scheme, the efficiency carry forward amount for the first year of the regulatory period is expressed mathematically as: E1 = F1 – A1 where A1 is the actual operating cost for year 1 and F1 is the regulatory target operating cost for that year. For savings that arose in the second to fifth year of the regulatory period, the efficiency carry forward amount is calculated as: Et = (Ft – At) – (Ft-1 – At-1), where: Et is the efficiency benefit/loss in year t; At, At-1 is the actual operating cost for the years t and t-1 respectively; and Ft, Ft-1 is the forecast operating cost for the years t and t-1 respectively Because the revenue determination will occur prior to the completion of the current period, opex for the final year will be estimated as follows: A5 = F5 – (F4 – A4)
C11: CPI
D12: 2008-03-31 | E12: 2008-06-30 | F12: 2008-09-30 | G12: 2008-12-31 | H12: 2009-03-31 | I12: 2009-06-30 | J12: 2009-09-30 | K12: 2009-12-31 | L12: 2010-03-31 | M12: 2010-06-30 | N12: 2010-09-30 | O12: 2010-12-31 | P12: 2011-03-31 | Q12: 2011-06-30 | R12: 2011-09-30 | S12: 2011-12-31 | T12: 2012-03-31 | U12: 2012-06-30 | V12: 2012-09-30 | W12: 2012-12-31 | X12: 2013-03-31 | Y12: 2013-06-30 | Z12: 2013-09-30 | AA12: 2013-12-31
C13: ABS CPI index (old base)
C14: ABS CPI index (rebased index)
C16: Actual and estimated inflation
D17: Actual | N17: Actual | R17: Estimate
D18: 2009-10 | E18: 2010-11 | F18: 2011-12 | G18: 2012-13 | H18: 2013-14 | I18: 2014-15 | N18: 2009-10 | O18: 2010-11 | P18: 2011-12 | Q18: 2012-13 | R18: 2013-14 | S18: 2014-15 | T18: 2015-16
C19: ABS CPI index - sum of four quarters to December (old base), one year lagged | K19: Inflation rate (per cent), one year lagged.
C20: ABS CPI index - sum of four quarters to December (rebased index in Sep 2012), one year lagged
C22: =CONCATENATE("TABLE 7.5.1 - The carryover amounts that arise from applying the EBSS during the ", FRCP_y1," to ",FRCP_y5, " regulatory control period") -> 
C24: Table 7.5.1.1 - Opex allowance applicable to EBSS (EBSS target)
D25: Previous period | F25: Current regulatory control period | L25: Previous period | N25: Current regulatory control period | S25: Forthcoming regulatory control period
D26: $m, real 2009-10 | F26: $m, real June 2010 | L26: $m, real 2014-15 | N26: $m, real June 2016
D27: 2008-09 | E27: 2009-10 | F27: 2010-11 | G27: 2011-12 | H27: 2012-13 | I27: 2013-14 | J27: 2014-15 | L27: 2008-09 | M27: 2009-10 | N27: 2010-11 | O27: 2011-12 | P27: 2012-13 | Q27: 2013-14 | R27: 2014-15 | S27: 2016-17 | T27: 2017-18 | U27: 2018-19 | V27: 2019-20 | W27: 2020-21
A28: ED_EBS7511_00001 | C28: Total opex allowance | N28: =+F28/$N$20 -> 23.9745262 | O28: =+G28/$N$20 -> 26.21290783 | P28: =+H28/$N$20 -> 26.77972589 | Q28: =+I28/$N$20 -> 26.52545468 | R28: =+J28/$N$20 -> 26.85471809
C29: Less approved excludable expenditure
A30: ED_EBS7511_00002 | C30: Debt raising expenditure | N30: =-F30/$N$20 -> -0.1962875889 | O30: -0.2087481168 | P30: -0.2196156855 | Q30: -0.2200626285 | R30: -0.2193523515
A31: ED_EBS7511_00003 | C31: Self insurance | N31: -0.001159780367 | O31: -0.001159780367 | P31: -0.001159780367 | Q31: -0.001159780367 | R31: -0.001159780367
A32: ED_EBS7511_00004 | C32: Insurance | N32: -0.09916703497 | O32: -0.09916703497 | P32: -0.09916703497 | Q32: -0.09916703497 | R32: -0.09916703497
A33: ED_EBS7511_00005 | C33: Superannuation | N33: -0.0216927448 | O33: -0.02221750101 | P33: -0.02275495129 | Q33: -0.02330540271 | R33: -0.02380097213
A34: ED_EBS7511_00006 | C34: Non controllable expenditure (re: part 6) | N34: -5.395809436 | O34: -5.438267673 | P34: -5.503752247 | Q34: -5.574494959 | R34: -5.648520472
A35: ED_EBS7511_00007 | C35: Capitalisation policy changes | N35: 0 | O35: 0 | P35: 0 | Q35: 0 | R35: 0
A36: ED_EBS7511_00008 | C36: Adjustment due to changes in scope | N36: 0 | O36: 0 | P36: 0 | Q36: 0 | R36: 0
A37: ED_EBS7511_00009 | C37: Adjustment due to changes in number of connections | N37: 0.1449470759 | O37: 0.3900129488 | P37: 0.6805527972 | Q37: 0.992999778 | R37: 0
C38: Forecast opex for EBSS purposes | F38: =F28-SUM(F30:F37) -> 0 | G38: =G28-SUM(G30:G37) -> 0 | H38: =H28-SUM(H30:H37) -> 0 | I38: =I28-SUM(I30:I37) -> 0 | J38: =J28-SUM(J30:J37) -> 0 | N38: =+SUM(N28:N37) -> 18.4053567 | O38: =+SUM(O28:O37) -> 20.83336067 | P38: =+SUM(P28:P37) -> 21.61382898 | Q38: =+SUM(Q28:Q37) -> 21.60026465 | R38: =+SUM(R28:R37) -> 20.86271748
C41: Table 7.5.1.2 - Actual and estimated opex applicable to EBSS
D42: Previous period | F42: Current regulatory control period | L42: Previous period | N42: Current regulatory control period
D43: $m, Actual | F43: $m, Actual | L43: $m, real 2014-15 | N43: $m, real June 2016
D44: 2008-09 | E44: 2009-10 | F44: 2010-11 | G44: 2011-12 | H44: 2012-13 | I44: 2013-14 | J44: 2014-15 | L44: 2008-09 | M44: 2009-10 | N44: 2010-11 | O44: 2011-12 | P44: 2012-13 | Q44: 2013-14 | R44: 2014-15
A45: ED_EBS7512_0001 | C45: Total actual opex
C46: Approved excludable expenditure - actual
A47: ED_EBS7512_0002 | C47: =+C30 -> Debt raising expenditure
A48: ED_EBS7512_0003 | C48: =+C31 -> Self insurance
A49: ED_EBS7512_0004 | C49: Insurance
A50: ED_EBS7512_0005 | C50: Superannuation
A51: ED_EBS7512_0006 | C51: Non controllable expenditure (re: part 6)
A52: ED_EBS7512_0007 | C52: Opex associated with approved cost pass through
A53: ED_EBS7512_0008 | C53: Capitalisation policy changes
A54: ED_EBS7512_0009 | C54: Movements in provisions related to opex
A55: ED_EBS7512_0010 | C55: Other adjustments or exclusions required by the EBSS
C56: Actual opex for EBSS purposes | F56: =+F45-SUM(F47:F55) -> 0 | G56: =+G45-SUM(G47:G55) -> 0 | H56: =+H45-SUM(H47:H55) -> 0 | I56: =+I45-SUM(I47:I55) -> 0 | N56: =N45+SUM(N47:N55) -> 0 | O56: =O45+SUM(O47:O55) -> 0 | P56: =P45+SUM(P47:P55) -> 0 | Q56: =Q45+SUM(Q47:Q55) -> 0 | R56: =+R38-(Q38-Q56) -> -0.7375471766
L59: Incremental gain ($m, June 2016
A60: ED_EBS7512_0012 | N60: -2.3 | O60: =(O38-O56)-(N38-N56) -> 2.975510519 | P60: 0.8879153768 | Q60: 2.147351812 | R60: =(R38-R56)-(Q38-Q56) -> 0
L62: Carryover | O62: $m, real June 2016 | X62: Total
A63: ED_EBS7512_0013 | L63: 2010-11
A64: ED_EBS7512_0014 | L64: 2011-12
A65: ED_EBS7512_0015 | L65: 2012-13
A66: ED_EBS7512_0016 | L66: 2013-14
A67: ED_EBS7512_0017 | L67: 2014-15
L68: Total Carryover Amount | S68: =+SUM(S63:S67) -> 0 | T68: =+SUM(T64:T67) -> 0 | U68: =+SUM(U65:U67) -> 0 | V68: =+SUM(V66:V67) -> 0 | W68: =+SUM(W63:W67) -> 0 | X68: =+SUM(S68:W68) -> 0
L70: PTRM inputs | S70: =S68 -> 0 | T70: =T68 -> 0 | U70: =U68 -> 3.035267189 | V70: =V68 -> 0 | W70: =W68 -> 0 | X70: =+SUM(S70:W70) -> 3.035267189
C72: Table 7.5.2 - Proposed forecast opex for the EBSS for the forthcoming regulatory control period
D74: Forthcoming regulatory control period
D75: $m, real June 2016
D76: 2016-17 | E76: 2017-18 | F76: 2018-19 | G76: 2019-20 | H76: 2020-21 | I76: Total
A77: ED_EBS752_00001 | C77: Forecast opex | I77: =+SUM(D77:H77) -> 0
C78: Less excluded expenditure
A79: ED_EBS752_00002 | C79: =+C47 -> Debt raising expenditure | I79: =+SUM(D79:H79) -> 0
A80: ED_EBS752_00003 | C80: UAG costs | I80: =+SUM(D80:H80) -> 0
A81: ED_EBS752_00004 | C81: Insurance costs (other than self insurance) | I81: =+SUM(D81:H81) -> 0
A82: ED_EBS752_00005 | C82: Superannucation costs | I82: =+SUM(D82:H82) -> 0
A83: ED_EBS752_00006 | C83: Payments made in respect of non-controllable costs (UNFT, levies) | I83: =+SUM(D83:H83) -> 0
C84: Opex associated with approved cost pass through
C85: =+C53 -> Capitalisation policy changes
C86: Movements in provisions related to opex
A87: ED_EBS752_00007 | C87: Other adjustments or exclusions required by the EBSS | I87: 0
C88: Adjusted forecast opex | D88: =+D77-SUM(D79:D87) -> 0 | E88: 0 | F88: 0 | G88: 0 | H88: 0 | I88: 0

Sheet 8. Meter renewal & upgrade
B1: =SheetHeader -> REGULATORY REPORTING STATEMENT
B2: =dms_TradingName -> ActewAGL Distribution
B3: =CONCATENATE(FRCP_y1," to ",FRCP_y5) -> 2016-17 to 2020-21
B4: 8. METER RENEWAL & UPGRADE CAPITAL EXPENDITURE
B7: Instructions
B8: This template asks for information relating to meter replacement
B9: Record data on the meters removed from service as part of the service provider's meter replacement program in Table 8.1. The data should be INCLUSIVE of meters removed through providing ancillary services.
B10: Record data on the expenditure and volume of meters refurbished and procured for the service provider's meter replacement program in Table 8.6. These data are to be exclusive of meters procured for new connections.
B11: Record Other internal expenditure attributable to the service provider's meter replacement program in tables 8.7.
B12: =CONCATENATE("As set out in cl.6.1 of the ",dms_TradingName," RIN, for tables 8.2 to 8.7, where the requested data is captured in the ",dms_TradingName," capex model it is not required to be reentered in the RIN template tables. If the requested data has not been provided in the ",dms_TradingName," capex model, please enter into the tables. This may require the insertion of new lines in each table.") -> As set out in cl.6.1 of the ActewAGL Distribution RIN, for tables 8.2 to 8.7, where the requested data is captured in the ActewAGL Distribution capex model it is not required to be reentered in the RIN template tables. If the requested data has not been provided in the ActewAGL Distribution capex model, please enter into the tables. This may require the insertion of new lines in each table.
B13: Reported expenditure is to be entered EXCLUSIVE of any profit margins or management fees paid directly or indirectly to related party contractors (which is not an actual incurred expense of the related party contractor). Include any related party margins or management fees in the separate 'Related party margin' line item.
B14: =CONCATENATE("Subject to cl.6.1 of the ",dms_TradingName," RIN, where linked/adjustable overhead expenditure and related party margin expenditure is not provided in the ",dms_TradingName," capex model, overhead expenditure and related party margin expenditure should be linked to allocations derived in tabs '14. Overheads' and '15. Related party transactions'.") -> Subject to cl.6.1 of the ActewAGL Distribution RIN, where linked/adjustable overhead expenditure and related party margin expenditure is not provided in the ActewAGL Distribution capex model, overhead expenditure and related party margin expenditure should be linked to allocations derived in tabs '14. Overheads' and '15. Related party transactions'.
B15: Capital expenditure amounts entered should be GROSS of customer contributions. There is a separate line item for customer contributions from which net capital expenditure is derived.
B18: Table 8 - METER RENEWAL & UPGRADE CAPITAL EXPENDITURE
B19: Table 8.1 - Number of meters removed (actual/forecast)
D22: Actual
D23: =CRCP_y5 -> 2014-15
B24: Domestic Meters | C24: Refurbishable meters | D24: 0
C25: Meters decommissioned | D25: 4285
C26: Total meters removed | D26: =D24+D25 -> 4285
B27: I&C Meters | C27: Refurbishable meters | D27: 215
C28: Meters decommissioned | D28: 0
C29: Total meters removed | D29: =D27+D28 -> 215
B30: Water Meters | C30: Refurbishable meters | D30: 0
C31: Meters decommissioned | D31: 313
C32: Total meters removed | D32: =D30+D31 -> 313
B33: <insert meter family> | C33: Refurbishable meters
C34: Meters decommissioned
C35: Total meters removed | D35: =D33+D34 -> 0
B36: <insert meter family> | C36: Refurbishable meters
C37: Meters decommissioned
C38: Total meters removed | D38: =D36+D37 -> 0
B39: <insert meter family> | C39: Refurbishable meters
C40: Meters decommissioned
C41: Total meters removed | D41: =D39+D40 -> 0
B42: Total meterS removed expenditure | D42: =SUMIF($C$24:$C$41,"Total meters removed",D24:D41) -> 4813
B43: Source(s) of data:
D45: 0
B46: Table 8.2 - Meter replacement expenditure (actual/forecast)
D48: =CONCATENATE("$0's, real ",dms_DollarReal) -> $0's, real June 2016
D49: Actual
D50: =CRCP_y5 -> 2014-15
B51: Volume | C51: Volume | D51: 6637.333333
B52: Direct internal labour expenditure | C52: Direct internal labour expenditure
B53: Direct contractor expenditure | C53: Direct contractor expenditure
B54: Other internal direct expenditure | C54: Other internal direct expenditure
B55: Total direct expenditure (excl escalation) | C55: Total direct expenditure (excl escalation)
B56: Escalation | C56: Escalation
B57: Total direct expenditure (inc escalation) | C57: Total direct expenditure (inc escalation)
B58: Total overhead expenditure | C58: Total overhead expenditure
B59: Related party margin expenditure | C59: Related party margin expenditure
B60: Total gross expenditure | C60: Total gross expenditure | D60: 2114502.972
B61: Less customer contributions | C61: Less customer contributions
B62: Total net expenditure | C62: Total net expenditure | D62: 2114502.972
B63: Source(s) of data:
D64: 0
B65: Table 8.3 - Replacement meter installation expenditure (actual/forecast)
D67: =CONCATENATE("$0's, real ",dms_DollarReal) -> $0's, real June 2016
D68: Actual
D69: =CRCP_y5 -> 2014-15
B70: Table 8.3.1 - Residential meter replacement installation expenditure
B71: Volume of meter replacements | D71: 3835
B72: Direct internal labour expenditure
B73: Direct contractor expenditure
B74: Other internal direct expenditure
B75: Total direct expenditure (excl escalation)
B76: Escalation
B77: Total direct expenditure (inc escalation)
B78: Total overhead expenditure
B79: Related party margin expenditure
B80: Total gross expenditure | D80: 277522.7854
B81: Less customer contributions
B82: Total net expenditure | D82: 277522.7854
B83: Table 8.3.2 - Industrial and commercial meter replacement installation expenditure
B84: Volume of meter replacements | D84: 195
B85: Direct internal labour expenditure
B86: Direct contractor expenditure
B87: Other internal direct expenditure
B88: Total direct expenditure (excl escalation)
B89: Escalation
B90: Total direct expenditure (inc escalation)
B91: Total overhead expenditure
B92: Related party margin expenditure
B93: Total gross expenditure | D93: 289765.3449
B94: Less customer contributions
B95: Total net expenditure | D95: 289765.3449
B96: Table 8.3.3 - Water meter replacement installation expenditure
B97: Volume of meter replacements | D97: 1123
B98: Direct internal labour expenditure
B99: Direct contractor expenditure
B100: Other internal direct expenditure
B101: Total direct expenditure (excl escalation)
B102: Escalation
B103: Total direct expenditure (inc escalation)
B104: Total overhead expenditure
B105: Related party margin expenditure
B106: Total gross expenditure | D106: =D103+D104+D105 -> 212978.5241
B107: Less customer contributions
B108: Total net expenditure | D108: =D106-D107 -> 212978.5241
B109: Table 8.3.4 - Total meter replacement installation expenditure
B110: Volume of meter replacements | D110: =D71+D84+D97 -> 5153
B111: Direct internal labour expenditure
B112: Direct contractor expenditure
B113: Other internal direct expenditure
B114: Total direct expenditure (excl escalation)
B115: Escalation
B116: Total direct expenditure (inc escalation)
B117: Total overhead expenditure
B118: Related party margin expenditure
B119: Total gross expenditure | D119: =D80+D93+D106 -> 780266.6544
B120: Less customer contributions | D120: =D81+D94+D107 -> 0
B121: Total net expenditure | D121: =D82+D95+D108 -> 780266.6544
B122: Source(s) of data:
B124: Table 8.4 - Meter replacement expenditure (approved)
D128: =CRCP_y5 -> 2014-15
B129: <insert category/project name> | C129: Direct internal labour expenditure
C130: Direct contractor expenditure
C131: Other internal direct expenditure
C132: Total direct expenditure | D132: =SUM(D129:D131) -> 0
C133: Total overhead expenditure
C134: Related party margin expenditure
C135: Total gross expenditure | D135: =D133+D134 -> 0
C136: Less contributions
C137: Total net expenditure | D137: =D135-D136 -> 0
B138: <insert category/project name> | C138: Direct internal labour expenditure
C139: Direct contractor expenditure
C140: Other internal direct expenditure
C141: Total direct expenditure | D141: =SUM(D138:D140) -> 0
C142: Total overhead expenditure
C143: Related party margin expenditure
C144: Total gross expenditure | D144: =D142+D143 -> 0
C145: Less contributions
C146: Total net expenditure | D146: =D144-D145 -> 0
B147: <insert category/project name> | C147: Direct internal labour expenditure
C148: Direct contractor expenditure
C149: Other internal direct expenditure
C150: Total direct expenditure | D150: =SUM(D147:D149) -> 0
C151: Total overhead expenditure
C152: Related party margin expenditure
C153: Total gross expenditure | D153: =D151+D152 -> 0
C154: Less contributions
C155: Total net expenditure | D155: 0
B156: <insert category/project name> | C156: Direct internal labour expenditure
C157: Direct contractor expenditure
C158: Other internal direct expenditure
C159: Total direct expenditure | D159: =SUM(D156:D158) -> 0
C160: Total overhead expenditure
C161: Related party margin expenditure
C162: Total gross expenditure | D162: =D160+D161 -> 0
C163: Less contributions
C164: Total net expenditure | D164: =D162-D163 -> 0
B165: TOTALS | C165: Direct internal labour | D165: =SUMIF($D$129:$D$164,"Direct internal labour",D$129:D$164) -> 0
C166: Direct contractor expenditure | D166: =SUMIF($D$129:$D$164,"Direct contractor expenditure",D$129:D$164) -> 0
C167: Other internal direct expenditure | D167: =SUMIF($D$129:$D$164,"Other internal direct expenditure",D$129:D$164) -> 0
C168: Total direct expenditure | D168: =SUMIF($D$129:$D$164,"Total direct cost",D$129:D$164) -> 0
C169: Total overhead expenditure | D169: =SUMIF($D$129:$D$164,"Total overhead expenditure",D$129:D$164) -> 0
C170: Related party margin expenditure | D170: =SUMIF($D$129:$D$164,"Related party margin",D$129:D$164) -> 0
C171: Total gross expenditure | D171: =SUMIF($D$129:$D$164,"Total gross expenditure",D$129:D$164) -> 0
C172: Less contributions | D172: =SUMIF($D$129:$D$164,"Less: contributions",D$129:D$164) -> 0
C173: Total net expenditure | D173: 3051700
B174: Source(s) of data:
B176: Table 8.5 - Meter replacement expenditure (actual/forecast)
D178: =CONCATENATE("$0's, real ",dms_DollarReal) -> $0's, real June 2016
D179: Actual
D180: =CRCP_y5 -> 2014-15
B181: Table 8.5.1 - New meters acquired
B182: Residential gas meter | C182: Volume | D182: 3835
C183: Direct internal labour expenditure
C184: Direct contractor expenditure
C185: Other internal direct expenditure
C186: Total direct expenditure (excl escalation)
C187: Escalation
C188: Total direct expenditure (inc escalation)
C189: Total overhead expenditure
C190: Related party margin expenditure
C191: Total gross expenditure | D191: 575555.2235
C192: Less contributions
C193: Total net expenditure | D193: 575555.2235
C194: Unit cost | D194: 150.0795889
B195: Water meter | C195: Volume | D195: 1123
C196: Direct internal labour expenditure
C197: Direct contractor expenditure
C198: Other internal direct expenditure
C199: Total direct expenditure (excl escalation)
C200: Escalation
C201: Total direct expenditure (inc escalation)
C202: Total overhead expenditure
C203: Related party margin expenditure
C204: Total gross expenditure | D204: 340634.547
C205: Less contributions
C206: Total net expenditure | D206: 340634.547
C207: Unit cost | D207: 303.3255094
B208: [ enter meter family 3 ] | C208: Volume
C209: Total direct expenditure
C210: Escalation
C211: Total direct expenditure (inc escalation)
C212: Total overhead expenditure
C213: Related party margin expenditure
C214: Total gross expenditure | D214: =SUM(D208:D213) -> 0
C215: Less contributions
... 297 more rows

Sheet 9. Capitalised regulatory exp.
E1: =SheetHeader -> REGULATORY REPORTING STATEMENT
E2: =dms_TradingName -> ActewAGL Distribution
E3: =CONCATENATE(FRCP_y1," to ",FRCP_y5) -> 2016-17 to 2020-21
E4: 9. CAPITALISED REGULATORY EXPENDITURE
E7: Instructions
E8: This template asks for information relating to other (non-distribution) capital expenditure
A9: HPS | B9: HP services | E9: =CONCATENATE("As set out in cl.6.1 of the ",dms_TradingName," RIN, for tables 9.1 to 9.2, where the requested data is captured in the ",dms_TradingName," capex model it is not required to be reentered in the RIN template tables. If the requested data has not been provided in the ",dms_TradingName," capex model, please enter into the tables. This may require the insertion of new lines in each table.") -> As set out in cl.6.1 of the ActewAGL Distribution RIN, for tables 9.1 to 9.2, where the requested data is captured in the ActewAGL Distribution capex model it is not required to be reentered in the RIN template tables. If the requested data has not been provided in the ActewAGL Distribution capex model, please enter into the tables. This may require the insertion of new lines in each table.
A10: MPM | B10: MP mains | E10: Reported expenditure is to be entered EXCLUSIVE of any profit margin expenditures or management fees paid pursuant to arrangements or contracts with any related parties. Include any related party margin expenditures or management fees in the separate 'Related party margin expenditure' line item.
A11: TRS | B11: TRS & DRS - valves & regulators | E11: =CONCATENATE("Subject to cl.6.1 of the ",dms_TradingName," RIN, where linked/adjustable escalation is not provided in the ",dms_TradingName," capex model, escalation should be linked to allocations derived in tab '2. Escalators'.") -> Subject to cl.6.1 of the ActewAGL Distribution RIN, where linked/adjustable escalation is not provided in the ActewAGL Distribution capex model, escalation should be linked to allocations derived in tab '2. Escalators'.
A12: CM | B12: Contract meters | E12: =CONCATENATE("Subject to cl.6.1 of the ",dms_TradingName," RIN, where linked/adjustable overhead expenditure and related party margin expenditure expenditure is not provided in the ",dms_TradingName," capex model, overhead expenditure and related party margin expenditure expenditure should be linked to allocations derived in tabs '14. Overheads' and '15. Related party transactions'.") -> Subject to cl.6.1 of the ActewAGL Distribution RIN, where linked/adjustable overhead expenditure and related party margin expenditure expenditure is not provided in the ActewAGL Distribution capex model, overhead expenditure and related party margin expenditure expenditure should be linked to allocations derived in tabs '14. Overheads' and '15. Related party transactions'.
A13: TM | B13: Tariff meters | E13: Capital expenditure amounts entered should be GROSS of customer contributions. There is a separate line item for customer contributions from which net capital expenditure is derived.
A14: ERC | B14: Equity raising expenditure
A16: Internal identification code | B16: Asset category | C16: Percent allocation | E16: Table 9 - CAPITALISED REGULATORY EXPENDITURE
A17: Internal identification code | B17: Asset category | C17: Percent allocation | E17: Table 9.1 - Capitalised regulatory expenditure (actual / estimate )
H18: Supporting documentation (business case, expenditureing spreadsheet, contracts)
G19: =CONCATENATE("$0's, real ",dms_DollarReal) -> $0's, real June 2016
G20: Actual
G21: =CRCP_y5 -> 2014-15
E22: 151503 - Gas Network Reg Review 2010 | F22: Direct expenditure
F23: Direct internal labour expenditure
F24: Direct contractor expenditure
F25: Other internal direct expenditure
F26: Total direct expenditure (excl escalation)
F27: Escalation
F28: Total direct expenditure (inc escalation)
F29: Total overhead expenditure
F30: Related party margin expenditure
F31: Total gross expenditure
F32: Less customer contributions
F33: Total net expenditure
E34: <insert project name> | F34: Direct expenditure
F35: Direct internal labour expenditure
F36: Direct contractor expenditure
F37: Other internal direct expenditure
F38: Total direct expenditure
F39: Total overhead expenditure
F40: Related party margin expenditure
F41: Total gross expenditure
F42: Less customer contributions
F43: Total net expenditure
E44: <insert project name> | F44: Direct expenditure
F45: Direct internal labour expenditure
F46: Direct contractor expenditure
F47: Other internal direct expenditure
F48: Total direct expenditure
F49: Total overhead expenditure
F50: Related party margin expenditure
F51: Total gross expenditure
F52: Less customer contributions
F53: Total net expenditure
E54: TOTALS | F54: Total direct expenditure (excl escalation)
F55: Escalation
F56: Total direct expenditure (inc escalation)
F57: Total overhead cost
F58: Total related party margin
F59: Total gross expenditure
F60: Less total customer contributions
F61: Total net expenditure
E62: Source(s) of data:
E64: Table 9.2 - Capitalised regulatory expenditure (approved)
G68: =CRCP_y5 -> 2014-15
E69: <insert project name> | F69: Direct expenditure
F70: Direct internal labour expenditure
F71: Direct contractor expenditure
F72: Other internal direct expenditure
F73: Total direct expenditure | G73: =SUM(G70:G72) -> 0
F74: Total overhead expenditure
F75: Related party margin expenditure
F76: Total gross expenditure | G76: =SUM(G74:G75) -> 0
F77: Less customer contributions
F78: Total net expenditure | G78: =G76-G77 -> 0
E79: <insert project name> | F79: Direct expenditure
F80: Direct internal labour expenditure
F81: Direct contractor expenditure
F82: Other internal direct expenditure
F83: Total direct expenditure | G83: =SUM(G80:G82) -> 0
F84: Total overhead expenditure
F85: Related party margin expenditure
F86: Total gross expenditure | G86: =SUM(G84:G85) -> 0
F87: Less customer contributions
F88: Total net expenditure | G88: =G86-G87 -> 0
E89: TOTALS | F89: Total direct expenditure | G89: =SUMIF($E$69:$G$88,"Total direct expenditure ",G$69:G$88) -> 0
F90: Total overhead expenditure | G90: =SUMIF($E$69:$G$88,"Total overhead expenditure",G$69:G$88) -> 0
F91: Related party margin expenditure | G91: =SUMIF($E$69:$G$88,"Related party margin expenditure",G$69:G$88) -> 0
F92: Total gross expenditure of augmentation | G92: =SUMIF($E$69:$G$88,"Total gross expenditure",G$69:G$88) -> 0
F93: Less customer contributions | G93: =SUMIF($E$69:$G$88,"Less customer contributions",G$69:G$88) -> 0
F94: Total Net expenditure of augmentation | G94: =SUMIF($E$69:$G$88,"Total net expenditure",G$69:G$88) -> 0
E95: Source(s) of data:

Sheet 11. Other non-distb
E1: =SheetHeader -> REGULATORY REPORTING STATEMENT
E2: =dms_TradingName -> ActewAGL Distribution
E3: =CONCATENATE(FRCP_y1," to ",FRCP_y5) -> 2016-17 to 2020-21
E4: 11. OTHER (NON-DISTRIBUTION) CAPITAL EXPENDITURE
E7: Instructions
E8: This template asks for information relating to other (non-distribution) capital expenditure
A9: HPS | B9: HP services | E9: As set out in cl.6.1 of the ActewAGL RIN, for tables 11.1 to 11.2, where the requested data is captured in the ActewAGL capex model it is not required to be reentered in the RIN template tables. If the requested data has not been provided in the ActewAGL RIN please enter into the tables. This may require the insertion of new lines in each table.
A10: MPM | B10: MP mains | E10: Reported expenditure is to be entered EXCLUSIVE of any profit margins or management fees paid pursuant to arrangements or contracts with any related parties. Include any related party margins or management fees in the separate 'Related party margin' line item.
A11: CM | B11: Contract meters | E11: Subject to cl.6.1 of the ActewAGL RIN, where linked/adjustable overhead expenditure and related party margin expenditure is not provided in the ActewAGL capex model, overhead expenditure and related party margin expenditure should be linked to allocations derived in tabs '12 - Overheads' and '13 - Related party transactions'.
A12: TM | B12: Tariff meters | E12: Capital expenditure amounts entered should be GROSS of customer contributions. There is a separate line item for customer contributions from which net capital expenditure is derived.
A13: ERC | B13: Equity raising expenditure
E15: Table 11 - OTHER (NON-DISTRIBUTION) CAPITAL EXPENDITURE
E16: Table 11.1 - Other non-distribution capital expenditure (actual / forecast)
I17: Supporting documentation (business case, costing spreadsheet, contracts)
G18: =CONCATENATE("$0's, real ",dms_DollarReal) -> $0's, real June 2016
A19: Internal identification code | B19: Asset category | C19: Percent allocation | G19: Actual
G20: =CRCP_y5 -> 2014-15 | H20: Variance (actual vs approved) %
E21: < insert sub-category >
E22: < insert project name > | F22: Direct expenditure
F23: Direct internal labour expenditure
F24: Direct contractor expenditure
F25: Other internal direct expenditure
F26: Total direct expenditure | G26: =SUM(G23:G25) -> 0 | H26: 0
F27: Total overhead expenditure
F28: Related party margin expenditure
F29: Total gross expenditure | G29: =SUM(G26:G28) -> 0 | H29: 0
F30: Less customer contributions
F31: Total net expenditure | G31: =G29-G30 -> 0 | H31: =H29-H30 -> 0
E32: < insert project name > | F32: Direct expenditure
F33: Direct internal labour expenditure
F34: Direct contractor expenditure
F35: Other internal direct expenditure
F36: Total direct expenditure | G36: =SUM(G33:G35) -> 0 | H36: 0
F37: Total overhead expenditure
F38: Related party margin expenditure
F39: Total gross expenditure | G39: =SUM(G36:G38) -> 0 | H39: =SUM(H36:H38) -> 0
F40: Less customer contributions
F41: Total net expenditure | G41: =G39-G40 -> 0 | H41: 0
E42: < insert project name > | F42: Direct expenditure
F43: Direct internal labour expenditure
F44: Direct contractor expenditure
F45: Other internal direct expenditure
F46: Total direct expenditure | G46: =SUM(G43:G45) -> 0 | H46: 0
F47: Total overhead expenditure
F48: Related party margin expenditure
F49: Total gross expenditure | G49: =SUM(G46:G48) -> 0 | H49: =SUM(H46:H48) -> 0
F50: Less customer contributions
F51: Total net expenditure | G51: =G49-G50 -> 0 | H51: 0
E52: < insert sub-category >
E53: <insert project name> | F53: Direct expenditure
F54: Direct internal labour expenditure
F55: Direct contractor expenditure
F56: Other internal direct expenditure
F57: Total direct expenditure | G57: =SUM(G54:G56) -> 0 | H57: 0
F58: Total overhead expenditure
F59: Related party margin expenditure
F60: Total gross expenditure | G60: =SUM(G57:G59) -> 0 | H60: =SUM(H57:H59) -> 0
F61: Less customer contributions
F62: Total net expenditure | G62: =G60-G61 -> 0 | H62: 0
E63: <insert project name> | F63: Direct expenditure
F64: Direct internal labour expenditure
F65: Direct contractor expenditure
F66: Other internal direct expenditure
F67: Total direct expenditure | G67: =SUM(G64:G66) -> 0 | H67: 0
F68: Total overhead expenditure
F69: Related party margin expenditure
F70: Total gross expenditure | G70: =SUM(G67:G69) -> 0 | H70: =SUM(H67:H69) -> 0
F71: Less customer contributions
F72: Total net expenditure | G72: =G70-G71 -> 0 | H72: 0
E73: <insert project name> | F73: Direct expenditure
F74: Direct internal labour expenditure
F75: Direct contractor expenditure
F76: Other internal direct expenditure
F77: Total direct expenditure | G77: =SUM(G74:G76) -> 0 | H77: 0
F78: Total overhead expenditure
F79: Related party margin expenditure
F80: Total gross expenditure | G80: =SUM(G77:G79) -> 0 | H80: =SUM(H77:H79) -> 0
F81: Less customer contributions
F82: Total net expenditure | G82: =G80-G81 -> 0 | H82: 0
E83: < insert sub-category >
E84: <insert project name> | F84: Direct expenditure
F85: Direct internal labour expenditure
F86: Direct contractor expenditure
F87: Other internal direct expenditure
F88: Total direct expenditure | G88: =SUM(G85:G87) -> 0 | H88: 0
F89: Total overhead expenditure
F90: Related party margin expenditure
F91: Total gross expenditure | G91: =SUM(G88:G90) -> 0 | H91: =SUM(H88:H90) -> 0
F92: Less customer contributions
F93: Total net expenditure | G93: =G91-G92 -> 0 | H93: 0
E94: <insert project name> | F94: Direct expenditure
F95: Direct internal labour expenditure
F96: Direct contractor expenditure
F97: Other internal direct expenditure
F98: Total direct expenditure | G98: =SUM(G95:G97) -> 0 | H98: 0
F99: Total overhead expenditure
F100: Related party margin expenditure
F101: Total gross expenditure | G101: =SUM(G98:G100) -> 0 | H101: =SUM(H98:H100) -> 0
F102: Less customer contributions
F103: Total net expenditure | G103: =G101-G102 -> 0 | H103: 0
E104: <insert project name> | F104: Direct expenditure
F105: Direct internal labour expenditure
F106: Direct contractor expenditure
F107: Other internal direct expenditure
F108: Total direct expenditure | G108: =SUM(G105:G107) -> 0 | H108: 0
F109: Total overhead expenditure
F110: Related party margin expenditure
F111: Total gross expenditure | G111: =SUM(G108:G110) -> 0 | H111: =SUM(H108:H110) -> 0
F112: Less customer contributions
F113: Total net expenditure | G113: =G111-G112 -> 0 | H113: 0
E114: TOTALS | F114: Total direct expenditure | G114: =SUMIF($E$21:$H$113,"Total direct expenditure (excl escalation)",G$21:G$113) -> 0 | H114: =SUMIF($E$21:$H$113,"Total direct expenditure (excl escalation)",H$21:H$113) -> 0
F115: Total overhead expenditure | G115: =SUMIF($E$21:$H$113,"Total overhead expenditure",G$21:G$113) -> 0 | H115: =SUMIF($E$21:$H$113,"Total overhead expenditure",H$21:H$113) -> 0
F116: Total related party margin expenditure | G116: =SUMIF($E$21:$H$113,"Related party margin",G$21:G$113) -> 0 | H116: =SUMIF($E$21:$H$113,"Related party margin",H$21:H$113) -> 0
F117: Total gross expenditure | G117: =SUMIF($E$21:$H$113,"Total gross expenditure",G$21:G$113) -> 0 | H117: =SUMIF($E$21:$H$113,"Total gross expenditure",H$21:H$113) -> 0
F118: Less total customer contributions | G118: =SUMIF($E$21:$H$113,"Less customer contributions",G$21:G$113) -> 0 | H118: =SUMIF($E$21:$H$113,"Less customer contributions",H$21:H$113) -> 0
F119: Total net 'other' expenditure | G119: =SUMIF($E$21:$H$113,"Total net expenditure",G$21:G$113) -> 0 | H119: =SUMIF($E$21:$H$113,"Total net expenditure",H$21:H$113) -> 0
E120: Source(s) of data:
E122: Table 11.2 - Other non-distribution capital expenditure (approved)
G126: =CRCP_y5 -> 2014-15
E127: < insert sub-category >
E128: <insert project name> | F128: Direct expenditure
F129: Direct internal labour expenditure
F130: Direct contractor expenditure
F131: Other internal direct expenditure
F132: Total direct expenditure | G132: =SUM(G129:G131) -> 0
F133: Total overhead expenditure
F134: Related party margin expenditure
F135: Total gross expenditure | G135: =SUM(G132:G134) -> 0
F136: Less customer contributions
F137: Total net expenditure | G137: =G135-G136 -> 0
E138: <insert project name> | F138: Direct expenditure
F139: Direct internal labour expenditure
F140: Direct contractor expenditure
F141: Other internal direct expenditure
F142: Total direct expenditure | G142: =SUM(G139:G141) -> 0
F143: Total overhead expenditure
F144: Related party margin expenditure
F145: Total gross expenditure | G145: =SUM(G142:G144) -> 0
F146: Less customer contributions
F147: Total net expenditure | G147: =G145-G146 -> 0
E148: < insert sub-category >
E149: <insert project name> | F149: Direct expenditure
F150: Direct internal labour expenditure
F151: Direct contractor expenditure
F152: Other internal direct expenditure
F153: Total direct expenditure | G153: =SUM(G150:G152) -> 0
F154: Total overhead expenditure
F155: Related party margin expenditure
F156: Total gross expenditure | G156: =SUM(G153:G155) -> 0
F157: Less customer contributions
F158: Total net expenditure | G158: =G156-G157 -> 0
E159: <insert project name> | F159: Direct expenditure
F160: Direct internal labour expenditure
F161: Direct contractor expenditure
F162: Other internal direct expenditure
F163: Total direct expenditure | G163: =SUM(G160:G162) -> 0
F164: Total overhead expenditure
F165: Related party margin expenditure
F166: Total gross expenditure | G166: =SUM(G163:G165) -> 0
F167: Less customer contributions
F168: Total net expenditure | G168: =G166-G167 -> 0
E169: < insert sub-category >
E170: <insert project name> | F170: Direct expenditure
F171: Direct internal labour expenditure
F172: Direct contractor expenditure
F173: Other internal direct expenditure
F174: Total direct expenditure | G174: =SUM(G171:G173) -> 0
F175: Total overhead expenditure
F176: Related party margin expenditure
F177: Total gross expenditure | G177: =SUM(G174:G176) -> 0
F178: Less customer contributions
F179: Total net expenditure | G179: =G177-G178 -> 0
E180: <insert project name> | F180: Direct expenditure
F181: Direct internal labour expenditure
F182: Direct contractor expenditure
F183: Other internal direct expenditure
F184: Total direct expenditure | G184: =SUM(G181:G183) -> 0
F185: Total overhead expenditure
F186: Related party margin expenditure
F187: Total gross expenditure | G187: =SUM(G184:G186) -> 0
F188: Less customer contributions
F189: Total net expenditure | G189: =G187-G188 -> 0
E190: TOTALS | F190: Total direct expenditure | G190: =SUMIF($E$128:$G$189,"Total direct expenditure (excl escalation)",$G$128:$G$189) -> 0
F191: Total overhead expenditure | G191: =SUMIF($E$128:$G$189,"Total overhead expenditure",$G$128:$G$189) -> 0
F192: Total related party margin expenditure | G192: =SUMIF($E$128:$G$189,"Related party margin",$G$128:$G$189) -> 0
F193: Total gross expenditure | G193: =SUMIF($E$128:$G$189,"Total gross expenditure",$G$128:$G$189) -> 0
F194: Less total customer contributions | G194: =SUMIF($E$128:$G$189,"Less customer contributions",$G$128:$G$189) -> 0
F195: Total net expenditure | G195: =SUMIF($E$128:$G$189,"Total net expenditure",$G$128:$G$189) -> 0
E196: Source(s) of data:

Sheet 12. IT & Communications
E1: =SheetHeader -> REGULATORY REPORTING STATEMENT
E2: =dms_TradingName -> ActewAGL Distribution
E3: =CONCATENATE(FRCP_y1," to ",FRCP_y5) -> 2016-17 to 2020-21
E4: 12. IT & COMMUNICATIONS CAPITAL EXPENDITURE
A8: Asset category | E8: Instructions
A9: HPM | B9: HP mains | E9: This template asks for information relating to IT & Communications capital expenditure
A10: MPS | B10: MP services | E10: =CONCATENATE("As set out in cl.6.1 of the ",dms_TradingName," RIN, for tables 12.1 to 12.2, where the requested data is captured in the ",dms_TradingName," capex model it is not required to be reentered in the RIN template tables. If the requested data has not been provided in the ",dms_TradingName," capex model, please enter into the tables below. This may require the insertion of new lines in each table.") -> As set out in cl.6.1 of the ActewAGL Distribution RIN, for tables 12.1 to 12.2, where the requested data is captured in the ActewAGL Distribution capex model it is not required to be reentered in the RIN template tables. If the requested data has not been provided in the ActewAGL Distribution capex model, please enter into the tables below. This may require the insertion of new lines in each table.
A11: TRS | B11: TRS & DRS - valves & regulators | E11: Reported expenditure is to be entered EXCLUSIVE of any profit margins or management fees paid pursuant to arrangements or contracts with any related parties. Include any related party margins or management fees in the separate 'Related party margin' line item.
A12: TM | B12: Tariff meters | E12: =CONCATENATE("Subject to cl.6.1 of the ",dms_TradingName," RIN, where linked/adjustable escalation is not provided in the ",dms_TradingName," capex model, escalation should be linked to allocations derived in tab '2. Escalators'.") -> Subject to cl.6.1 of the ActewAGL Distribution RIN, where linked/adjustable escalation is not provided in the ActewAGL Distribution capex model, escalation should be linked to allocations derived in tab '2. Escalators'.
A13: RC | B13: Regulatory expenditure | E13: =CONCATENATE("Subject to cl.6.1 of the ",dms_TradingName," RIN, where linked/adjustable overhead expenditure and related party margin expenditure is not provided in the ",dms_TradingName," capex model, overhead expenditure and related party margin expenditure should be linked to allocations derived in tabs '14. Overheads' and '15. Related party transactions'.") -> Subject to cl.6.1 of the ActewAGL Distribution RIN, where linked/adjustable overhead expenditure and related party margin expenditure is not provided in the ActewAGL Distribution capex model, overhead expenditure and related party margin expenditure should be linked to allocations derived in tabs '14. Overheads' and '15. Related party transactions'.
A14: ITS | B14: IT System | E14: Capital expenditure amounts entered should be GROSS of customer contributions. There is a separate line item for customer contributions from which net capital expenditure is derived.
A15: ERC | B15: Equity raising expenditure | E15: For the conversion to real $ check the accuracy of the CPI escalation used.
A18: Internal identification code | B18: Asset category | C18: Percent allocation | E18: Table 12 - IT & COMMUNICATIONS CAPITAL EXPENDITURE
A19: Internal identification code | B19: Asset category | C19: Percent allocation | E19: Table 12.1 - IT & communications expenditure (actual/forecast)
H20: Supporting documentation (business case, expenditureing spreadsheet, contracts)
G21: =CONCATENATE("$0's, real ",dms_DollarReal) -> $0's, real June 2016
G22: Actual
G23: =CRCP_y5 -> 2014-15
E24: 150200 - GIS Implementation | F24: Direct expenditure
F25: Direct internal labour expenditure
F26: Direct contractor expenditure
F27: Other internal direct expenditure
F28: Total direct expenditure (excl escalation)
F29: Escalation
F30: Total direct expenditure (inc escalation)
F31: Total overhead expenditure
F32: Related party margin expenditure
F33: Total gross expenditure
F34: Less customer contributions
F35: Total net expenditure
E36: 160326 - Gas Maps Project | F36: Direct expenditure
F37: Direct internal labour expenditure
F38: Direct contractor expenditure
F39: Other internal direct expenditure
F40: Total direct expenditure (excl escalation)
F41: Escalation
F42: Total direct expenditure (inc escalation)
F43: Total overhead expenditure
F44: Related party margin expenditure
F45: Total gross expenditure
F46: Less customer contributions
F47: Total net expenditure
E48: 170310 - Spatial Accuracy Improvement of Gas Pipes | F48: Direct expenditure
F49: Direct internal labour expenditure
F50: Direct contractor expenditure
F51: Other internal direct expenditure
F52: Total direct expenditure (excl escalation)
F53: Escalation
F54: Total direct expenditure (inc escalation)
F55: Total overhead expenditure
F56: Related party margin expenditure
F57: Total gross expenditure
F58: Less customer contributions
F59: Total net expenditure
E60: 170311 - Automated Asset Information Request System (AIRS) for DBYD Implementation | F60: Direct expenditure
F61: Direct internal labour expenditure
F62: Direct contractor expenditure
F63: Other internal direct expenditure
F64: Total direct expenditure (excl escalation)
F65: Escalation
F66: Total direct expenditure (inc escalation)
F67: Total overhead expenditure
F68: Related party margin expenditure
F69: Total gross expenditure
F70: Less customer contributions
F71: Total net expenditure
E72: 170312 - Gas Major Facilities Project - Jun10 | F72: Direct expenditure
F73: Direct internal labour expenditure
F74: Direct contractor expenditure
F75: Other internal direct expenditure
F76: Total direct expenditure (excl escalation)
F77: Escalation
F78: Total direct expenditure (inc escalation)
F79: Total overhead expenditure
F80: Related party margin expenditure
F81: Total gross expenditure
F82: Less customer contributions
F83: Total net expenditure
E84: 170313 - Migration & Capture of Gas Service Information | F84: Direct expenditure
F85: Direct internal labour expenditure
F86: Direct contractor expenditure
F87: Other internal direct expenditure
F88: Total direct expenditure (excl escalation)
F89: Escalation
F90: Total direct expenditure (inc escalation)
F91: Total overhead expenditure
F92: Related party margin expenditure
F93: Total gross expenditure
F94: Less customer contributions
F95: Total net expenditure
E96: TOTALS | F96: Total direct expenditure (excl escalation) | G96: 0
F97: Escalation | G97: 0
F98: Total direct expenditure (inc escalation) | G98: =SUM(G96:G97) -> 0
F99: Total overhead cost | G99: 0
F100: Total related party margin | G100: 0
F101: Total gross expenditure | G101: =SUM(G98:G100) -> 0
F102: Less total customer contributions | G102: =SUMIF($F$24:$F$95,"Less customer contributions",G$24:G$95) -> 0
F103: Total net expenditure | G103: =G101-G102 -> 0
E104: Source(s) of data:
E106: Table 12.2 - IT & communications expenditure (approved)
G110: =CRCP_y5 -> 2014-15
E111: <insert project name> | F111: Direct expenditure
F112: Direct internal labour expenditure
F113: Direct contractor expenditure
F114: Other internal direct expenditure
F115: Total direct expenditure | G115: =SUM(G112:G114) -> 0
F116: Total overhead expenditure
F117: Related party margin expenditure
F118: Total gross expenditure | G118: =SUM(G115:G117) -> 0
F119: Less customer contributions
F120: Total net expenditure | G120: =G118-G119 -> 0
E121: <insert project name> | F121: Direct expenditure
F122: Direct internal labour expenditure
F123: Direct contractor expenditure
F124: Other internal direct expenditure
F125: Total direct expenditure | G125: =SUM(G122:G124) -> 0
F126: Total overhead expenditure
F127: Related party margin expenditure
F128: Total gross expenditure | G128: =SUM(G125:G127) -> 0
F129: Less customer contributions
F130: Total net expenditure | G130: =G128-G129 -> 0
E131: TOTALS | F131: Total direct expenditure | G131: =SUMIF($E$111:$G$130,"Total direct expenditure (excl escalation)",G$111:G$130) -> 0
F132: Total overhead expenditure | G132: =SUMIF($E$111:$G$130,"Total overhead expenditure",G$111:G$130) -> 0
F133: Related party margin expenditure | G133: =SUMIF($E$111:$G$130,"Related party margin",G$111:G$130) -> 0
F134: Total gross expenditure | G134: =SUMIF($E$111:$G$130,"Total gross expenditure",G$111:G$130) -> 0
F135: Less customer contributions | G135: =SUMIF($E$111:$G$130,"Less customer contributions",G$111:G$130) -> 0
F136: Total net expenditure | G136: 0
E137: Source(s) of data:

Sheet 14. Overheads
B1: =SheetHeader -> REGULATORY REPORTING STATEMENT
B2: =dms_TradingName -> ActewAGL Distribution
B3: =CONCATENATE(FRCP_y1," to ",FRCP_y5) -> 2016-17 to 2020-21
B4: 14. CAPITALISED OVERHEAD EXPENDITURE
B7: Instructions
B8: This template asks for information relating to capitalised overhead expenditure.
B9: For tables 14.1 to 14.5 enter the required details into the yellow cells. This may require the insertion of new lines in each table.
B10: Ensure all dependent links are correct.
B13: Table 14 - CAPITALISED OVERHEAD EXPENDITURE
B14: Table 14.1 - Total overhead expenditure (actual/forecast)
C16: =CONCATENATE("$0's, real ",dms_DollarReal) -> $0's, real June 2016
C17: Actual
C18: =CRCP_y5 -> 2014-15
B19: Table 14.1.1 - Network overhead expenditure
B20: Management Fee | C20: 804038.8908
B21: < Overhead cost item >
B22: < Overhead cost item >
B23: < Overhead cost item >
B24: < Overhead cost item >
B25: < Overhead cost item >
B26: < Overhead cost item >
B27: Table 14.1.2 - Corporate overhead expenditure
B28: Core Systems Replacement Program | C28: 2030.92406
B29: Systems Replacement Portfolio | C29: -3441.718324
B30: Lease Cost - ROI | C30: -155675.265
B31: Pricing Services | C31: 868866.837
B32: CFM - Accommodation | C32: 285303.1573
B33: Executive | C33: 116215.9863
B34: L&S - Legal Fees | C34: 308899.8094
B35: Business Systems | C35: 438628.2158
B36: Human Resources | C36: 50550.36818
B37: Finance | C37: 407496.5637
B38: Accounts Payable | C38: 22289.27404
B39: Safety Division | C39: 103529.016
B40: Logistics - Purchasing | C40: 34293.53334
B41: Logistics - Storage and Warehouse | C41: 2282.965476
B42: Business Development | C42: 0
B43: Audit Services | C43: 0
B44: Total overhead expenditure | C44: =SUM(C20:C43) -> 3285308.558
B45: Source(s) of data:
B47: Table 14.2 - Internal labour overhead expenditure (actual/forecast)
C49: =CONCATENATE("$0's, real ",dms_DollarReal) -> $0's, real June 2016
C50: Actual
C51: =CRCP_y5 -> 2014-15
B52: Classification level 1 SENIOR MANAGER
B53: Average staffing levels
B54: Total labour expenditure
B55: Annual ordinary time hours - average hourly rate per ASL
B56: Annual overtime hours - average hourly rate per ASL
B57: Annual allowances - total per ASL
B58: Annual other expenditure - total per ASL
B59: Annual standdown occurences - total per ASL
B60: Classification level 2 PROFESSIONAL
B61: Average staffing levels
B62: Total labour expenditure
B63: Annual ordinary time hours - average hourly rate per ASL
B64: Annual overtime hours - average hourly rate per ASL
B65: Annual allowances - total per ASL
B66: Annual other expenditure - total per ASL
B67: Annual standdown occurences - total per ASL
B68: Classification level 3 SUPPORT STAFF
B69: Average staffing levels
B70: Total labour expenditure
B71: Annual ordinary time hours - average hourly rate per ASL
B72: Annual overtime hours - average hourly rate per ASL
B73: Annual allowances - total per ASL
B74: Annual other expenditure - total per ASL
B75: Annual standdown occurences - total per ASL
B76: Classification level 4 < NSP to nominate >
B77: Average staffing levels
B78: Total labour cost
B79: Annual ordinary time hours - average hourly rate per ASL
B80: Annual overtime hours - average hourly rate per ASL
B81: Annual allowances - total per ASL
B82: Annual other expenditure - total per ASL
B83: Annual standdown occurences - total per ASL
B84: Classification level 5 < NSP to nominate >
B85: Average staffing levels
B86: Total labour expenditure
B87: Annual ordinary time hours - average hourly rate per ASL
B88: Annual overtime hours - average hourly rate per ASL
B89: Annual allowances - total per ASL
B90: Annual other expenditure - total per ASL
B91: Annual standdown occurences - total per ASL
B92: Total internal labour overheads
B93: Source(s) of data:
B95: Table 14.3 - Capex/opex overhead apportionment (actual/forecast)
C97: =CONCATENATE("$0's, real ",dms_DollarReal) -> $0's, real June 2016
C98: Actual
C99: =CRCP_y5 -> 2014-15
B100: Opex overheads | C100: 3285308.558
B101: Capex overheads | C101: 0
B102: Total overheads | C102: =C44 -> 3285308.558
B103: Source(s) of data:
B105: Table 14.4 - Capex overhead rates (actual/forecast)
C107: %
C108: Actual
C109: =CRCP_y5 -> 2014-15
B110: Overhead rate
B111: Capex overhead amount | C111: =CONCATENATE("$0's, real ",dms_DollarReal) -> $0's, real June 2016
B112: Connections / market expansion | C112: =SUM('4. Connections market expansn'!G246) -> 0
B113: Augmentation growth capacity | C113: =SUM('5. Augmentation growth capacity'!G213) -> 0
B114: Mains & services renewal | C114: =SUM('6. Mains & services renewal'!G134) -> 0
B115: Facilities renewal & upgrade | C115: =SUM('7. Facilities renewal & upgrade'!G139) -> 0
B116: Meter renewal and upgrade | C116: =SUM('8. Meter renewal & upgrade'!D117) -> 0
B117: IT & communications | C117: =SUM('12. IT & Communications'!G99) -> 0
B118: Other | C118: =SUM('11. Other non-distb'!G115) -> 0
B119: Capitalised regulatory expenditure | C119: =SUM('9. Capitalised regulatory exp.'!G57) -> 0
B120: Total overheads | C120: =SUM(C112:C119) -> 0
B121: Source(s) of data:
B123: Table 14.5 - Capex overhead rates (approved)
C126: Actual
C127: =CRCP_y5 -> 2014-15
B128: Overhead rate
B129: Capex overhead amount | C129: =CONCATENATE("$0's, real ",dms_DollarReal) -> $0's, real June 2016
B130: Connections / market expansion
B131: Augmentation growth capacity
B132: Mains & services renewal
B133: Facilities renewal & upgrade
B134: Meter renewal and upgrade
B135: IT & communications
B136: Other
B137: Capitalised regulatory expenditure
B138: Total overheads
B139: Source(s) of data:

Sheet 15. Related party transactions
B1: =SheetHeader -> REGULATORY REPORTING STATEMENT
B2: =dms_TradingName -> ActewAGL Distribution
B3: =CONCATENATE(FRCP_y1," to ",FRCP_y5) -> 2016-17 to 2020-21 | I3: =CONCATENATE(LEFT(FRCP_y1,4),"-",LEFT(FRCP_y5,2),RIGHT(FRCP_y5,2)) -> 2016-2021
B4: 15. RELATED PARTY TRANSACTIONS
B7: Instructions
B8: This template asks for information on forecast payments by the service provider to a related party or vice versa over the next access arrangement period.
B9: In Table 15.1 and 15.8 enter the required data in the yellow cells. This may require the insertion of new rows.
B10: Ensure all dependent links are correct.
B13: Table 15 - RELATED PARTY TRANSACTIONS
B14: =CONCATENATE("Table 15.1 - Payments made by ",dms_TradingName," to Related Party") -> Table 15.1 - Payments made by ActewAGL Distribution to Related Party
B15: Name of related party | C15: Nature of the relationship - eg. percentage ownership by/of related party of/by Gas Distributor | D15: Services Provided | E15: Description of how this transaction amount was determined | F15: Description of how this amount is reflected in the Regulatory Templates, including the asset class or cost category | G15: Where the related party expenditure has been allocated to different asset classes or cost categories, the description of the basis of allocation and the quantum of the allocator | I15: Current access arrangement period
I16: $0's, nominal
I17: Actual
I18: =CRCP_y5 -> 2014-15
H21: Payment made by distributor
B22: =B21 -> 0 | C22: 0 | D22: 0 | E22: 0 | F22: 0 | G22: 0 | H22: Actual cost incurred by related party
H23: Payment made by distributor
B24: =B23 -> 0 | C24: 0 | D24: 0 | E24: 0 | F24: 0 | G24: 0 | H24: Actual cost incurred by related party
B25: Source(s) of data:
B27: =CONCATENATE("Table 15.2 - Payments Received by ",dms_TradingName, " from Related Party") -> Table 15.2 - Payments Received by ActewAGL Distribution from Related Party
B28: Name of related party | C28: Nature of the relationship - eg. percentage ownership by/of related party of/by Gas Distributor | D28: Services Provided | E28: Description of how this transaction amount was determined | F28: Description of how this amount is reflected in the Regulatory Templates, including the asset class or cost category | G28: Where the related party expenditure has been allocated to different asset classes or cost categories, the description of the basis of allocation and the quantum of the allocator | I28: Current access arrangement period
I29: $0's, nominal
I30: Actual
I31: =CRCP_y5 -> 2014-15
H32: Payment made to distributor
B33: =B32 -> 0 | C33: 0 | D33: 0 | E33: 0 | F33: 0 | G33: 0 | H33: Actual cost incurred by distributor
H34: Payment made to distributor
B35: =B34 -> 0 | C35: 0 | D35: 0 | E35: 0 | F35: 0 | G35: 0 | H35: Actual cost incurred by distributor
H36: Payment made to distributor
B37: =B36 -> 0 | C37: 0 | D37: 0 | E37: 0 | F37: 0 | G37: 0 | H37: Actual cost incurred by distributor
H38: Payment made to distributor
B39: =B38 -> 0 | C39: 0 | D39: 0 | E39: 0 | F39: 0 | G39: 0 | H39: Actual cost incurred by distributor
B40: Source(s) of data:
B42: Table 15.3 - Related party margin expenditure (actual/forecast)
C43: Current access arrangement period
C44: $0's, nominal
C45: Actual
C46: =CRCP_y5 -> 2014-15
B47: Connections_market expansion | C47: 0
B48: Augmentation_growth capacity | C48: 0
B49: Mains & services renewal | C49: 0
B50: Facilities renewal & upgrade | C50: 0
B51: Meter renewal and upgrade | C51: 0
B52: [capex category]
B53: [capex category]
B54: Source(s) of data:
B56: Table 15.4 - Related party margin expenditure (approved)
C57: Current access arrangement period
C58: $0's, nominal
C59: Approved
C60: =CRCP_y5 -> 2014-15
B61: [capex category]
B62: [capex category]
B63: [capex category]
B64: [capex category]
B65: [capex category]
B66: [capex category]
B67: Source(s) of data:
B69: Table 15.5 - Per cent of capex outsourced to related party (actual/forecast)
C70: Current access arrangement period
C71: %
C72: Actual
C73: =CRCP_y5 -> 2014-15
B74: Connections_market expansion | C74: 1
B75: Augmentation_growth capacity | C75: 1
B76: Mains & services renewal | C76: 0
B77: Facilities renewal & upgrade | C77: 1
B78: Meter renewal and upgrade | C78: 1
B79: IT & communications | C79: 0
B80: Other | C80: 0
B81: Capitalised regulatory expenditure | C81: 0
B82: Overheads
B83: Source(s) of data:
B85: Table 15.6 - Per cent of capex outsourced to related party (approved)
C86: Current access arrangement period
C87: %
C88: Approved
C89: =CRCP_y5 -> 2014-15
B90: Connections_market expansion
B91: Augmentation_growth capacity
B92: Mains & services renewal
B93: Facilities renewal & upgrade
B94: Meter renewal and upgrade
B95: IT & communications
B96: Other
B97: Capitalised regulatory expenditure
B98: Overheads
B99: Source(s) of data:
B101: Table 15.7 - Capex outsourced to related party (actual)
C102: Current access arrangement period
C103: $0's, nominal
C104: Actual
C105: =CRCP_y5 -> 2014-15
B106: Connections_market expansion | C106: 8353382.112
B107: Augmentation_growth capacity | C107: 10575504.43
B108: Mains & services renewal | C108: 0
B109: Facilities renewal & upgrade | C109: 2681683.193
B110: Meter renewal and upgrade | C110: 2114502.972
B111: IT & communications | C111: 0
B112: Other | C112: 0
B113: Capitalised regulatory expenditure | C113: 0
B114: Overheads
B115: Total | C115: =SUM(C106:C114) -> 23725072.71
B116: Source(s) of data:
B118: Table 15.8 - Capex outsourced to related party (approved)
C119: Current access arrangement period
C120: $0's, nominal
C121: Approved
C122: =CRCP_y5 -> 2014-15
B123: Connections_market expansion
B124: Augmentation_growth capacity
B125: Mains & services renewal
B126: Facilities renewal & upgrade
B127: Meter renewal and upgrade
B128: IT & communications
B129: Other
B130: Capitalised regulatory expenditure
B131: Overheads
B132: Total
B133: Source(s) of data:

Sheet 16. Capex allocation
B1: =SheetHeader -> REGULATORY REPORTING STATEMENT
B2: =dms_TradingName -> ActewAGL Distribution
B3: =CONCATENATE(FRCP_y1," to ",FRCP_y5) -> 2016-17 to 2020-21
B4: 16. CAPITAL EXPENDITURE ALLOCATION
B7: Instructions
B8: If using the post-tax revenue model (PTRM) to determine total revenue, in tables 16.1 and 16.2 enter the AMOUNT of capex for each capex driver for each year that is attributable to the relevant capex asset category.
B9: Table 16.2 converts the amounts given in table 16.1 into percentages.
B10: The asset classes currently listed are from service providers' 2010 RAB RFM.
B11: Change/add to these asset classes if deemed necessary and backcast the data accordingly.
B12: All input amounts should be gross of contributions. Contributions are to be separately entered on the allocated line.
B14: Table 16 - CAPITAL EXPENDITURE ALLOCATION
B15: Table 16.1 - Allocation of capital expenditure driver classes to asset classes
C16: Previous access arrangement period
C17: $0's, nominal | H17: =CONCATENATE("$0's, real ",dms_DollarReal) -> $0's, real June 2016
C18: Actual | H18: Actual
C19: =PRCP -> 2005-06 | D19: 2006-07 | E19: 2007-08 | F19: 2008-09 | G19: 2009-10 | H19: =CRCP_y5 -> 2014-15
B20: =CONCATENATE("Table 16.1.1 - ",'17. Gross Capex'!B24) -> Table 16.1.1 - HP Mains
B21: Connections market expansion
B22: Augmentation growth capacity | C22: 2028241.28 | D22: 1085000 | E22: 23600 | F22: 383227.85 | G22: 2407892.69 | H22: 6874307
B23: Mains & services renewal
B24: Facilities renewal & upgrade
B25: Meter renewal and upgrade
B26: IT & communications
B27: Other
B28: Capitalised regulatory expenditure
B29: Overheads
B30: Contributions | C30: 0 | D30: 0 | E30: 0 | F30: 0 | G30: 0 | H30: 0
B31: Total | C31: =SUM(C21:C29)-C30 -> 2028241.28 | D31: =SUM(D21:D29)-D30 -> 1085000 | E31: 23600 | F31: 383227.85 | G31: 2407892.69 | H31: =SUM(H21:H29)-H30 -> 6874307
B33: =CONCATENATE("Table 16.1.2 - ",'17. Gross Capex'!B25) -> Table 16.1.2 - HP Services
B34: Connections market expansion
B35: Augmentation growth capacity
B36: Mains & services renewal
B37: Facilities renewal & upgrade
B38: Meter renewal and upgrade
B39: IT & communications
B40: Other
B41: Capitalised regulatory expenditure
B42: Overheads
B43: Contributions | C43: 0 | D43: 0 | E43: 0 | F43: 0 | G43: 0 | H43: 0
B44: Total | C44: =SUM(C34:C42)-C43 -> 0 | D44: =SUM(D34:D42)-D43 -> 0 | E44: 0 | F44: 0 | G44: 0 | H44: =SUM(H34:H42)-H43 -> 0
B46: =CONCATENATE("Table 16.1.3 - ",'17. Gross Capex'!B26) -> Table 16.1.3 - MP Mains
B47: Connections market expansion | C47: 1151015.34 | D47: 3328679.56 | E47: 4093530.22 | F47: 2545450.16 | G47: 2966894.5 | H47: 1969044.53
B48: Augmentation growth capacity | C48: 0 | D48: 0 | E48: 0 | F48: 196224 | G48: 185279.67 | H48: 212059.4661
B49: Mains & services renewal | C49: 0 | D49: 0 | E49: 20728 | F49: 0 | G49: 15453.1 | H49: 0
B50: Facilities renewal & upgrade | C50: 10000 | D50: 290900 | E50: 217321 | F50: 4107 | G50: 3505.51 | H50: 282978.3144
B51: Meter renewal and upgrade
B52: IT & communications
B53: Other
B54: Capitalised regulatory expenditure
B55: Overheads
B56: Contributions | C56: 0 | D56: 0 | E56: 1039917 | F56: 0 | G56: 0 | H56: 44756.83897
B57: Total | C57: =SUM(C47:C55)-C56 -> 1161015.34 | D57: =SUM(D47:D55)-D56 -> 3619579.56 | E57: 3291662.22 | F57: 2745781.16 | G57: 3171132.78 | H57: =SUM(H47:H55)-H56 -> 2419325.472
B59: =CONCATENATE("Table 16.1.4 - ",'17. Gross Capex'!B27) -> Table 16.1.4 - MP Services
B60: Connections market expansion | C60: 1768367.64 | D60: 1929411.63 | E60: 2283446.7 | F60: 2297965.08 | G60: 2598924.52 | H60: 4227716
B61: Augmentation growth capacity
B62: Mains & services renewal
B63: Facilities renewal & upgrade
B64: Meter renewal and upgrade
B65: IT & communications
B66: Other
B67: Capitalised regulatory expenditure
B68: Overheads
B69: Contributions | C69: 76512 | D69: 117986 | E69: 91633 | F69: 116294.85 | G69: 218840.27 | H69: 0
B70: Total | C70: =SUM(C60:C68)-C69 -> 1691855.64 | D70: =SUM(D60:D68)-D69 -> 1811425.63 | E70: 2191813.7 | F70: 2181670.23 | G70: 2380084.25 | H70: =SUM(H60:H68)-H69 -> 4227716
B72: =CONCATENATE("Table 16.1.5 - ",'17. Gross Capex'!B28) -> Table 16.1.5 - TRS & DRS - Valves & Regulators
B73: Connections market expansion
B74: Augmentation growth capacity | C74: 190000 | D74: 2791370.04 | E74: 255143 | F74: 580639.84 | G74: 0 | H74: 3489137.907
B75: Mains & services renewal
B76: Facilities renewal & upgrade | C76: 324240.86 | D76: 2700 | E76: 288469.1 | F76: 777.9 | G76: 3 | H76: 2398704.879
B77: Meter renewal and upgrade
B78: IT & communications
B79: Other
B80: Capitalised regulatory expenditure
B81: Overheads
B82: Contributions
B83: Total | C83: =SUM(C73:C81)-C82 -> 514240.86 | D83: =SUM(D73:D81)-D82 -> 2794070.04 | E83: 543612.1 | F83: 581417.74 | G83: 3 | H83: =SUM(H73:H81)-H82 -> 5887842.786
B85: =CONCATENATE("Table 16.1.6- ",'17. Gross Capex'!B29) -> Table 16.1.6- Contract meters
B86: Connections market expansion | C86: 425412.82 | D86: 673451.81 | E86: 546095.59 | F86: 503789.14 | G86: 308811.84 | H86: 712736.0193
B87: Augmentation growth capacity
B88: Mains & services renewal
B89: Facilities renewal & upgrade
B90: Meter renewal and upgrade | C90: 398812.46 | D90: 171366.65 | E90: 216397.53 | F90: 292396.26 | G90: 125131.97 | H90: 492310.5542
B91: IT & communications
B92: Other
B93: Capitalised regulatory expenditure
B94: Overheads
B95: Contributions
B96: Total | C96: =SUM(C86:C94)-C95 -> 824225.28 | D96: =SUM(D86:D94)-D95 -> 844818.46 | E96: 762493.12 | F96: 796185.4 | G96: 433943.81 | H96: =SUM(H86:H94)-H95 -> 1205046.573
B98: =CONCATENATE("Table 16.1.7 - ",'17. Gross Capex'!B30) -> Table 16.1.7 - Tariff meters
B99: Connections market expansion | C99: 533182.63 | D99: 608090.59 | E99: 541952.82 | F99: 659156.3 | G99: 605320.33 | H99: 1443893.82
B100: Augmentation growth capacity
B101: Mains & services renewal
B102: Facilities renewal & upgrade
B103: Meter renewal and upgrade | C103: 359052.65 | D103: 273204.68 | E103: 260978.85 | F103: 405100.49 | G103: 340600.05 | H103: 1622192.418
B104: IT & communications
B105: Other
B106: Capitalised regulatory expenditure
B107: Overheads
B108: Contributions
B109: Total | C109: =SUM(C99:C107)-C108 -> 892235.28 | D109: =SUM(D99:D107)-D108 -> 881295.27 | E109: 802931.67 | F109: 1064256.79 | G109: 945920.38 | H109: =SUM(H99:H107)-H108 -> 3066086.237
B111: =CONCATENATE("Table 16.1.8 - ",'17. Gross Capex'!B31) -> Table 16.1.8 - 0
B112: Connections_market expansion
B113: Augmentation_growth capacity
B114: Mains & services renewal
B115: Facilities renewal & upgrade
B116: Meter renewal and upgrade
B117: IT & communications
B118: Other
B119: Capitalised regulatory expenditure
B120: Overheads
B121: Contributions
B122: Total | C122: =SUM(C112:C120)-C121 -> 0 | D122: =SUM(D112:D120)-D121 -> 0 | E122: 0 | F122: 0 | G122: 0 | H122: =SUM(H112:H120)-H121 -> 0
B124: =CONCATENATE("Table 16.1.9 - ",'17. Gross Capex'!B37) -> Table 16.1.9 - IT System
B125: Connections market expansion
B126: Augmentation growth capacity
B127: Mains & services renewal
B128: Facilities renewal & upgrade
B129: Meter renewal and upgrade
B130: IT & communications | C130: 93680 | D130: 75646.75 | E130: 0 | F130: 0 | G130: 248500.03 | H130: 0
B131: Other
B132: Capitalised regulatory expenditure
B133: Overheads
B134: Contributions
B135: Total | C135: =SUM(C125:C133)-C134 -> 93680 | D135: =SUM(D125:D133)-D134 -> 75646.75 | E135: 0 | F135: 0 | G135: 248500.03 | H135: =SUM(H125:H133)-H134 -> 0
B137: =CONCATENATE("Table 16.1.10 - ",'17. Gross Capex'!B38) -> Table 16.1.10 - Regulatory Capitalisation Costs
B138: Connections market expansion
B139: Augmentation growth capacity
B140: Mains & services renewal
B141: Facilities renewal & upgrade
B142: Meter renewal and upgrade
B143: IT & communications
B144: Other
B145: Capitalised regulatory expenditure | C145: 0 | D145: 0 | E145: 0 | F145: 458174.25 | G145: 584712.29 | H145: 0
B146: Overheads
B147: Contributions
B148: Total | C148: =SUM(C138:C146)-C147 -> 0 | D148: =SUM(D138:D146)-D147 -> 0 | E148: =SUM(E138:E146)-E147 -> 0 | F148: =SUM(F138:F146)-F147 -> 458174.25 | G148: =SUM(G138:G146)-G147 -> 584712.29 | H148: =SUM(H138:H146)-H147 -> 0
B150: Table 16.1.11 - Equity raising expenditure
B151: Connections market expansion
B152: Augmentation growth capacity
B153: Mains & services renewal
B154: Facilities renewal & upgrade
B155: Meter renewal and upgrade
B156: IT & communications
B157: Other
B158: Capitalised regulatory expenditure
B159: Overheads
B160: Contributions
B161: Total | C161: =SUM(C151:C159)-C160 -> 0 | D161: =SUM(D151:D159)-D160 -> 0 | E161: 0 | F161: 0 | G161: 0 | H161: =SUM(H151:H159)-H160 -> 0
B162: Source(s) of data:

Sheet 17. Gross Capex
B1: =SheetHeader -> REGULATORY REPORTING STATEMENT
B2: =dms_TradingName -> ActewAGL Distribution
B3: =CONCATENATE(FRCP_y1," to ",FRCP_y5) -> 2016-17 to 2020-21
B4: 17. GROSS CAPITAL EXPENDITURE
B7: Instructions
B8: This template asks for information on the service provider's capex including related party margins. It is divided into tables for actual/forecast capex and for approved capex.
B10: The asset classes listed are sourced from service provider's 2010 RAB RFM. Service providers are to change/add to these asset classes if deemed necessary and backcast the data accordingly.
B11: In tables 17.1, 17.2, 17.3 and 17.4 enter the required details into the yellow cells.
B13: =CONCATENATE("For years ", PRCP_y1," to ", PRCP_y5," provide amounts approved by the jurisdictional regulator.") -> For years 2005-06 to 2009-10 provide amounts approved by the jurisdictional regulator.
B17: Table 17 - GROSS CAPITAL EXPENDITURE
B18: Table 17.1 - Gross capex including RPM (actual/forecast)
C20: =CONCATENATE("$0's, real ",dms_DollarReal) -> $0's, real June 2016
C21: Actual
C22: =CRCP_y5 -> 2014-15
B23: Table 17.1.1 - System asset class
B24: =dms_ActewAGL_SystemAssets -> HP Mains | C24: 6874307.055
B25: HP Services | C25: 0
B26: MP Mains | C26: 2464082.311
B27: MP Services | C27: 4227715.918
B28: TRS & DRS - Valves & Regulators | C28: 5887842.786
B29: Contract meters | C29: 1205046.573
B30: Tariff meters | C30: 3066086.237
B31: 0 | C31: 0
B32: 0
B36: Table 17.1.2 - Non-system assets
B37: =dms_ActewAGL_NonsystemAssets -> IT System | C37: 0
B38: Regulatory Capitalisation Costs | C38: 0
B39: 0
B40: 0
B41: 0
B42: 0
B43: 0
B44: 0
B45: 0
B46: 0
B47: 0
B49: Table 17.2 - Gross capex including RPM (approved)
C51: =CONCATENATE("$0's, real ",dms_DollarReal) -> $0's, real June 2016
C52: Actual
C53: =CRCP_y5 -> 2014-15
B54: Table 17.2.1 - System asset class
B55: =dms_ActewAGL_SystemAssets -> HP Mains | C55: 1666.555631
B56: HP Services | C56: 0
B57: MP Mains | C57: 3258.533551
B58: MP Services | C58: 2938.917995
B59: TRS & DRS - Valves & Regulators | C59: 471.7950919
B60: Contract meters | C60: 250.9205351
B61: Tariff meters | C61: 4282.461155
B62: 0
B63: 0
B67: Table 17.2.2 - Non-system assets
B68: =dms_ActewAGL_NonsystemAssets -> IT System | C68: 0
B69: Regulatory Capitalisation Costs | C69: 0
B70: 0
B71: 0
B72: 0
B73: 0
B74: 0
B75: 0
B76: 0
B77: 0
B78: 0
C80: 0
B81: Table 17.3 - Gross capex excluding RPM (actual/forecast)
C83: =CONCATENATE("$0's, real ",dms_DollarReal) -> $0's, real June 2016
C84: Actual
C85: =CRCP_y5 -> 2014-15
B86: Table 17.3.1 - System asset class
B87: =dms_ActewAGL_SystemAssets -> HP Mains | C87: 6874307
B88: HP Services | C88: -
B89: MP Mains | C89: 2464082
B90: MP Services | C90: 4227716
B91: TRS & DRS - Valves & Regulators | C91: 5887843
B92: Contract meters | C92: 1205047
B93: Tariff meters | C93: 3066086
B94: 0 | C94: 0
B95: 0
B99: Table 17.3.2 - Non-system assets
B100: =dms_ActewAGL_NonsystemAssets -> IT System | C100: 0
B101: Regulatory Capitalisation Costs | C101: 0
B102: 0
B103: 0
B104: 0
B105: 0
B106: 0
B107: 0
B108: 0
B109: 0
B110: 0
B112: Table 17.4 - Gross capex excluding RPM (approved)
C114: =CONCATENATE("$0's, real ",dms_DollarReal) -> $0's, real June 2016
C115: Actual
C116: =CRCP_y5 -> 2014-15
B117: Table 17.4.1 - System asset class
B118: =dms_ActewAGL_SystemAssets -> HP Mains | C118: 1666.555631
B119: HP Services | C119: 0
B120: MP Mains | C120: 3258.533551
B121: MP Services | C121: 2938.917995
B122: TRS & DRS - Valves & Regulators | C122: 471.7950919
B123: Contract meters | C123: 250.9205351
B124: Tariff meters | C124: 4282.461155
B125: 0
B126: 0
B130: Table 17.4.2 - Non-system assets
B131: =dms_ActewAGL_NonsystemAssets -> IT System | C131: 0
B132: Regulatory Capitalisation Costs | C132: 0
B133: 0
B134: 0
B135: 0
B136: 0
B137: 0
B138: 0
B139: 0
B140: 0
B141: 0
B175: Table 17a.1

Sheet 18. Tax depreciation
B1: =SheetHeader -> REGULATORY REPORTING STATEMENT
B2: =dms_TradingName -> ActewAGL Distribution
B3: =CONCATENATE(FRCP_y1," to ",FRCP_y5) -> 2016-17 to 2020-21
B4: 18. TAX DEPRECIATION
B6: Instructions
B7: This template asks the service provider for the tax depreciation rate used for each asset class.
B9: For table 18.1 enter the required details into the yellow cells. This may require the insertion of new lines in each table.
B11: In table 18.1 provide the tax depreciation rate used for each tax asset class.
B13: Asset classes listed in table 18.1 should match those provided in table 16.1.
B16: Table 18 - TAX DEPRECIATION RATE
C17: Depreciation type | D17: Standard asset life | E17: Depreciation rate (%)
B18: Table 18.1 - System asset class
B19: HP Mains | C19: Straight line depreciation
B20: HP Services | C20: Straight line depreciation
B21: MP Mains | C21: Straight line depreciation
B22: MP Services | C22: Straight line depreciation
B23: TRS & DRS - Valves & Regulators | C23: Straight line depreciation
B24: Contract meters | C24: Straight line depreciation
B25: Tariff meters | C25: Straight line depreciation
B28: Table 18.2 - Non-system assets
B29: IT System | C29: Straight line depreciation
B30: Regulatory Capitalisation Costs | C30: Straight line depreciation
B40: Source(s) of data:

Sheet 19. Depreciation & asset lives
B1: =SheetHeader -> REGULATORY REPORTING STATEMENT
B2: =dms_TradingName -> ActewAGL Distribution
B3: =CONCATENATE(FRCP_y1," to ",FRCP_y5) -> 2016-17 to 2020-21
B4: 19. REGULATORY DEPRECIATION AND ASSET LIVES
B7: Instructions
B8: This template asks for regulatory depreciation, remaining life, and standard life by asset class.
B9: In table 19.1 enter the required details into the yellow cells.
B10: Asset classes currently listed are taken from the service provider's 2010 RFM. Service providers are to change/add to these asset classes if deemed necessary and backcast the data accordingly.
B12: Table 19 - REGULATORY DEPRECIATION RATE & ASSET LIVES
C13: Depreciation type | D13: Standard asset life | E13: =CONCATENATE("Remaining asset life at ", dms_DollarReal) -> Remaining asset life at June 2016
B14: Table 19.1 - System asset class
B15: HP Mains | C15: Straight line depreciation
B16: HP Services | C16: Straight line depreciation
B17: MP Mains | C17: Straight line depreciation
B18: MP Services | C18: Straight line depreciation
B19: TRS & DRS - Valves & Regulators | C19: Straight line depreciation
B20: Contract meters | C20: Straight line depreciation
B21: Tariff meters | C21: Straight line depreciation
B24: Table 19.2 - Non-system assets
B25: =dms_ActewAGL_NonsystemAssets -> IT System | C25: Straight line depreciation
B26: Regulatory Capitalisation Costs | C26: Straight line depreciation
B27: 0
B28: 0
B29: 0
B30: 0
B31: 0
B32: 0
B33: 0
B34: 0
B35: 0
B36: Source(s) of data:

Sheet 20. Changes in provisions
B1: =SheetHeader -> REGULATORY REPORTING STATEMENT
B2: =dms_TradingName -> ActewAGL Distribution
B3: =CONCATENATE(FRCP_y1," to ",FRCP_y5) -> 2016-17 to 2020-21
B4: 20. CHANGES IN PROVISIONS
B7: Instructions
B8: This template asks for information regarding changes in provisions
B9: In tables 20.1 and 20.2 reported expenditure is to be entered INCLUSIVE of any profit margins or management fees paid directly or indirectly to related party contractors (which is not an actual incurred cost of the related party contractor).
B10: This may require the insertion of new lines in each table.
B13: Table 20 - CHANGES IN PROVISIONS
B14: Table 20.1 - Changes in provisions (including RPM)
C16: =CONCATENATE("$0's, real ",dms_DollarReal) -> $0's, real June 2016
C17: Actual
C18: =CRCP_y5 -> 2014-15
B19: Table 20.1.1 - Total Provisions
B20: Opening Balance | C20: 92761.35
B21: Liabilities paid from provision charged to opex | C21: -9157.15
B22: Liabilities paid from provision charged to capex | C22: 0
B23: Increase /decrease in provision charged to opex | C23: 13721
B24: Increase/decrease in provision charged to capex | C24: 0
B25: Other adjustments | C25: 0
B26: Closing Balance | C26: 97326
B27: Movement in total provisions | C27: =SUM(C21:C23) -> 4563.85
B28: Table 20.1.2 - Allocation of movement in total provisions
B29: Operating and maintenance expenditure | C29: 4564
B30: Capital expenditure
B31: Table 20.1.3 - Allocation of movement in provisions for capex
B32: Table 20.1.3.1 - System
B33: =dms_ActewAGL_SystemAssets -> HP Mains
B34: HP Services
B35: MP Mains
B36: MP Services
B37: TRS & DRS - Valves & Regulators
B38: Contract meters
B39: Tariff meters
B40: 0
B41: 0
B45: Table 20.1.3.2 - Non-System
B46: =dms_ActewAGL_NonsystemAssets -> IT System
B47: Regulatory Capitalisation Costs
B48: 0
B49: 0
B50: 0
B51: 0
B52: 0
B53: 0
B54: 0
B55: 0
B56: 0
B57: Source(s) of data:
B59: Table 20.2 - Changes in provisions by provision (including RPM)
C61: =CONCATENATE("$0's, real ",dms_DollarReal) -> $0's, real June 2016
C62: Actual
C63: =CRCP_y5 -> 2014-15
B64: Employee entitlements provision
B65: Opening Balance | C65: 92761.35
B66: Liabilities paid from provision charged to opex | C66: -9157.15
B67: Liabilities paid from provision charged to capex
B68: Increase /decrease in provision charged to opex | C68: 13721
B69: Increase/decrease in provision charged to capex
B70: Other adjustments
B71: Closing Balance | C71: =C65+SUM(C66:C70) -> 97325.2
B72: Redundancy provision
B73: Opening Balance | C73: 0
B74: Liabilities paid from provision charged to opex | C74: 0
B75: Liabilities paid from provision charged to capex
B76: Increase /decrease in provision charged to opex | C76: 0
B77: Increase/decrease in provision charged to capex
B78: Other adjustments
B79: Closing Balance | C79: =C73+SUM(C74:C78) -> 0
B80: < Insert name of provision >
B81: Opening Balance | C81: 0
B82: Liabilities paid from provision charged to opex
B83: Liabilities paid from provision charged to capex
B84: Increase /decrease in provision charged to opex
B85: Increase/decrease in provision charged to capex
B86: Other adjustments
B87: Closing Balance | C87: =C81+SUM(C82:C86) -> 0
B88: < Insert name of provision >
B89: Opening Balance | C89: 0
B90: Liabilities paid from provision charged to opex
B91: Liabilities paid from provision charged to capex
B92: Increase /decrease in provision charged to opex
B93: Increase/decrease in provision charged to capex
B94: Other adjustments
B95: Closing Balance | C95: =C89+SUM(C90:C94) -> 0
B96: < Insert name of provision >
B97: Opening Balance | C97: 0
B98: Liabilities paid from provision charged to opex
B99: Liabilities paid from provision charged to capex
B100: Increase /decrease in provision charged to opex
B101: Increase/decrease in provision charged to capex
B102: Other adjustments
B103: Closing Balance | C103: =C97+SUM(C98:C102) -> 0
B104: < Insert name of provision >
B105: Opening Balance | C105: 0
B106: Liabilities paid from provision charged to opex
B107: Liabilities paid from provision charged to capex
B108: Increase /decrease in provision charged to opex
B109: Increase/decrease in provision charged to capex
B110: Other adjustments
B111: Closing Balance | C111: =C105+SUM(C106:C110) -> 0

Sheet 21. Indicative bill impacts
C1: =SheetHeader -> REGULATORY REPORTING STATEMENT
C2: =dms_TradingName -> ActewAGL Distribution
C3: =CONCATENATE(FRCP_y1," to ",FRCP_y5) -> 2016-17 to 2020-21
C4: 21. INDICATIVE BILL IMPACTS
C7: Instructions
C8: This template asks for an estimate of the service provider's proposal on indicative gas bills. It includes entries for various major tariff structures.
C10: Identify the dollar unit used in the template.
C12: In table 21 enter the required details into the yellow cells.
C17: Table 21 - Indicative impact of the regulatory proposal on the average residential and business customer gas bills
C19: Distribution costs as a proportion of a typical customer's gas bill (per cent) | D19: 0.3440976347
C21: Table 21.1 - Typical gas bill - Residential customer
C22: Tariff type | D22: Description of tariff type | E22: =CONCATENATE("Annual bill amount ($",CRCP_y6,")") -> Annual bill amount ($2015-16)
C24: <NSP to insert any additional items>
C25: <NSP to insert any additional items>
C26: <NSP to insert any additional items>
C27: <NSP to insert any additional items>
C28: Source(s) of data:
C30: Table 21.2 - Typical gas bill - Business customer
C31: Tariff type | D31: Description of tariff type | E31: =CONCATENATE("Annual bill amount ($",CRCP_y6,")") -> Annual bill amount ($2015-16)
C33: <Service provider to insert any additional items>
C34: <Service provider to insert any additional items>
C35: <Service provider to insert any additional items>
C36: Source(s) of data:
C38: Table 21.3 - Indicative annual average distribution price impact
E49: =+E46/D46-1 ->  | F49: =+F46/E46-1 ->  | G49: =+G46/F46-1 ->  | H49: =+H46/G46-1 ->  | I49: =+I46/H46-1 ->  | J49: =+AVERAGE(E49:I49) -> 
C52: Table 21.4 - Distribution bill component - Residential customer
A53: $0's, nominal | C53: Tariff type | D53: $0's, nominal | K53: Average | L53: Annual impact on customer bill (%)
A54: =CRCP_y6 -> 2015-16 | D54: =CRCP_y6 -> 2015-16 | E54: =FRCP_y1 -> 2016-17 | F54: =FRCP_y2 -> 2017-18 | G54: =FRCP_y3 -> 2018-19 | H54: =FRCP_y4 -> 2019-20 | I54: =FRCP_y5 -> 2020-21 | J54: Total 2015-20
C55: =+C23 -> Residential Customer Bill - 45 GJ
C56: Annual change
C58: =+C24 -> <NSP to insert any additional items> | E58: =+D58*(1+IF($D$52="Nominal",E$48,E$49)) -> 0 | F58: =+E58*(1+IF($D$52="Nominal",F$48,F$49)) -> 0 | G58: =+F58*(1+IF($D$52="Nominal",G$48,G$49)) -> 0 | H58: =+G58*(1+IF($D$52="Nominal",H$48,H$49)) -> 0 | I58: =+H58*(1+IF($D$52="Nominal",I$48,I$49)) -> 0 | J58: =+SUM(E58:I58) -> 0 | K58: =+AVERAGE(E58:I58) -> 0
C59: Annual change | E59: =+E58-D58 -> 0 | F59: =+F58-E58 -> 0 | G59: =+G58-F58 -> 0 | H59: =+H58-G58 -> 0 | I59: =+I58-H58 -> 0 | J59: 0 | K59: 0 | L59: =+K59/E24 -> 
C61: =+C25 -> <NSP to insert any additional items> | E61: =+D61*(1+IF($D$52="Nominal",E$48,E$49)) -> 0 | F61: =+E61*(1+IF($D$52="Nominal",F$48,F$49)) -> 0 | G61: =+F61*(1+IF($D$52="Nominal",G$48,G$49)) -> 0 | H61: =+G61*(1+IF($D$52="Nominal",H$48,H$49)) -> 0 | I61: =+H61*(1+IF($D$52="Nominal",I$48,I$49)) -> 0 | J61: 0 | K61: 0
C62: Annual change | E62: =+E61-D61 -> 0 | F62: =+F61-E61 -> 0 | G62: =+G61-F61 -> 0 | H62: =+H61-G61 -> 0 | I62: =+I61-H61 -> 0 | J62: 0 | K62: 0 | L62: =+K62/E25 -> 
C64: =+C26 -> <NSP to insert any additional items> | E64: =+D64*(1+IF($D$52="Nominal",E$48,E$49)) -> 0 | F64: =+E64*(1+IF($D$52="Nominal",F$48,F$49)) -> 0 | G64: =+F64*(1+IF($D$52="Nominal",G$48,G$49)) -> 0 | H64: =+G64*(1+IF($D$52="Nominal",H$48,H$49)) -> 0 | I64: =+H64*(1+IF($D$52="Nominal",I$48,I$49)) -> 0 | J64: 0 | K64: 0
C65: Annual change | E65: =+E64-D64 -> 0 | F65: =+F64-E64 -> 0 | G65: =+G64-F64 -> 0 | H65: =+H64-G64 -> 0 | I65: =+I64-H64 -> 0 | J65: 0 | K65: 0 | L65: =+K65/E26 -> 
C67: =+C27 -> <NSP to insert any additional items> | E67: =+D67*(1+IF($D$52="Nominal",E$48,E$49)) -> 0 | F67: =+E67*(1+IF($D$52="Nominal",F$48,F$49)) -> 0 | G67: =+F67*(1+IF($D$52="Nominal",G$48,G$49)) -> 0 | H67: =+G67*(1+IF($D$52="Nominal",H$48,H$49)) -> 0 | I67: =+H67*(1+IF($D$52="Nominal",I$48,I$49)) -> 0 | J67: =+SUM(E67:I67) -> 0 | K67: =+AVERAGE(E67:I67) -> 0
C68: Annual change | E68: =+E67-D67 -> 0 | F68: =+F67-E67 -> 0 | G68: =+G67-F67 -> 0 | H68: =+H67-G67 -> 0 | I68: =+I67-H67 -> 0 | J68: =+SUM(E68:I68) -> 0 | K68: =+AVERAGE(E68:I68) -> 0 | L68: =+K68/E27 -> 
C71: Table 21.5 - Distribution bill component - Business customer
A72: $0's, nominal | C72: Tariff type | D72: $0's, nominal | K72: Average | L72: Annual impact on customer bill (%)
A73: =CRCP_y6 -> 2015-16 | D73: =CRCP_y6 -> 2015-16 | E73: =FRCP_y1 -> 2016-17 | F73: =FRCP_y2 -> 2017-18 | G73: =FRCP_y3 -> 2018-19 | H73: =FRCP_y4 -> 2019-20 | I73: =FRCP_y5 -> 2020-21 | J73: Total 2015-20
C74: =+C32 -> Business customer bill - reference service 480 GJ
C75: Annual change
C77: =+C33 -> <Service provider to insert any additional items>
C78: Annual change | L78: =+K78/E33 -> 
C80: =+C34 -> <Service provider to insert any additional items>
C81: Annual change | L81: =+K81/E34 -> 
C83: =+C35 -> <Service provider to insert any additional items>
C84: Annual change | L84: =+K84/E35 -> 

Sheet 23.1 Opex incl. RPM
B1: =SheetHeader -> REGULATORY REPORTING STATEMENT
B2: =dms_TradingName -> ActewAGL Distribution
B3: =CONCATENATE(FRCP_y1," to ",FRCP_y5) -> 2016-17 to 2020-21
B4: 23.1 - OPERATING EXPENDITURE INCLUDING RPM
B6: Instructions
B7: This template asks for information relating to operating expenditure inclusive of related party margins.
B8: In table 23.1 enter the required details into the yellow cells. This may require the insertion of new lines in each table.
B9: Reported expenditure is to be entered INCLUSIVE of any profit margins or management fees paid pursuant to arrangements or contracts with any related parties.
B10: =CONCATENATE("If ",dms_TradingName," intends to treat expenditure on meter replacement as operating expenditure, separate meter replacement expenditure into new and refurbished.") -> If ActewAGL Distribution intends to treat expenditure on meter replacement as operating expenditure, separate meter replacement expenditure into new and refurbished.
B11: In table 23.1.2, only enter amounts APPROVED BY THE RELEVANT REGULATOR.
B12: Step changes should be EXCLUSIVE of base level opex
B15: Table 23 - OPERATING EXPENDITURE
B16: Table 23.1 - Operating expenditure including RPM
C17: Previous access arrangement period | H17: Current access arrangement period
C18: $0's, nominal | K18: =CONCATENATE("$0's, real ",dms_DollarReal) -> $0's, real June 2016
C19: Actual | K19: Actual
C20: =PRCP -> 2005-06 | D20: 2006-07 | E20: 2007-08 | F20: 2008-09 | G20: 2009-10 | H20: =CRCP_y1 -> 2010-11 | I20: =CRCP_y2 -> 2011-12 | J20: =CRCP_y3 -> 2012-13 | K20: =CRCP_y5 -> 2014-15
B21: Table 23.1.1 - Operating and maintenance expenditure (actual/forecast)
B22: Reference services
B23: Operating & maintenance expenditure
B24: Operating & maintenance contracted to JAM
B25: Management Services Fee | C25: 3157404 | D25: 3363816 | E25: 3513803.99 | F25: 3917973.04 | G25: 4321211.49 | H25: 4390840.54 | I25: 4787274.8 | J25: 4582497.08
B26: Asset Services Fee | C26: 4898685.35 | D26: 5064522.77 | E26: 5434267.52 | F26: 5170589.87 | G26: 5370571.05 | H26: 5862567.46 | I26: 5833157.45 | J26: 6263320.94
B27: Operating & maintenance expenditure not contracted to JAM
B28: Information Technology Support | C28: 164304.25 | D28: 127186 | E28: 199447.4 | F28: 167846.2 | G28: 99331.25 | H28: 209588 | I28: 167794 | J28: 284949.39 | K28: 146692.3757
B29: Water Bath Heater Operations | C29: 0 | D29: 0 | E29: 0 | F29: 0 | G29: 0 | H29: 0 | I29: 183023.31 | J29: 109212.01 | K29: 146831.3745
B30: Other direct Costs | C30: 822633.17 | D30: 620828.19 | E30: 814875.9 | F30: 859978.18 | G30: 903771.56 | H30: 2028333.55 | I30: 1737495.32 | J30: 1284762.26 | K30: 1071299.228
B31: Consumer Engagement | C31: 0 | D31: 0 | E31: 0 | F31: 0 | G31: 0 | H31: 0 | I31: 0 | J31: 0 | K31: 93868.51501
B32: Total operating & maintenance expenditure | C32: =SUM(C22:C31) -> 9043026.77 | D32: 9176352.96 | E32: 9962394.81 | F32: 10116387.29 | G32: 10694885.35 | H32: 12491329.55 | I32: 12708744.88 | J32: 12524741.68 | K32: =SUM(K22:K31) -> 13025543.54
B33: Table 23.1.2 - Non-operating and maintenance expenditure (actual/forecast)
B34: Table 23.1.2.1 - Administration and overheads
B35: Corporate Support Charges Indirect | C35: 1068335.88 | D35: 1094877.96 | E35: 1152851.4 | F35: 1471002.12 | G35: 2209004.04 | H35: 2238003.96 | I35: 1779845.52 | J35: 1529329.56 | K35: 2481269.667
B36: Business Support Charges Direct | C36: 440870.33 | D36: 513328.5 | E36: 581749.47 | F36: 715863.96 | G36: 1013108.38 | H36: 1241927.7 | I36: 1361982.34 | J36: 1471770.9 | K36: 804038.8908
B37: Capitalisation of Administration and overheads | C37: 4321 | D37: 0 | E37: 0 | F37: 0 | G37: 0 | H37: 0 | I37: 9420.3 | J37: 3937.2
B38: Table 23.1.2.2 - Other non operating & maintenance expenditure
B39: Government levies | C39: 300944 | D39: 397162 | E39: 425946 | F39: 374520.98 | G39: 416941.03 | H39: 502754.79 | I39: 925163.35 | J39: 264098.34 | K39: 227796.9713
B40: Insurance | C40: 145774.88 | D40: 224060.02 | E40: 43365.48 | F40: 19079.36 | G40: 63188.55 | H40: 84767.9 | I40: 87168.18 | J40: 101016.43 | K40: 116983.9032
B41: Marketing | C41: 813622.19 | D41: 1068786.24 | E41: 1154375.15 | F41: 1291493.48 | G41: 1131078.2 | H41: 1182694.69 | I41: 798144.17 | J41: 1090164.56
B42: Regulatory Operations | C42: 0 | D42: 0 | E42: 34569.08 | F42: 1032662.5 | G42: 470947.21 | H42: 188658.17 | I42: 1167609.43 | J42: 109965.9 | K42: 2511592.465
B43: Unaccounted for gas | C43: 431599.24 | D43: 581080 | E43: 648310 | F43: 1262458.64 | G43: 697069.78 | H43: 764051.34 | I43: 1288787.24 | J43: 1037513.93 | K43: 1229108.231
B44: Carbon costs | C44: 0 | D44: 0 | E44: 0 | F44: 0 | G44: 0 | H44: 0 | I44: 0 | J44: 875771 | K44: 0
B45: Self insurance | C45: 0 | D45: 0 | E45: 0 | F45: 0 | G45: 0 | H45: 0 | I45: 0 | J45: 0 | K45: 0
B46: Debt raising | C46: 0 | D46: 0 | E46: 0 | F46: 0 | G46: 0 | H46: 0 | I46: 0 | J46: 0 | K46: 0
B47: Utilities Network Facilities Tax | C47: 0 | D47: 2075332.473 | E47: 3571739.7 | F47: 3383393.42 | G47: 3585121.01 | H47: 3788717.72 | I47: 4156458.89 | J47: 4887585.2 | K47: 5594328.284
B48: Total non operating & maintenance expenditure | C48: =SUM(C35:C47) -> 3205467.52 | D48: 5954627.193 | E48: 7612906.28 | F48: 9550474.46 | G48: 9586458.2 | H48: 9991576.27 | I48: 11574579.42 | J48: 11371153.02 | K48: =SUM(K35:K47) -> 14121666.03
B49: Total operating expenditure - Reference services | C49: =C48+C32 -> 12248494.29 | D49: 15130980.15 | E49: 17575301.09 | F49: 19666861.75 | G49: 20281343.55 | H49: 22482905.82 | I49: 24283324.3 | J49: 23895894.7 | K49: =K48+K32 -> 27147209.58
B50: Table 23.1.2.3 - Ancillary reference services
B51: Request for service | C51: 0 | D51: 57.32 | E51: 0 | F51: 182.19 | G51: 253.48 | H51: 387 | I51: 265.36 | J51: 617.22 | K51: 428.82
B52: Decommissioning and meter removal
B53: Special Meter reads | C53: 83285.96 | D53: 105042.7 | E53: 133468.87 | F53: 730619.56 | G53: 1030522.62 | H53: 669531.7 | I53: 695330.39 | J53: 747756.16 | K53: 949245.0718
B54: Reconnection fee | C54: 395.4 | D54: 1055.47 | E54: 924.66 | F54: 5591.3 | G54: 8977 | H54: 10968 | I54: 10434 | J54: 11565.61 | K54: 12052.32
B55: Disconnection fee | C55: 2782 | D55: 8239.5 | E55: 6825 | F55: 43184.4 | G55: 69232.2 | H55: 79044.3 | I55: 83208.42 | J55: 94833.13 | K55: 101157.66
B56: Total operating expenditure - Ancillary reference services | C56: =SUM(C51:C55) -> 86463.36 | D56: =SUM(D51:D55) -> 114394.99 | E56: 141218.53 | F56: 779577.45 | G56: 1108985.3 | H56: 759931 | I56: 789238.17 | J56: 854772.12 | K56: =SUM(K51:K55) -> 1062883.872
B57: Total operating expenditure - including RPM | C57: =C56+C49 -> 12334957.65 | D57: =D56+D49 -> 15245375.14 | E57: 17716519.62 | F57: 20446439.2 | G57: 21390328.85 | H57: 23242836.82 | I57: 25072562.47 | J57: 24750666.82 | K57: =K56+K49 -> 28210093.45
B58: Source(s) of data:
C60: Previous access arrangement period | H60: Current access arrangement period
C61: $0's, nominal
C62: Approved
C63: =PRCP -> 2005-06 | D63: 2006-07 | E63: 2007-08 | F63: 2008-09 | G63: 2009-10 | H63: =CRCP_y1 -> 2010-11 | I63: =CRCP_y2 -> 2011-12 | J63: =CRCP_y3 -> 2012-13 | K63: =CRCP_y5 -> 2014-15
B64: Table 23.1.3 - Operating and maintenance expenditure (approved)
B65: Reference services
B66: Operating & maintenance expenditure | C66: 8215200 | D66: 8858602.141 | E66: 9173831.191 | F66: 9697806.041 | G66: 9973577.363 | H66: 10864170.9 | I66: 13126967 | J66: 13713203.26 | K66: 13445076.02
B67: Operating & maintenance contracted to JAM
B68: Management Services Fee
B69: Asset Services Fee
B70: Operating & maintenance expenditure not contracted to JAM
B71: Information Technology Support
B72: Regulatory Operations
B73: Water Bath Heater Operations
B74: Other direct Costs | C74: 246456 | D74: 255229.8336 | E74: 261176.6887 | F74: 272537.8747 | G74: 277364.8398 | H74: 236712.1821 | I74: 244532.7979 | J74: 248843.3735 | K74: 942888.8889
B75: <insert expenditure item>
B76: Total operating & maintenance expenditure | C76: =SUM(C66:C75) -> 8461656 | D76: =SUM(D66:D75) -> 9113831.975 | E76: 9435007.88 | F76: 9970343.915 | G76: 10250942.2 | H76: =SUM(H66:H75) -> 11100883.08 | I76: 13371499.8 | J76: 13962046.64 | K76: 14387964.91
B77: Table 23.1.4 - Non-operating and maintenance expenditure (approved)
B78: Table 23.1.4.1 - Administration and overheads
B79: Corporate Support Charges Indirect | C79: 1971648 | D79: 2041838.669 | E79: 2089413.51 | F79: 2180302.997 | G79: 2218918.718 | H79: 3337382.637 | I79: 3534050.296 | J79: 3678720.549 | K79: 4018700.727
B80: Business Support Charges Direct
B81: <insert expenditure item>
B82: Table 23.1.4.2 - Other non operating & maintenance expenditure
B83: Government levies | C83: 564795 | D83: 584901.702 | E83: 598529.9117 | F83: 624565.9628 | G83: 635627.7578 | H83: 664852.4808 | I83: 686818.2105 | J83: 698925.3057 | K83: 733862.923
B84: Insurance | C84: 246456 | D84: 255229.8336 | E84: 261176.6887 | F84: 283893.6195 | G84: 288921.7081 | H84: 270691.7409 | I84: 279342.4189 | J84: 285199.9862 | K84: 303549.0461
B85: Marketing | C85: 1499274 | D85: 1552648.154 | E85: 1588824.856 | F85: 1657938.738 | G85: 1687302.775 | H85: 1367315.537 | I85: 1419098.84 | J85: 1458559.285 | K85: 1565976.79
B86: Unaccounted for gas | C86: 410760 | D86: 425383.056 | E86: 435294.4812 | F86: 465585.5359 | G86: 473831.6013 | H86: 730021.5636 | I86: 741292.1381 | J86: 762004.4392 | K86: 827222.4287
B87: Carbon costs
B88: Self insurance
B89: Debt raising
B90: Utilities Network Facilities Tax | C90: 0 | D90: 0 | E90: 0 | F90: 0 | G90: 0 | H90: 3472167.304 | I90: 3638663.49 | J90: 3756259.591 | K90: 4058721.603
B91: Total non operating & maintenance expenditure | C91: =SUM(C79:C90) -> 4692933 | D91: =SUM(D79:D90) -> 4860001.415 | E91: 4973239.448 | F91: 5212286.853 | G91: 5304602.561 | H91: 9842431.263 | I91: 10299265.39 | J91: 10639669.16 | K91: 11508033.52
B92: Total operating expenditure - Reference services | C92: =C91+C76 -> 13154589 | D92: =D91+D76 -> 13973833.39 | E92: 14408247.33 | F92: 15182630.77 | G92: 15555544.76 | H92: 20943314.34 | I92: 23670765.19 | J92: 24601715.79 | K92: 25895998.43
B93: Table 23.1.4.3 - Ancillary reference services
B94: Request for service
B95: Decommissioning and meter removal
B96: Special Meter reads | H96: 156348.6202 | I96: 166530.4719 | J96: 174410.1533 | K96: 192340.4303
B97: Reconnection fee
B98: Disconnection fee
B99: Total operating expenditure - Ancillary reference services | C99: =SUM(C94:C98) -> 0 | D99: =SUM(D94:D98) -> 0 | E99: 0 | F99: 0 | G99: 0 | H99: 156348.6202 | I99: 166530.4719 | J99: 174410.1533 | K99: 192340.4303
B100: Total operating expenditure - including RPM | C100: =C99+C92 -> 13154589 | D100: =D99+D92 -> 13973833.39 | E100: 14408247.33 | F100: 15182630.77 | G100: 15555544.76 | H100: 21099662.96 | I100: 23837295.66 | J100: 24776125.95 | K100: 26088338.86
B101: Source(s) of data:
B103: Table 23.1.3 - Step Changes
D104: Next access arrangement period
D105: $0's, nominal
D106: Forecast
D107: =FRCP -> 2016-17 | E107: 2017-18 | F107: 2018-19 | G107: 2019-20 | H107: 2020-21
B108: Step Changes | C108: Recurrent?
B109: RIN reporting | C109: yes | D109: 418009.5071 | E109: 312813.6142 | F109: 326942.9868 | G109: 341867.8645 | H109: 357264.1871
B110: 2021 AA review project | C110: no | D110: 0 | E110: 0 | F110: 111301.5334 | G110: 2539997.945 | H110: 938688.9193
B111: IT Asset Utilisation Fee | C111: no | D111: 958018.1051 | E111: 930665.9081 | F111: 901297.7526 | G111: 869828.6601 | H111: 837333.594
B112: National B2B Requirements | C112: yes | D112: 209004.7536 | E112: 217852.3384 | F112: 227692.4372 | G112: 238086.5485 | H112: 248808.9874
B113: NECF Combined | C113: yes | D113: 248219.1138 | E113: 135854.6219 | F113: 141783.608 | G113: 148040.3101 | H113: 154435.0299
B114: AS 2885 Safety Management Studies | C114: yes | D114: 160295.5685 | E114: 91113.73728 | F114: 0 | G114: 99091.87513 | H114: 234199.8821
B115: Recontracting MDL installation and maintenance | C115: yes | D115: -174734.6195 | E115: -181235.5466 | F115: -188492.4456 | G115: -196130.6084 | H115: -203742.9035
B116: Hoskinstown CTS O&M contract | C116: yes | D116: 50106.29685 | E116: 51996.30983 | F116: 54105.23041 | G116: 56325.84226 | H116: 57301.99999
B117: Compliance to ACT technical Codes for metering | C117: yes | D117: 84170.94478 | E117: 87302.48889 | F117: 90798.19028 | G117: 94477.54919 | H117: 98144.4474
B118: Periodic inspections | C118: yes | D118: 11843.6027 | E118: 12344.96584 | F118: 12902.57144 | G118: 285203.266 | H118: 14099.17595
B119: Capex driven | C119: yes | D119: 93578.9124 | E119: 84241.3763 | F119: 272911.7757 | G119: 111052.9774 | H119: 122158.7786
B120: Capitalisation of corporate overheads | C120: yes | D120: -1304519.862 | E120: -1586497.802 | F120: -1503921.5 | G120: -1514738.11 | H120: -1169004.624
B121: <insert step change> | C121: select
B122: Total step changes | D122: =SUM(D109:D121) -> 753992.3234 | E122: =SUM(E109:E121) -> 156452.0122 | F122: =SUM(F109:F121) -> 447322.1397 | G122: =SUM(G109:G121) -> 3073104.12 | H122: =SUM(H109:H121) -> 1689687.474
B123: Source(s) of data:

Sheet 23.2 Opex excl. RPM
B1: =SheetHeader -> REGULATORY REPORTING STATEMENT
B2: =dms_TradingName -> ActewAGL Distribution
B3: =CONCATENATE(FRCP_y1," to ",FRCP_y5) -> 2016-17 to 2020-21
B4: 23.1 - OPERATING EXPENDITURE EXCLUDING RPM
B6: Instructions
B7: This template asks for information relating to operating expenditure exclusive of related party margins.
B8: In table 23.2 enter the required details into the yellow cells. This may require the insertion of new lines in each table.
B9: Reported expenditure is to be entered INCLUSIVE of any profit margins or management fees paid pursuant to arrangements or contracts with any related parties.
B10: =CONCATENATE("If ",dms_TradingName," intends to treat expenditure on meter replacement as operating expenditure, separate meter replacement expenditure into new and refurbished.") -> If ActewAGL Distribution intends to treat expenditure on meter replacement as operating expenditure, separate meter replacement expenditure into new and refurbished.
B11: In table 23.2.2, only enter amounts APPROVED BY THE RELEVANT REGULATOR.
B12: Step changes should be EXCLUSIVE of base level opex
B15: Table 23 - OPERATING EXPENDITURE
B16: Table 23.2 - Operating expenditure excluding RPM
C17: Previous access arrangement period | H17: Current access arrangement period
C18: $0's, nominal | K18: =CONCATENATE("$0's, real ",dms_DollarReal) -> $0's, real June 2016
C19: Actual | K19: Actual
C20: =PRCP -> 2005-06 | D20: 2006-07 | E20: 2007-08 | F20: 2008-09 | G20: 2009-10 | H20: =CRCP_y1 -> 2010-11 | I20: =CRCP_y2 -> 2011-12 | J20: =CRCP_y3 -> 2012-13 | K20: =CRCP_y5 -> 2014-15
B21: Table 23.2.1 - Operating and maintenance expenditure (actual/forecast)
B22: Reference services | C22: 0 | D22: 0 | E22: 0 | F22: 0 | G22: 0 | H22: 0 | I22: 0 | J22: 0 | K22: 0
B23: Operating & maintenance expenditure | C23: 0 | D23: 0 | E23: 0 | F23: 0 | G23: 0 | H23: 0 | I23: 0 | J23: 0 | K23: 0
B24: Operating & maintenance contracted to JAM | C24: 0 | D24: 0 | E24: 0 | F24: 0 | G24: 0 | H24: 0 | I24: 0 | J24: 0 | K24: 0
B25: Management Services Fee | C25: 2595654.129 | D25: 2759606.656 | E25: 2543313.849 | F25: 3393640.353 | G25: 4148840.685 | H25: 3968946.073 | I25: 4276878.318 | J25: 4597665.29
B26: Asset Services Fee | C26: 4027135.221 | D26: 4154832.114 | E26: 3933357.661 | F26: 4478622.557 | G26: 5156341.855 | H26: 5299261.927 | I26: 5211253.932 | J26: 6284052.73
B27: Operating & maintenance expenditure not contracted to JAM | C27: 0 | D27: 0 | E27: 0 | F27: 0 | G27: 0 | H27: 0 | I27: 0 | J27: 0 | K27: 0
B28: Information Technology Support | C28: 164304.25 | D28: 127186 | E28: 199447.4 | F28: 167846.2 | G28: 99331.25 | H28: 209588 | I28: 167794 | J28: 284949.39 | K28: 146692.3757
B29: Water Bath Heater Operations | C29: 0 | D29: 0 | E29: 0 | F29: 0 | G29: 0 | H29: 0 | I29: 183023.31 | J29: 109212.01 | K29: 146831.3745
B30: Other direct Costs | C30: 822633.17 | D30: 620828.19 | E30: 814875.9 | F30: 859978.18 | G30: 903771.56 | H30: 2028333.55 | I30: 1737495.32 | J30: 1284762.26 | K30: 1071299.228
B31: Consumer Engagement | C31: 0 | D31: 0 | E31: 0 | F31: 0 | G31: 0 | H31: 0 | I31: 0 | J31: 0 | K31: 93868.51501
B32: Total operating & maintenance expenditure | C32: =SUM(C22:C31) -> 7609726.77 | D32: 7662452.96 | E32: 7490994.81 | F32: 8900087.29 | G32: 10308285.35 | H32: 11506129.55 | I32: 11576444.88 | J32: 12560641.68 | K32: =SUM(K22:K31) -> 13025543.54
B33: Table 23.2.2 - Non-operating and maintenance expenditure (actual/forecast)
B34: Table 23.2.2.1 - Administration and overheads
B35: Corporate Support Charges Indirect | C35: 1068335.88 | D35: 1094877.96 | E35: 1152851.4 | F35: 1471002.12 | G35: 2209004.04 | H35: 2238003.96 | I35: 1779845.52 | J35: 1529329.56 | K35: 2481269.667
B36: Business Support Charges Direct | C36: 440870.33 | D36: 513328.5 | E36: 581749.47 | F36: 715863.96 | G36: 1013108.38 | H36: 1241927.7 | I36: 1361982.34 | J36: 1471770.9 | K36: 804038.8908
B37: Capitalisation of Administration and overheads | C37: 4321 | D37: 0 | E37: 0 | F37: 0 | G37: 0 | H37: 0 | I37: 9420.3 | J37: 3937.2 | K37: 0
B38: Table 23.2.2.2 - Other non operating & maintenance expenditure
B39: Government levies | C39: 300944 | D39: 397162 | E39: 425946 | F39: 374520.98 | G39: 416941.03 | H39: 502754.79 | I39: 925163.35 | J39: 264098.34 | K39: 227796.9713
B40: Insurance | C40: 145774.88 | D40: 224060.02 | E40: 43365.48 | F40: 19079.36 | G40: 63188.55 | H40: 84767.9 | I40: 87168.18 | J40: 101016.43 | K40: 116983.9032
B41: Marketing | C41: 788122.19 | D41: 1035586.24 | E41: 1111575.15 | F41: 1250593.48 | G41: 1100078.2 | H41: 1160194.69 | I41: 723744.17 | J41: 1090164.56
B42: Regulatory Operations | C42: 0 | D42: 0 | E42: 34569.08 | F42: 1032662.5 | G42: 470947.21 | H42: 188658.17 | I42: 1167609.43 | J42: 109965.9 | K42: 2511592.465
B43: Unaccounted for gas | C43: 431599.24 | D43: 581080 | E43: 648310 | F43: 1262458.64 | G43: 697069.78 | H43: 764051.34 | I43: 1288787.24 | J43: 1037513.93 | K43: 1229108.231
B44: Carbon costs | C44: 0 | D44: 0 | E44: 0 | F44: 0 | G44: 0 | H44: 0 | I44: 0 | J44: 875771 | K44: 0
B45: Self insurance | C45: 0 | D45: 0 | E45: 0 | F45: 0 | G45: 0 | H45: 0 | I45: 0 | J45: 0 | K45: 0
B46: Debt raising | C46: 0 | D46: 0 | E46: 0 | F46: 0 | G46: 0 | H46: 0 | I46: 0 | J46: 0 | K46: 0
B47: Utilities Network Facilities Tax | C47: 0 | D47: 2075332.473 | E47: 3571739.7 | F47: 3383393.42 | G47: 3585121.01 | H47: 3788717.72 | I47: 4156458.89 | J47: 4887585.2 | K47: 5594328.284
B48: Total non operating & maintenance expenditure | C48: =SUM(C35:C47) -> 3179967.52 | D48: 5921427.193 | E48: 7570106.28 | F48: 9509574.46 | G48: 9555458.2 | H48: 9969076.27 | I48: 11500179.42 | J48: 11371153.02 | K48: =SUM(K35:K47) -> 14121666.03
B49: Total operating expenditure - Reference services | C49: =C48+C32 -> 10789694.29 | D49: 13583880.15 | E49: 15061101.09 | F49: 18409661.75 | G49: 19863743.55 | H49: 21475205.82 | I49: 23076624.3 | J49: 23931794.7 | K49: =K48+K32 -> 27147209.58
B50: Table 23.2.2.3 - Ancillary reference services
B51: Request for service | C51: 0 | D51: 0.9996314244 | E51: 0 | F51: 56.83142787 | G51: 38.57913883 | H51: 93.15884863 | I51: 66.75309278 | J51: 96.66734323 | K51: 82.62427746
B52: Decommissioning and meter removal | C52: 0 | D52: 0 | E52: 0 | F52: 0 | G52: 0 | H52: 0 | I52: 0 | J52: 0 | K52: 0
B53: Special Meter reads | C53: 58915.69741 | D53: 1831.890855 | E53: 48124.26996 | F53: 227905.7732 | G53: 156843.4402 | H53: 161170.0318 | I53: 174915.0363 | J53: 117111.567 | K53: 182898.8578
B54: Reconnection fee | C54: 279.7022062 | D54: 18.40685589 | E54: 333.400496 | F54: 1744.121865 | G54: 1366.281084 | H54: 2640.222873 | I54: 2624.742878 | J54: 1811.374861 | K54: 2322.219653
B55: Disconnection fee | C55: 1967.960388 | D55: 143.6926574 | E55: 2460.859543 | F55: 13470.72349 | G55: 10536.99959 | H55: 19027.58651 | I55: 20931.6377 | J55: 14852.51082 | K55: 19490.87861
B56: Total operating expenditure - Ancillary reference services | C56: =SUM(C51:C55) -> 61163.36 | D56: 1994.99 | E56: 50918.53 | F56: 243177.45 | G56: 168785.3 | H56: 182931 | I56: 198538.17 | J56: 133872.12 | K56: =SUM(K51:K55) -> 204794.5803
B57: Total operating expenditure - excluding RPM | C57: =C56+C49 -> 10850857.65 | D57: 13585875.14 | E57: 15112019.62 | F57: 18652839.2 | G57: 20032528.85 | H57: 21658136.82 | I57: 23275162.47 | J57: 24065666.82 | K57: =K56+K49 -> 27352004.16
B58: Source(s) of data:
C60: Previous access arrangement period | H60: Current access arrangement period
C61: $0's, nominal
C62: Approved
C63: =PRCP -> 2005-06 | D63: 2006-07 | E63: 2007-08 | F63: 2008-09 | G63: 2009-10 | H63: =CRCP_y1 -> 2010-11 | I63: =CRCP_y2 -> 2011-12 | J63: =CRCP_y3 -> 2012-13 | K63: =CRCP_y5 -> 2014-15
B64: Table 23.2.3 - Operating and maintenance expenditure (approved)
B65: Reference services
B66: Operating & maintenance expenditure | C66: 8215200 | D66: 8858602.141 | E66: 9173831.191 | F66: 9697806.041 | G66: 9973577.363 | H66: 10864170.9 | I66: 13126967 | J66: 13713203.26 | K66: 13445076.02
B67: Operating & maintenance contracted to JAM | C67: 0 | D67: 0 | E67: 0 | F67: 0 | G67: 0 | H67: 0 | I67: 0 | J67: 0 | K67: 0
B68: Management Services Fee | C68: 0 | D68: 0 | E68: 0 | F68: 0 | G68: 0 | H68: 0 | I68: 0 | J68: 0 | K68: 0
B69: Asset Services Fee | C69: 0 | D69: 0 | E69: 0 | F69: 0 | G69: 0 | H69: 0 | I69: 0 | J69: 0 | K69: 0
B70: Operating & maintenance expenditure not contracted to JAM | C70: 0 | D70: 0 | E70: 0 | F70: 0 | G70: 0 | H70: 0 | I70: 0 | J70: 0 | K70: 0
B71: Information Technology Support | C71: 0 | D71: 0 | E71: 0 | F71: 0 | G71: 0 | H71: 0 | I71: 0 | J71: 0 | K71: 0
B72: Regulatory Operations | C72: 0 | D72: 0 | E72: 0 | F72: 0 | G72: 0 | H72: 0 | I72: 0 | J72: 0 | K72: 0
B73: Water Bath Heater Operations | C73: 0 | D73: 0 | E73: 0 | F73: 0 | G73: 0 | H73: 0 | I73: 0 | J73: 0 | K73: 0
B74: Other direct Costs | C74: 246456 | D74: 255229.8336 | E74: 261176.6887 | F74: 272537.8747 | G74: 277364.8398 | H74: 236712.1821 | I74: 244532.7979 | J74: 248843.3735 | K74: 942888.8889
B75: <insert expenditure item> | C75: 0 | D75: 0 | E75: 0 | F75: 0 | G75: 0 | H75: 0 | I75: 0 | J75: 0 | K75: 0
B76: Total operating & maintenance expenditure | C76: =SUM(C66:C75) -> 8461656 | D76: =SUM(D66:D75) -> 9113831.975 | E76: 9435007.88 | F76: 9970343.915 | G76: 10250942.2 | H76: 11100883.08 | I76: 13371499.8 | J76: 13962046.64 | K76: 14387964.91
B77: Table 23.2.4 - Non-operating and maintenance expenditure (approved)
B78: Table 23.2.4.1 - Administration and overheads
B79: Corporate Support Charges Indirect | C79: 1971648 | D79: 2041838.669 | E79: 2089413.51 | F79: 2180302.997 | G79: 2218918.718 | H79: 3337382.637 | I79: 3534050.296 | J79: 3678720.549 | K79: 4018700.727
B80: Business Support Charges Direct | C80: 0 | D80: 0 | E80: 0 | F80: 0 | G80: 0 | H80: 0 | I80: 0 | J80: 0 | K80: 0
B81: <insert expenditure item> | C81: 0 | D81: 0 | E81: 0 | F81: 0 | G81: 0 | H81: 0 | I81: 0 | J81: 0 | K81: 0
B82: Table 23.2.4.2 - Other non operating & maintenance expenditure | C82: 0 | D82: 0 | E82: 0 | F82: 0 | G82: 0 | H82: 0 | I82: 0 | J82: 0 | K82: 0
B83: Government levies | C83: 564795 | D83: 584901.702 | E83: 598529.9117 | F83: 624565.9628 | G83: 635627.7578 | H83: 664852.4808 | I83: 686818.2105 | J83: 698925.3057 | K83: 733862.923
B84: Insurance | C84: 246456 | D84: 255229.8336 | E84: 261176.6887 | F84: 283893.6195 | G84: 288921.7081 | H84: 270691.7409 | I84: 279342.4189 | J84: 285199.9862 | K84: 303549.0461
B85: Marketing | C85: 1499274 | D85: 1552648.154 | E85: 1588824.856 | F85: 1657938.738 | G85: 1687302.775 | H85: 1367315.537 | I85: 1419098.84 | J85: 1458559.285 | K85: 1565976.79
B86: Unaccounted for gas | C86: 410760 | D86: 425383.056 | E86: 435294.4812 | F86: 465585.5359 | G86: 473831.6013 | H86: 730021.5636 | I86: 741292.1381 | J86: 762004.4392 | K86: 827222.4287
B87: Carbon costs | C87: 0 | D87: 0 | E87: 0 | F87: 0 | G87: 0 | H87: 0 | I87: 0 | J87: 0 | K87: 0
B88: Self insurance | C88: 0 | D88: 0 | E88: 0 | F88: 0 | G88: 0 | H88: 0 | I88: 0 | J88: 0 | K88: 0
B89: Debt raising | C89: 0 | D89: 0 | E89: 0 | F89: 0 | G89: 0 | H89: 0 | I89: 0 | J89: 0 | K89: 0
B90: <insert expenditure item> | C90: 0 | D90: 0 | E90: 0 | F90: 0 | G90: 0 | H90: 3472167.304 | I90: 3638663.49 | J90: 3756259.591 | K90: 4058721.603
B91: Total non operating & maintenance expenditure | C91: =SUM(C79:C90) -> 4692933 | D91: =SUM(D79:D90) -> 4860001.415 | E91: 4973239.448 | F91: 5212286.853 | G91: 5304602.561 | H91: 9842431.263 | I91: 10299265.39 | J91: 10639669.16 | K91: 11508033.52
B92: Total operating expenditure - Reference services | C92: =C91+C76 -> 13154589 | D92: =D91+D76 -> 13973833.39 | E92: 14408247.33 | F92: 15182630.77 | G92: 15555544.76 | H92: 20943314.34 | I92: 23670765.19 | J92: 24601715.79 | K92: 25895998.43
B93: Table 23.2.4.3 - Ancillary reference services
B94: Request for service | C94: 0 | D94: 0 | E94: 0 | F94: 0 | G94: 0 | H94: 0 | I94: 0 | J94: 0 | K94: 0
B95: Decommissioning and meter removal | C95: 0 | D95: 0 | E95: 0 | F95: 0 | G95: 0 | H95: 0 | I95: 0 | J95: 0 | K95: 0
B96: Special Meter reads | C96: 0 | D96: 0 | E96: 0 | F96: 0 | G96: 0 | H96: 156348.6202 | I96: 166530.4719 | J96: 174410.1533 | K96: 192340.4303
B97: Reconnection fee | C97: 0 | D97: 0 | E97: 0 | F97: 0 | G97: 0 | H97: 0 | I97: 0 | J97: 0 | K97: 0
B98: Disconnection fee | C98: 0 | D98: 0 | E98: 0 | F98: 0 | G98: 0 | H98: 0 | I98: 0 | J98: 0 | K98: 0
B99: Total operating expenditure - Ancillary reference services | C99: =SUM(C94:C98) -> 0 | D99: =SUM(D94:D98) -> 0 | E99: 0 | F99: 0 | G99: 0 | H99: 156348.6202 | I99: 166530.4719 | J99: 174410.1533 | K99: 192340.4303
B100: Total operating expenditure - excluding RPM | C100: =C99+C92 -> 13154589 | D100: =D99+D92 -> 13973833.39 | E100: 14408247.33 | F100: 15182630.77 | G100: 15555544.76 | H100: 21099662.96 | I100: 23837295.66 | J100: 24776125.95 | K100: 26088338.86
B101: Source(s) of data:
B103: Table 23.2.3 - Step Changes
D104: Next access arrangement period
D105: $0's, nominal
D106: Forecast
D107: =FRCP -> 2016-17 | E107: 2017-18 | F107: 2018-19 | G107: 2019-20 | H107: 2020-21
B108: Step Changes | C108: Recurrent?
B109: <insert step change> | C109: select
B110: <insert step change> | C110: select
B111: <insert step change> | C111: select
B112: <insert step change> | C112: select
B113: <insert step change> | C113: select
B114: <insert step change> | C114: select
B115: <insert step change> | C115: select
B116: <insert step change> | C116: select
B117: <insert step change> | C117: select
B118: <insert step change> | C118: select
B119: <insert step change> | C119: select
B120: <insert step change> | C120: select
B121: Total step changes | D121: =SUM(D109:D120) -> 0 | E121: =SUM(E109:E120) -> 0 | F121: =SUM(F109:F120) -> 0 | G121: =SUM(G109:G120) -> 0 | H121: =SUM(H109:H120) -> 0
B122: Source(s) of data:

Sheet 23.3 Opex rate-of-change
B1: =SheetHeader -> REGULATORY REPORTING STATEMENT
B2: =dms_TradingName -> ActewAGL Distribution
B3: =CONCATENATE(FRCP_y1," to ",FRCP_y5) -> 2016-17 to 2020-21
B4: 23.3 - OPERATING EXPENDITURE RATE OF CHANGE
B7: Instructions
B8: =CONCATENATE("This template asks for information relating to the real rate of change of ",dms_TradingName, "'s operating expenditure.") -> This template asks for information relating to the real rate of change of ActewAGL Distribution's operating expenditure.
B9: Reported expenditure is to be entered INCLUSIVE of any profit margins or management fees paid pursuant to arrangements or contracts with any related parties.
B10: Step changes should be EXCLUSIVE of base level opex
B12: Table 23.3 - OPERATING EXPENDITURE RATE OF CHANGE
B13: Table 23.3.1 - Total opex rate of change by item
C14: Current access arrangement period
C15: =CONCATENATE("$0's, real ",dms_DollarReal) -> $0's, real June 2016
C16: Actual
C17: =CRCP_y5 -> 2014-15
B18: Efficent recurrent opex
B19: Real price changes (%)
B20: Real price changes ($0's) | C20: =C19*C18 -> 0
B21: Output growth (%)
B22: Output growth($0's) | C22: =C21*C18 -> 0
B23: Productivity growth (%)
B24: Productivity growth ($0's) | C24: =-C23*C18 -> 0
B25: Step changes
B26: Total opex
C28: 17351060.07

Sheet 24. Cost category matrix
B1: =SheetHeader -> REGULATORY REPORTING STATEMENT
B2: =dms_TradingName -> ActewAGL Distribution
B3: =CONCATENATE(FRCP_y1," to ",FRCP_y5) -> 2016-17 to 2020-21
B4: 24. COST CATEGORY MATRIX
B7: Instructions
B8: This template asks for divisions between expense categories used to escalate unit costs. The expenditure is to include related party margins and overheads.
B10: Table 24 - COST CATEGORY MATRIX
C12: =CONCATENATE("$0's, real ",dms_DollarReal) -> $0's, real June 2016
C13: Actual
C14: =CRCP_y5 -> 2014-15
B15: Table 24.1 - Capex | C15: 23725081
B16: Internal labour expenditure
B17: Contractor expenditure | C17: =C15-C18 -> 23725081
B18: Other expenditure | C18: 0
B19: Table 24.2 - Opex | C19: =SUM(C20:C22) -> 28210093.45
B20: Internal labour expenditure | C20: 3432000.934
B21: Contractor expenditure | C21: 12629735.92
B22: Other expenditure | C22: 12148356.59
B23: Total | C23: =SUM(C15,C19) -> 51935174.45
B24: Source(s) of data:

Sheet 25. ARS
B1: =SheetHeader -> REGULATORY REPORTING STATEMENT
B2: =dms_TradingName -> ActewAGL Distribution
B3: =CONCATENATE(FRCP_y1," to ",FRCP_y5) -> 2016-17 to 2020-21
B4: 25. ANCILLARY REFERENCE SERVICES
B8: Instructions
B9: This template asks for information relating to ancillary reference services
B10: In tables 25.1 and 25.2 enter the required details into the yellow cells. This may require the insertion of new lines in each table.
B11: =CONCATENATE("Ancillary reference services listed are those used in ", dms_TradingName,"'s past access arrangements.") -> Ancillary reference services listed are those used in ActewAGL Distribution's past access arrangements.
B13: Table 25 - ANCILLARY REFERENCE SERVICES
B14: Table 25.1 - Volume
C16: =CONCATENATE("$0's, real ",dms_DollarReal) -> $0's, real June 2016
C17: Actual
C18: =CRCP_y5 -> 2014-15
B19: Request for service | C19: 6
B20: Reconnection | C20: 119
B21: Disconnection | C21: 738
B22: Decommisioning and meter removal
B23: Special Meter reads | C23: 31866.42925
B24: Residential Disconnection fee (less than 6m3/hour meter set)
B25: Business Disconnection fee (greater than 6m3/hour meter set)
B26: Residential Reconnection fee (less than 6m3/hour meter set)
B27: Business Reconnection fee (greater than 6m3/hour meter set)
B28: Decomission & meter removal - residential (less than 6m3/hour meter set)
B29: Decomission & meter removal - business (greater than 6m3/hour meter set)
B30: Total quantities - ancillary reference services | C30: =SUM(C19:C29) -> 32729.42925
B31: Source(s) of data:
B33: Table 25.2 - Revenue
C35: =CONCATENATE("$0's, real ",dms_DollarReal) -> $0's, real June 2016
C36: Actual
C37: =CRCP_y5 -> 2014-15
B38: Request for service | C38: =C19*C57 -> 428.82
B39: Reconnection | C39: 12052.32
B40: Disconnection | C40: 101157.66
B41: Decommisioning and meter removal | C41: 0
B42: Special Meter reads | C42: 949245.0718
B43: Residential Disconnection fee (less than 6m3/hour meter set)
B44: Business Disconnection fee (greater than 6m3/hour meter set)
B45: Residential Reconnection fee (less than 6m3/hour meter set)
B46: Business Reconnection fee (greater than 6m3/hour meter set)
B47: Decomission & meter removal - residential (less than 6m3/hour meter set)
B48: Decomission & meter removal - business (greater than 6m3/hour meter set)
B49: Total revenue - ancillary reference services | C49: =SUM(C38:C47) -> 1062883.872
B50: Source(s) of data:
B52: Table 25.3 - Price
C54: =CONCATENATE("$0's, real ",dms_DollarReal) -> $0's, real June 2016
C55: Actual
C56: =CRCP_y5 -> 2014-15
B57: Request for service | C57: 71.47
B58: Reconnection | C58: 101.28
B59: Disconnection | C59: 137.07
B60: Decommisioning and meter removal
B61: Special Meter reads | C61: =(53.63)*($C$68) -> 29.7882472
B62: Residential Disconnection fee (less than 6m3/hour meter set)
B63: Business Disconnection fee (greater than 6m3/hour meter set)
B64: Residential Reconnection fee (less than 6m3/hour meter set)
B65: Business Reconnection fee (greater than 6m3/hour meter set)
B66: Decomission & meter removal - residential (less than 6m3/hour meter set)
B67: Decomission & meter removal - business (greater than 6m3/hour meter set)
C68: 0.55544
B70: Table 25.4 - Volume Backcast for change in reference service categories
C72: $0's, real June 2016
C73: Actual
C74: 2014-15
B75: Request for service | C75: 5.5
B76: Special Meter reads | C76: =C23 -> 31866.42925
B77: Residential Disconnection fee (less than 6m3/hour meter set) | C77: 95.36945081
B78: Business Disconnection fee (greater than 6m3/hour meter set) | C78: 8.06094061
B79: Residential Reconnection fee (less than 6m3/hour meter set) | C79: 104
B80: Business Reconnection fee (greater than 6m3/hour meter set) | C80: 15
B81: Decomission & meter removal - residential (less than 6m3/hour meter set) | C81: 630.1717102
B82: Decomission & meter removal - business (greater than 6m3/hour meter set) | C82: 4.894142513
B83: Total quantities - ancillary reference services | C83: =SUM(C75:C82) -> 32729.42549
B84: Source(s) of data:

Sheet 26. Allocation of total revenue
B1: =SheetHeader -> REGULATORY REPORTING STATEMENT
B2: =dms_TradingName -> ActewAGL Distribution
B3: =CONCATENATE(FRCP_y1," to ",FRCP_y5) -> 2016-17 to 2020-21
B4: 26. ALLOCATION OF TOTAL REVENUE
B7: Instructions
B8: This template asks the service provider to allocate total revenue to reference and non-reference services.
B9: In table 26 enter the required details into the yellow cells. This may require the insertion of new lines in each table.
B10: =CONCATENATE(dms_TradingName, " may add to and/or change the line items if necessary.") -> ActewAGL Distribution may add to and/or change the line items if necessary.
B12: Table 26 - ALLOCATION OF TOTAL REVENUE
D13: Standalone cost per unit of reference service | E13: Avoidable cost per unit of reference service | F13: Next access arrangement period | K13: Total
F14: =CONCATENATE("$0's, real ",dms_DollarReal) -> $0's, real June 2016
F15: Forecast
F16: =FRCP -> 2016-17 | G16: 2017-18 | H16: 2018-19 | I16: 2019-20 | J16: 2020-21
B18: Table 26.1 - Reference services
B19: Haulage Reference Service | C19: Residential Tariff Class
C20: Business Tariff Class
C21: <insert tariff class> | K21: =SUM(F21:J21) -> 0
B22: <Insert reference service> | C22: <insert tariff class> | K22: =SUM(F22:J22) -> 0
C23: <insert tariff class> | K23: 0
C24: <insert tariff class> | K24: 0
B25: <Insert reference service> | C25: <insert tariff class> | K25: 0
C26: <insert tariff class> | K26: 0
C27: <insert tariff class> | K27: 0
B29: Table 26.2 - Ancillary reference services
B30: <Insert ancillary reference service> | C30: <insert tariff class> | K30: =SUM(F30:J30) -> 0
C31: <insert tariff class> | K31: 0
C32: <insert tariff class> | K32: 0
B33: <Insert ancillary reference service> | C33: <insert tariff class> | K33: 0
C34: <insert tariff class> | K34: 0
C35: <insert tariff class> | K35: 0
B36: <Insert ancillary reference service> | C36: <insert tariff class> | K36: 0
C37: <insert tariff class> | K37: 0
C38: <insert tariff class> | K38: 0
B40: Table 26.3 - Rebateable services
B41: <Insert rebateable services> | K41: =SUM(F41:J41) -> 0
B42: <Insert rebateable services> | K42: =SUM(F42:J42) -> 0
B43: <Insert rebateable services> | K43: =SUM(F43:J43) -> 0
B44: <Insert rebateable services> | K44: =SUM(F44:J44) -> 0
B46: Table 26.4 - Non-reference services
B47: <Insert non-reference services> | K47: =SUM(F47:J47) -> 0
B48: <Insert non-reference services> | K48: =SUM(F48:J48) -> 0
B49: <Insert non-reference services> | K49: =SUM(F49:J49) -> 0
B50: <Insert non-reference services> | K50: 0
B51: Total | F51: =SUM(F22:F50) -> 0 | G51: 0 | H51: 0 | I51: 0 | J51: 0 | K51: 0

Sheet 27. Customer numbers
B1: =SheetHeader -> REGULATORY REPORTING STATEMENT
B2: =dms_TradingName -> ActewAGL Distribution
B3: =CONCATENATE(FRCP_y1," to ",FRCP_y5) -> 2016-17 to 2020-21
B4: 27. CUSTOMER NUMBERS
B6: Instructions
B7: This template asks for information on customers numbers
B8: In table 27 enter the customer types and required data in the yellow cells. This may require the insertion of new rows.
B9: Historical tariff band information should be provided on the same basis as the tariff band forecasts for the next access arrangment period are provided.
B10: =CONCATENATE("If ", dms_TradingName," proposes changes to its tariff structure for the next access arrangement period, please provide an explanation in this template or in the proposal submission as to how historical consumption and demand data reconciles with the new tariff stucture.") -> If ActewAGL Distribution proposes changes to its tariff structure for the next access arrangement period, please provide an explanation in this template or in the proposal submission as to how historical consumption and demand data reconciles with the new tariff stucture.
B11: NOTE: Gross customer connections in a given year will not necessarily equal the difference between customer numbers as at 1 January and customer numbers as at 31 December.
B15: Table 27 - CUSTOMER NUMBERS
D18: Actual
D19: =CRCP_y5 -> 2014-15
B20: Table 27.1 - Tariff Customer Numbers
B21: Table 27.1.1 - Residential tariff
B22: Volume Residential Individually Metered | C22: Customer numbers as at 1 July | D22: 134234
C23: Customer numbers as at 30 June | D23: 138839
C24: Average customer numbers | D24: =IF(ISERROR(AVERAGE(D22:D23)),0,AVERAGE(D22:D23)) -> 136536.5
C25: Gross customer connections | D25: 3063
C26: Gross customer disconnections | D26: 987
B27: Volume Residential Hot water & Heating | C27: Customer numbers as at 1 July | D27: 0
C28: Customer numbers as at 30 June
C29: Average customer numbers | D29: =IF(ISERROR(AVERAGE(D27:D28)),0,AVERAGE(D27:D28)) -> 0
C30: Gross customer connections
C31: Gross customer disconnections
B32: Volume Residential Boundary Metered | C32: Customer numbers as at 1 July | D32: 0
C33: Customer numbers as at 30 June
C34: Average customer numbers | D34: =IF(ISERROR(AVERAGE(D32:D33)),0,AVERAGE(D32:D33)) -> 0
C35: Gross customer connections
C36: Gross customer disconnections
B37: Volume Residential Large Scale Generation | C37: Customer numbers as at 1 July | D37: 0
C38: Customer numbers as at 30 June
C39: Average customer numbers | D39: =IF(ISERROR(AVERAGE(D37:D38)),0,AVERAGE(D37:D38)) -> 0
C40: Gross customer connections
C41: Gross customer disconnections
B42: Total volume capacity | C42: Customer numbers as at 1 July | D42: =SUMIF($C$22:$C$41,"Customer numbers as at 1 July",D$22:D$41) -> 134234
C43: Customer numbers as at 30 June | D43: =SUMIF($C$22:$C$41,"Customer numbers as at 30 June",D$22:D$41) -> 138839
C44: Average customer numbers | D44: =IFERROR(AVERAGEIF($C$22:$C$41,"Customer numbers as at 30 June",D$22:D$41),0) -> 138839
C45: Gross customer connections | D45: =SUMIF($C$22:$C$41,"Gross customer connections",D$22:D$41) -> 3063
C46: Gross customer disconnections | D46: =SUMIF($C$22:$C$41,"Gross customer disconnections",D$22:D$41) -> 987
B48: Table 27.1.2 - Business tariff
B49: Volume Business Small | C49: Customer numbers as at 1 July | D49: 0
C50: Customer numbers as at 30 June | D50: 0
C51: Average customer numbers | D51: 0
C52: Gross customer connections | D52: 0
C53: Gross customer disconnections | D53: 0
B54: Volume Business Medium | C54: Customer numbers as at 1 July | D54: 0
C55: Customer numbers as at 30 June | D55: 0
C56: Average customer numbers | D56: 0
C57: Gross customer connections | D57: 0
C58: Gross customer disconnections | D58: 0
B59: <enter customer type> | C59: Customer numbers as at 1 July | D59: 0
C60: Customer numbers as at 30 June
C61: Average customer numbers | D61: 0
C62: Gross customer connections
C63: Gross customer disconnections
B64: <enter customer type> | C64: Customer numbers as at 1 July | D64: 0
C65: Customer numbers as at 30 June
C66: Average customer numbers | D66: 0
C67: Gross customer connections
C68: Gross customer disconnections
B69: Total demand capacity | C69: Customer numbers as at 1 July | D69: 0
C70: Customer numbers as at 30 June | D70: 0
C71: Average customer numbers | D71: 0
C72: Gross customer connections | D72: 0
C73: Gross customer disconnections | D73: 0
B75: Table 27.2 - Contract customer numbers
B76: Customer numbers as at 1 July | D76: 39
B77: Customer numbers as at 30 June | D77: 40
B78: Average customer numbers | D78: 39.5
B79: Gross customer connections | D79: 0
B80: Gross customer disconnections | D80: 0
B82: Source(s) of data:

Sheet 28. Consumption and demand
B1: =SheetHeader -> REGULATORY REPORTING STATEMENT
B2: =dms_TradingName -> ActewAGL Distribution
B3: =CONCATENATE(FRCP_y1," to ",FRCP_y5) -> 2016-17 to 2020-21
B4: 28. CONSUMPTION AND DEMAND
B7: Instructions
B8: In Tables 28.1 and 28.2 enter the required data relating to consumption in the yellow cells.. This may require the insertion of new rows.
B9: Historical tariff band information should be provided on the same basis as the tariff band forecasts for the next access arrangment period are provided.
B10: If the service provider proposes changes to its tariff structure for the next access arrangement period, please provide an explanation in this template or in the proposal submission as to how historical consumption and demand data reconciles with the new tariff stucture.
B12: Table 28 - CONSUMPTION AND DEMAND
C13: Band name (Gj) | D13: Band definition
E15: Actual
E16: =CRCP_y5 -> 2014-15
B17: Table 28.1 - Tariff Customer Numbers
B18: Table 28.1.1 - Residential tariff
B19: Volume Residential Individually Metered | C19: Fixed customer tariff numbers | E19: 138839
C20: Block 1 | D20: First 1.25GJ/month or 3.75 GJ/quarter | E20: 1504335
C21: Block 2 | D21: Next 13.45GJ/month or 40.35 GJ/quarter | E21: 4563084
C22: Block 3 | D22: Next 45.30GJ/month or 135.90 GJ/quarter | E22: 631783
C23: Block 4 | D23: All Additional | E23: 233725
C24: <enter band name> | D24: <enter band definition>
C25: <enter band name> | D25: <enter band definition>
C26: Total | E26: =SUM(E20:E25) -> 6932927
B27: Volume Residential Individually Metered | C27: Fixed customer tariff numbers | E27: 0
C28: Block 1 | D28: First 1.70GJ/month or 5.10 GJ/quarter | E28: 0
C29: Block 2 | D29: Next 6.20GJ/month or 18.60 GJ/quarter | E29: 0
C30: Block 3 | D30: All Additional | E30: 0
C31: <enter band name> | D31: <enter band definition>
C32: <enter band name> | D32: <enter band definition>
C33: <enter band name> | D33: <enter band definition>
C34: Total | E34: =SUM(E28:E33) -> 0
B35: Volume Residential Individually Metered | C35: Fixed customer tariff numbers | E35: 0
C36: Block 1 | D36: First 37.50GJ/month or 112.50 GJ/quarter | E36: 0
C37: Block 2 | D37: Next 372.00GJ/month or 1116.00 GJ/quarter | E37: 0
C38: Block 3 | D38: All Additional | E38: 0
C39: <enter band name> | D39: <enter band definition>
C40: <enter band name> | D40: <enter band definition>
C41: <enter band name> | D41: <enter band definition>
C42: Total | E42: =SUM(E36:E41) -> 0
B43: Volume Residential Individually Metered | C43: Fixed customer tariff numbers
C44: <enter band name> | D44: <enter band definition>
C45: <enter band name> | D45: <enter band definition>
C46: <enter band name> | D46: <enter band definition>
C47: <enter band name> | D47: <enter band definition>
C48: <enter band name> | D48: <enter band definition>
C49: <enter band name> | D49: <enter band definition>
C50: Total | E50: =SUM(E44:E49) -> 0
B51: Total | E51: =SUMIF($C$19:$DE$50,"total ",E19:E50) -> 6932927
B53: Table 28.1.2 - Business tariff
B54: Volume Business Small | C54: Fixed customer tariff numbers | E54: 0
C55: Block 1 | D55: First 2.50GJ/month or 7.50GJ/quarter | E55: 0
C56: Block 2 | D56: Next 95.00GJ/month or 285.00 GJ/quarter | E56: 0
C57: Block 3 | D57: All Additional | E57: 0
C58: <enter band name> | D58: <enter band definition>
C59: <enter band name> | D59: <enter band definition>
C60: <enter band name> | D60: <enter band definition>
C61: Total | E61: =SUM(E55:E60) -> 0
B62: Volume Business Medium | C62: Fixed customer tariff numbers | E62: 0
C63: Block 1 | D63: First 350.00GJ/month or 1050.00 GJ/quarter | E63: 0
C64: Block 2 | D64: Next 400GJ/month or 1200.00 GJ/quarter | E64: 0
C65: Block 3 | D65: All Additional | E65: 0
C66: <enter band name> | D66: <enter band definition>
C67: <enter band name> | D67: <enter band definition>
C68: <enter band name> | D68: <enter band definition>
C69: Total | E69: =SUM(E63:E68) -> 0
B70: <enter customer type> | C70: Fixed customer tariff numbers
C71: <enter band name> | D71: <enter band definition>
C72: <enter band name> | D72: <enter band definition>
C73: <enter band name> | D73: <enter band definition>
C74: <enter band name> | D74: <enter band definition>
C75: <enter band name> | D75: <enter band definition>
C76: <enter band name> | D76: <enter band definition>
C77: Total | E77: =SUM(E71:E76) -> 0
B78: <enter customer type> | C78: Fixed customer tariff numbers
C79: <enter band name> | D79: <enter band definition>
C80: <enter band name> | D80: <enter band definition>
C81: <enter band name> | D81: <enter band definition>
C82: <enter band name> | D82: <enter band definition>
C83: <enter band name> | D83: <enter band definition>
C84: <enter band name> | D84: <enter band definition>
C85: Total | E85: =SUM(E79:E84) -> 0
B86: Total | E86: =SUMIF($C$54:$D$85,"total ",E54:E85) -> 0
B87: Average
B89: Table 28.2 - Demand Market Consumption
B90: Demand Business Capacity | C90: Fixed customer tariff numbers | E90: 40
C91: Block 1 | D91: First 50 GJ | E91: 1800
C92: Block 2 | D92: Next 100 GJ | E92: 2466
C93: Block 3 | D93: Rest | E93: 3168
B94: Demand Business Large Scale Generation | C94: Fixed customer tariff numbers | E94: 0
C95: Block 1 | D95: First 40 GJ | E95: 0
C96: Block 2 | D96: Next 80 GJ | E96: 0
C97: Block 3 | D97: Rest | E97: 0
B98: Demand Business Throughput | C98: Fixed customer tariff numbers | E98: 1
C99: Block 1 | D99: GJ | E99: 41336
B101: Total demand throughput consumption | E101: =E99 -> 41336
B102: Average demand throughput consumption | E102: =IF(ISERROR(E101/E98),0,(E101/E98)) -> 41336
B103: Source(s) of data:

Sheet 29.1 Gas extensions ($)
B1: =SheetHeader -> REGULATORY REPORTING STATEMENT
B2: =dms_TradingName -> ActewAGL Distribution
B3: =CONCATENATE(FRCP_y1," to ",FRCP_y5) -> 2016-17 to 2020-21
B4: 29.1 - GAS EXTENTIONS - FINANCIAL INFORMATION
B7: Instructions
B8: This template applies to gas extensions that commenced in the CURRENT access arrangement period or are forecast for the NEXT access arrangement period
B9: In tables 29.1.1 to 29.1.3 enter the required data in the yellow cells. This may require the insertion of new rows.
B10: ONE EXTENSION PER SHEET. Please copy and begin a new sheet if more than one extension applies.
B13: Extension name
B16: Extension description
B19: Table 29.1 - GAS EXTENSIONS - FINANCIAL INFORMTION
B20: Table 29.1.1 - Revenue Information (incl. surcharge or premium revenue)
C21: Current access arrangement period
C22: =CONCATENATE("$0's, real ",dms_DollarReal) -> $0's, real June 2016
C23: Actual
C24: =CRCP_y5 -> 2014-15
B25: ='27. Customer numbers'!$B$22 -> Volume Residential Individually Metered
B26: ='27. Customer numbers'!$B$27 -> Volume Residential Hot water & Heating
B27: ='27. Customer numbers'!$B$32 -> Volume Residential Boundary Metered
B28: ='27. Customer numbers'!$B$37 -> Volume Residential Large Scale Generation
B29: ='27. Customer numbers'!$B$49 -> Volume Business Small
B30: ='27. Customer numbers'!$B$54 -> Volume Business Medium
B31: ='27. Customer numbers'!$B$59 -> <enter customer type>
B32: ='27. Customer numbers'!$B$64 -> <enter customer type>
B33: Contract customers
B34: Total revenue | C34: =SUM(C25:C33) -> 0
B35: Surcharge or premium revenue
B36: Source(s) of data:
B38: Table 29.1.2 - Operations and Maintenance Cost
C39: Current access arrangement period
C40: $0's, nominal
C41: Actual
C42: =CRCP_y5 -> 2014-15
B43: O&M incl. contributions
B44: O&M excl. contributions
B45: Source(s) of data:
B47: Table 29.1.3 - Capital expenditure
C48: Current access arrangement period
C49: $0's, nominal
C50: Actual
C51: =CRCP_y5 -> 2014-15
B52: HP mains
B53: HP services
B54: MP mains
B55: MP services
B56: TRS & DRS - valves & regulators
B57: Contract meters
B58: Tariff meters
B59: Regulatory expenditure
B60: IT System
B61: Equity raising expenditure
B62: Total gross capital expenditure | C62: =SUM(C52:C61) -> 0
B63: Government contributions
B64: Customer contributions
B65: Total contributions | C65: =SUM(C63:C64) -> 0
B66: Net capital expenditure | C66: =C62-C65 -> 0
B67: Source(s) of data:

Sheet 29.2 Gas extensions cust no
B1: =SheetHeader -> REGULATORY REPORTING STATEMENT
B2: =dms_TradingName -> ActewAGL Distribution
B3: =CONCATENATE(FRCP_y1," to ",FRCP_y5) -> 2016-17 to 2020-21
B4: 29.2 - GAS EXTENSIONS - CUSTOMER NUMBERS
B7: Instructions
B8: This template applies to gas extensions that commenced in the CURRENT access arrangement period or are forecast for the NEXT access arrangement period
B9: In tables 29.2 enter the required data in the yellow cells. This may require the insertion of new rows.
B10: ONE EXTENSION PER SHEET. Please copy and begin a new sheet if more than one extension applies.
B12: Extension name
B16: Table 29.2 - GAS EXTENSIONS - CUSTOMER NUMBERS
D17: Current access arrangement period
D18: 0's
D19: Actual
D20: =CRCP_y5 -> 2014-15
B21: Table 29.2.1 - Tariff customer numbers
B22: Table 29.2.1.1 - Residential tariff
B23: ='27. Customer numbers'!B22 -> Volume Residential Individually Metered | C23: Customer numbers as at 1 July | D23: =#REF! -> 
C24: Customer numbers as at 30 June
C25: Average customer numbers | D25: =IF(ISERROR(AVERAGE(D23:D24)),0,AVERAGE(D23:D24)) -> 0
C26: Gross customer connections
C27: Gross customer disconnections
B28: ='27. Customer numbers'!B27 -> Volume Residential Hot water & Heating | C28: Customer numbers as at 1 July | D28: =#REF! -> 
C29: Customer numbers as at 30 June
C30: Average customer numbers | D30: =IF(ISERROR(AVERAGE(D28:D29)),0,AVERAGE(D28:D29)) -> 0
C31: Gross customer connections
C32: Gross customer disconnections
B33: ='27. Customer numbers'!B32 -> Volume Residential Boundary Metered | C33: Customer numbers as at 1 July | D33: =#REF! -> 
C34: Customer numbers as at 30 June
C35: Average customer numbers | D35: =IF(ISERROR(AVERAGE(D33:D34)),0,AVERAGE(D33:D34)) -> 0
C36: Gross customer connections
C37: Gross customer disconnections
B38: ='27. Customer numbers'!B37 -> Volume Residential Large Scale Generation | C38: Customer numbers as at 1 July | D38: =#REF! -> 
C39: Customer numbers as at 30 June
C40: Average customer numbers | D40: =IF(ISERROR(AVERAGE(D38:D39)),0,AVERAGE(D38:D39)) -> 0
C41: Gross customer connections
C42: Gross customer disconnections
B43: Total - residential - customer numbers | C43: Customer numbers as at 1 July | D43: =SUMIF($C$23:$C$42,"Customer numbers as at 1 July",D23:D42) -> 
C44: Customer numbers as at 30 June | D44: =SUMIF($C$23:$C$42,"Customer numbers as at 30 June",D23:D43) -> 0
C45: Average customer numbers | D45: 0
C46: Gross customer connections | D46: =SUMIF($C$23:$C$42,"Gross customer connections",D23:D45) -> 0
C47: Gross customer disconnections | D47: =SUMIF($C$23:$C$42,"Gross customer disconnections",D23:D46) -> 0
B48: Table 29.2.1.2 - Business tariff - customer numbers
B49: ='27. Customer numbers'!B49 -> Volume Business Small | C49: Customer numbers as at 1 July | D49: =#REF! -> 
C50: Customer numbers as at 30 June
C51: Average customer numbers | D51: =IF(ISERROR(AVERAGE(D49:D50)),0,AVERAGE(D49:D50)) -> 0
C52: Gross customer connections
C53: Gross customer disconnections
B54: ='27. Customer numbers'!B54 -> Volume Business Medium | C54: Customer numbers as at 1 July | D54: =#REF! -> 
C55: Customer numbers as at 30 June
C56: Average customer numbers | D56: =IF(ISERROR(AVERAGE(D54:D55)),0,AVERAGE(D54:D55)) -> 0
C57: Gross customer connections
C58: Gross customer disconnections
B59: ='27. Customer numbers'!B59 -> <enter customer type> | C59: Customer numbers as at 1 July | D59: =#REF! -> 
C60: Customer numbers as at 30 June
C61: Average customer numbers | D61: =IF(ISERROR(AVERAGE(D59:D60)),0,AVERAGE(D59:D60)) -> 0
C62: Gross customer connections
C63: Gross customer disconnections
B64: ='27. Customer numbers'!B64 -> <enter customer type> | C64: Customer numbers as at 1 July | D64: =#REF! -> 
C65: Customer numbers as at 30 June
C66: Average customer numbers | D66: =IF(ISERROR(AVERAGE(D64:D65)),0,AVERAGE(D64:D65)) -> 0
C67: Gross customer connections
C68: Gross customer disconnections
B69: Total | C69: Customer numbers as at 1 July | D69: =SUMIF($C$23:$C$42,"Customer numbers as at 1 July",D49:D68) -> 
C70: Customer numbers as at 30 June | D70: =SUMIF($C$23:$C$42,"Customer numbers as at 30 June",D49:D69) -> 0
C71: Average customer numbers | D71: 0
C72: Gross customer connections | D72: =SUMIF($C$23:$C$42,"Gross customer connections",D49:D71) -> 0
C73: Gross customer disconnections | D73: =SUMIF($C$23:$C$42,"Gross customer disconnections",D49:D72) -> 0
B75: Table 29.2.2 - Contract customer numbers
B76: Customer numbers as at 1 July | D76: =#REF! -> 
B77: Customer numbers as at 30 June
B78: Average customer numbers | D78: =IF(ISERROR(AVERAGE(D76:D77)),0,AVERAGE(D76:D77)) -> 0
B79: Gross customer connections
B80: Gross customer disconnections
B81: Source(s) of data:

Sheet 29.3 Gas extensions - demand
B1: =SheetHeader -> REGULATORY REPORTING STATEMENT
B2: =dms_TradingName -> ActewAGL Distribution
B3: =CONCATENATE(FRCP_y1," to ",FRCP_y5) -> 2016-17 to 2020-21
B4: 29.3 - GAS EXTENSIONS - DEMAND
B7: Instructions
B8: This template applies to gas extensions that commenced in the CURRENT access arrangement period or are forecast for the NEXT access arrangement period
B9: In table 29.3 enter the required data in the yellow cells. This may require the insertion of new rows
B10: ONE EXTENSION PER SHEET. Please copy and begin a new sheet if more than one extension applies.
B12: Extension name
B16: Table 29.3 - GAS EXTENSIONS - DEMAND
C17: Band (Gj) | D17: Band definition | E17: Current access arrangement period
E18: 0's
E19: Actual
E20: =CRCP_y5 -> 2014-15
B21: Table 29.3.1 - Residential tariff
B22: ='27. Customer numbers'!$B$22 -> Volume Residential Individually Metered | C22: Fixed Customer tariff numbers | E22: ='29.2 Gas extensions cust no'!G7 -> 0
C23: <enter band definition> | D23: <enter band definition>
C24: <enter band definition> | D24: <enter band definition>
C25: <enter band definition> | D25: <enter band definition>
C26: <enter band definition> | D26: <enter band definition>
C27: <enter band definition> | D27: <enter band definition>
C28: <enter band definition> | D28: <enter band definition>
C29: Total | E29: =SUM(E23:E28) -> 0
B30: ='27. Customer numbers'!$B$22 -> Volume Residential Individually Metered | C30: Fixed Customer tariff numbers | E30: ='29.2 Gas extensions cust no'!#REF! -> 
C31: <enter band definition> | D31: <enter band definition>
C32: <enter band definition> | D32: <enter band definition>
C33: <enter band definition> | D33: <enter band definition>
C34: <enter band definition> | D34: <enter band definition>
C35: <enter band definition> | D35: <enter band definition>
C36: <enter band definition> | D36: <enter band definition>
C37: Total | E37: =SUM(E31:E36) -> 0
B38: ='27. Customer numbers'!$B$22 -> Volume Residential Individually Metered | C38: Fixed Customer tariff numbers | E38: ='29.2 Gas extensions cust no'!#REF! -> 
C39: <enter band definition> | D39: <enter band definition>
C40: <enter band definition> | D40: <enter band definition>
C41: <enter band definition> | D41: <enter band definition>
C42: <enter band definition> | D42: <enter band definition>
C43: <enter band definition> | D43: <enter band definition>
C44: <enter band definition> | D44: <enter band definition>
C45: Total | E45: =SUM(E39:E44) -> 0
B46: ='27. Customer numbers'!$B$22 -> Volume Residential Individually Metered | C46: Fixed Customer tariff numbers | E46: ='29.2 Gas extensions cust no'!#REF! -> 
C47: <enter band definition> | D47: <enter band definition>
C48: <enter band definition> | D48: <enter band definition>
C49: <enter band definition> | D49: <enter band definition>
C50: <enter band definition> | D50: <enter band definition>
C51: <enter band definition> | D51: <enter band definition>
C52: <enter band definition> | D52: <enter band definition>
C53: Total | E53: =SUM(E47:E52) -> 0
B54: Total | E54: =SUM(E53:E53) -> 0
B56: Table 29.3.2 - Business tariff
B57: ='27. Customer numbers'!$B$49 -> Volume Business Small | C57: Fixed Customer tariff numbers | E57: ='29.2 Gas extensions cust no'!H8 -> 0
C58: <enter band definition> | D58: <enter band definition>
C59: <enter band definition> | D59: <enter band definition>
C60: <enter band definition> | D60: <enter band definition>
C61: <enter band definition> | D61: <enter band definition>
C62: <enter band definition> | D62: <enter band definition>
C63: <enter band definition> | D63: <enter band definition>
C64: Total | E64: =SUM(E58:E63) -> 0
B65: ='27. Customer numbers'!$B$54 -> Volume Business Medium | C65: Fixed Customer tariff numbers | E65: ='29.2 Gas extensions cust no'!#REF! -> 
C66: <enter band definition> | D66: <enter band definition>
C67: <enter band definition> | D67: <enter band definition>
C68: <enter band definition> | D68: <enter band definition>
C69: <enter band definition> | D69: <enter band definition>
C70: <enter band definition> | D70: <enter band definition>
C71: <enter band definition> | D71: <enter band definition>
C72: Total | E72: =SUM(E66:E71) -> 0
B73: ='27. Customer numbers'!$B$59 -> <enter customer type> | C73: Fixed Customer tariff numbers | E73: ='29.2 Gas extensions cust no'!#REF! -> 
C74: <enter band definition> | D74: <enter band definition>
C75: <enter band definition> | D75: <enter band definition>
C76: <enter band definition> | D76: <enter band definition>
C77: <enter band definition> | D77: <enter band definition>
C78: <enter band definition> | D78: <enter band definition>
C79: <enter band definition> | D79: <enter band definition>
C80: Total | E80: =SUM(E74:E79) -> 0
B81: ='27. Customer numbers'!$B$64 -> <enter customer type> | C81: Fixed Customer tariff numbers | E81: ='29.2 Gas extensions cust no'!#REF! -> 
C82: <enter band definition> | D82: <enter band definition>
C83: <enter band definition> | D83: <enter band definition>
C84: <enter band definition> | D84: <enter band definition>
C85: <enter band definition> | D85: <enter band definition>
C86: <enter band definition> | D86: <enter band definition>
C87: <enter band definition> | D87: <enter band definition>
C88: Total | E88: =SUM(E82:E87) -> 0
B89: Total | E89: =SUM(#REF!) -> 
B90: Average
B92: Table 29.3.3 - Contract demand
C93: Fixed customer tariff numbers | E93: ='29.2 Gas extensions cust no'!#REF! -> 
C94: <enter band name> | D94: <enter band definition>
C95: <enter band name> | D95: <enter band definition>
C96: <enter band name> | D96: <enter band definition>
B98: Total demand throughput consumption | E98: =SUM(E95:E96) -> 0
B99: Average demand throughput consumption | E99: =IF(ISERROR(E98/E93),0,(E98/E93)) -> 0
B100: Source(s) of data:

Sheet 29.4 Gas extensions - tariffs
B1: =SheetHeader -> REGULATORY REPORTING STATEMENT
B2: =dms_TradingName -> ActewAGL Distribution
B3: =CONCATENATE(FRCP_y1," to ",FRCP_y5) -> 2016-17 to 2020-21
B4: 29.4. GAS EXTENSIONS - TARIFFS
B7: Instructions
B8: This template applies to gas extensions that commenced in the CURRENT access arrangement period or are forecast for the NEXT access arrangement period
B9: The tariffs should include any new town surcharges or premiums applied to the extension in excess of the reference tariffs usually applied to the relevant customer class.
B10: In tables 29.4 enter the required data in the yellow cells. This may require the insertion of new rows.
B11: ONE EXTENSION PER SHEET. Please copy and begin a new sheet if more than one extension applies.
B14: Unit used in this sheet
B15: $/day
B17: Extension name
B20: Table 29.4 - GAS EXTENSIONS - TARIFFS
C21: Band definition | D21: Band definition
E23: Actual
E24: =CRCP_y5 -> 2014-15
B25: Table 29.4.1 - Residential tariffs
B26: ='27. Customer numbers'!$B$22 -> Volume Residential Individually Metered | C26: Fixed customer tariff
C27: <enter band name> | D27: <enter band definition>
C28: <enter band name> | D28: <enter band definition>
C29: <enter band name> | D29: <enter band definition>
C30: <enter band name> | D30: <enter band definition>
C31: <enter band name> | D31: <enter band definition>
C32: <enter band name> | D32: <enter band definition>
B33: ='27. Customer numbers'!$B$27 -> Volume Residential Hot water & Heating | C33: Fixed customer tariff
C34: <enter band name> | D34: <enter band definition>
C35: <enter band name> | D35: <enter band definition>
C36: <enter band name> | D36: <enter band definition>
C37: <enter band name> | D37: <enter band definition>
C38: <enter band name> | D38: <enter band definition>
C39: <enter band name> | D39: <enter band definition>
B40: ='27. Customer numbers'!$B$32 -> Volume Residential Boundary Metered | C40: Fixed customer tariff
C41: <enter band name> | D41: <enter band definition>
C42: <enter band name> | D42: <enter band definition>
C43: <enter band name> | D43: <enter band definition>
C44: <enter band name> | D44: <enter band definition>
C45: <enter band name> | D45: <enter band definition>
C46: <enter band name> | D46: <enter band definition>
B47: ='27. Customer numbers'!$B$37 -> Volume Residential Large Scale Generation | C47: Fixed customer tariff
C48: <enter band name> | D48: <enter band definition>
C49: <enter band name> | D49: <enter band definition>
C50: <enter band name> | D50: <enter band definition>
C51: <enter band name> | D51: <enter band definition>
C52: <enter band name> | D52: <enter band definition>
C53: <enter band name> | D53: <enter band definition>
B55: Table 29.4.2 - Business tariffs
B56: ='27. Customer numbers'!$B$49 -> Volume Business Small | C56: Fixed customer tariff
C57: <enter band name> | D57: <enter band definition>
C58: <enter band name> | D58: <enter band definition>
C59: <enter band name> | D59: <enter band definition>
C60: <enter band name> | D60: <enter band definition>
C61: <enter band name> | D61: <enter band definition>
C62: <enter band name> | D62: <enter band definition>
B63: ='27. Customer numbers'!$B$54 -> Volume Business Medium | C63: Fixed customer tariff
C64: <enter band name> | D64: <enter band definition>
C65: <enter band name> | D65: <enter band definition>
C66: <enter band name> | D66: <enter band definition>
C67: <enter band name> | D67: <enter band definition>
C68: <enter band name> | D68: <enter band definition>
C69: <enter band name> | D69: <enter band definition>
B70: ='27. Customer numbers'!$B$59 -> <enter customer type> | C70: Fixed customer tariff
C71: <enter band name> | D71: <enter band definition>
C72: <enter band name> | D72: <enter band definition>
C73: <enter band name> | D73: <enter band definition>
C74: <enter band name> | D74: <enter band definition>
C75: <enter band name> | D75: <enter band definition>
C76: <enter band name> | D76: <enter band definition>
B77: ='27. Customer numbers'!$B$64 -> <enter customer type> | C77: Fixed customer tariff
C78: <enter band name> | D78: <enter band definition>
C79: <enter band name> | D79: <enter band definition>
C80: <enter band name> | D80: <enter band definition>
C81: <enter band name> | D81: <enter band definition>
C82: <enter band name> | D82: <enter band definition>
C83: <enter band name> | D83: <enter band definition>
B85: Table 29.4.3 - Contract tariffs
C86: Fixed customer tariff
C87: <enter band name> | D87: <enter band definition>
C88: <enter band name> | D88: <enter band definition>
C89: <enter band name> | D89: <enter band definition>
B91: Source(s) of data:

Sheet 30. Network characteristics
B1: =SheetHeader -> REGULATORY REPORTING STATEMENT
B2: =dms_TradingName -> ActewAGL Distribution
B3: =CONCATENATE(FRCP_y1," to ",FRCP_y5) -> 2016-17 to 2020-21
B4: 30. NETWORKS CHARACTERISTICS
B7: Instructions
B8: This template asks for information on network characteristics.
B9: In tables 30.1 to 30.3 enter the required data in the yellow cells. This may require the insertion of new rows.
B10: Provide the assumptions used where necessary in the proposal submission or in this template.
B13: Table 30 - NETWORK CHARACTERISTICS
B14: Table 30.1 - Network Length
C17: Actual
C18: =CRCP_y5 -> 2014-15
B19: Table 30.1.1 - Low pressure
B20: Cast Iron | C20: 0
B21: PVC | C21: 0
B22: Polyamide | C22: 0
B23: Polyethylene | C23: 0
B24: Unprotected steel | C24: 0
B25: Protected steel | C25: 0
B26: Copper | C26: 0
B27: <insert material type> | C27: 0
B28: Table 30.1.2 - Medium pressure
B29: Cast Iron | C29: 0
B30: PVC | C30: 0
B31: Polyamide | C31: =2838522.91081286+44006 -> 2882528.911
B32: Polyethylene | C32: 1317483.959
B33: Unprotected steel
B34: Protected steel
B35: Copper | C35: 515.7697968
B36: <insert material type> | C36: 0
B37: Table 30.1.3 - High pressure
B38: Cast Iron | C38: 0
B39: PVC | C39: 0
B40: Polyamide | C40: 0
B41: Polyethylene | C41: 0
B42: Unprotected steel | C42: 0
B43: Protected steel | C43: =236706.58+37760.76 -> 274467.34
B44: <insert material type> | C44: 0
B45: <insert material type> | C45: 0
B46: Table 30.1.4 - Transmission
B47: Protected steel | C47: 30625.44
B48: <insert material type> | C48: 0
B49: <insert material type> | C49: 0
B50: <insert material type> | C50: 0
B51: <insert material type> | C51: 0
B52: <insert material type> | C52: 0
B53: Total network length | C53: =SUM(C20:C52) -> 4505621.419
B54: Source(s) of data:
B56: Table 30.2 - City Gates/Regulators
C59: Actual
C60: =CRCP_y5 -> 2014-15
B61: Transmission Receiving Stations | C61: 2
B62: Custody Transfer Station | C62: 1
B63: Primary Regulating Stations | C63: 3
B64: Package Off Take station | C64: 1
B65: Pressure Monitoring Stations | C65: 18
B66: District Regulators | C66: 91
B67: Total | C67: =SUM(C61:C66) -> 116
B68: Source(s) of data:
B70: Table 30.3 - Unaccounted for Gas - transmission and distribution
C73: Actual
C74: =CRCP_y5 -> 2014-15
B75: Distribution | C75: 152.767
B76: <insert place of loss> | C76: 0
B77: <insert place of loss> | C77: 0
B78: Total | C78: =SUM(C75:C77) -> 152.767
B79: Source(s) of data:

Sheet BOP Jasmin (hidden)
B2: Table Number or variable name | C2: Table Name | D2: Actual Historical and/or Estimated Historical, Forecast | E2: Reasons For estimation | F2: Source | G2: Methodology | H2: Assumptions
B3: /number
B4: Table 4.1.2 | C4: Volume of mains / services / metres per connection [Column L:R] | D4: Estimated [Column L] Forecast [Column M:R] | E4: n/a | F4: Source for volumes: AAD - Capex Forecast Model - v19 - 04 Jun 15.xlsb] Sheet: Input|Volume & Rates ($2015) | G4: Volumes of mains/services/meters per market segment divided by the number of new connections for that market segment. | H4: n/a
B5: Table 4.2.1 | C5: Unit rates - mains / services / meters (un-escalated direct expenditure) [Column L:R] | D5: Estimated [Column L] Forecast [Column M:R] | E5: n/a | F5: Formula looking up other tables in Tab 4. | G5: Forecast capex of mains/services/metersper market segment divided by the number of new connections for that market segment. | H5: n/a
B6: Table 4.2.2 | C6: Electricity to gas expenditure [Column L:R] | D6: Estimated [Column L] | E6: FY15 data is an estimate based on 7 months actuals and 5 months forecast. | F6: Source for direct un-escalated costs: AAD - Capex Forecast Model - v19 - 04 Jun 15.xlsb Source for escalation: AA17 - AAD Capex Cost Escalation Weights - V4 - 070515.xlsx Source for contributions: AAD AA15 - Historical capital contributions to capex ratio Market expansion - 16 Jun 15.xlsx Source for workings: AAD AA RIN working file 17Jun15.xlsx | G6: Estimated capital expenditure is based on 7 mths actuals and 5 months forecast. Estimated escalation is based on the forecast escalators and escalation weights dervied from the FY14 actuals. Estimated contributions are derived based on historical contributions. | H6: n/a
D7: Forecast [Column M:R] | E7: n/a | F7: Source for capex and overhead calculations: AAD - Capex Forecast Model - v19 - 04 Jun 15.xlsb Source for blended unit rates: AAD - ACT ME Unit Rates Model - v3 - 07May15.xlsx Source for escalation: AA17 - AAD Capex Cost Escalation Weights - V4 - 070515.xlsx Source for contributions: AAD AA15 - Historical capital contributions to capex ratio Market expansion - 16 Jun 15.xlsx Source for workings: AAD AA RIN working file 17Jun15.xlsx | G7: Forecast direct un-escalated costs are derived from forecast routine volumes (from CORE Energy) and blended unit rates, which are based on a 4 years historical volume mix (FY10 to FY14) applied to the respective ASA unit rates. The forecast escalation and capital contributions are calculated in the capex forecast model. It is based on the BIS Shrapnel forecasted escalators and weights derived from FY14 actuals. For the forecast RPM, refers to the Global Basis of preparation. The forecast overheads are based on an estimated 6% AAD cost allocation methodology, commencing from FY16. | H7: Un-escalated direct costs are reported under 'contractor expenditure'. However, escalations are forecasted based on the 'contractor expenditure' splits into labour, sub-contractor and other direct costs . This approach is adopted in the capex forecast model.
B8: Table 4.2.3 | C8: New Homes [Column L:R] | D8: Estimated [Column L] | E8: Same as for Table 4.2.2 | F8: Same as for Table 4.2.2 | G8: Same as for Table 4.2.2 | H8: Same as for Table 4.2.2
D9: Forecast [Column M:R] | E9: Same as for Table 4.2.2 | F9: Same as for Table 4.2.2 | G9: Same as for Table 4.2.2 | H9: Same as for Table 4.2.2
B10: Table 4.2.4 | C10: Medium density / high rise [Column L:R] | D10: Estimated [Column L] | E10: Same as for Table 4.2.2 | F10: Same as for Table 4.2.2 | G10: Same as for Table 4.2.2 Direct un-escalated cost for meter data loggers are also included. | H10: Same as for Table 4.2.2
D11: Forecast [Column M:R] | E11: Same as for Table 4.2.2 | F11: Same as for Table 4.2.2 | G11: Same as for Table 4.2.4 | H11: Same as for Table 4.2.2
B12: Table 4.2.5 | C12: I&C tariff [Column L:R] | D12: Estimated [Column L] | E12: Same as for Table 4.2.2 | F12: Same as for Table 4.2.2 | G12: Same as for Table 4.2.2 | H12: Same as for Table 4.2.2
D13: Forecast [Column M:R] | E13: Same as for Table 4.2.2 | F13: Same as for Table 4.2.2 | G13: Same as for Table 4.2.2 | H13: Same as for Table 4.2.2
B14: Table 4.2.6 | C14: I&C contract [Column L:R] | D14: Estimated [Column L] | E14: Same as for Table 4.2.2 | F14: Same as for Table 4.2.2 | G14: Due to the non-routine nature of I&C Contract jobs, forecast is value-based, not volume-based. The forecast is a 4 years average expenditure (based on FY10 to FY14). Forecast for escalation, overheads and contributions are the same as for Table 4.2.2. | H14: Same as for Table 4.2.2
D15: Forecast [Column M:R] | E15: Same as for Table 4.2.2 | F15: Same as for Table 4.2.2 | G15: Due to the non-routine nature of I&C Contract jobs, forecast is value-based, not volume-based. The forecast is a 4 years average expenditure (based on FY10 to FY14). Forecast for escalation, overheads and contributions are the same as for Table 4.2.2. | H15: Same as for Table 4.2.2
B16: Table 4.2.7 | C16: Total new customer connection expenditure [Column L:R] | D16: Estimated [Column L] Forecast [Column M:R] | E16: Formula summing up Tables 4.2.2 to 4.2.6. | F16: Formula summing up Tables 4.2.2 to 4.2.6. | G16: Formula summing up Tables 4.2.2 to 4.2.6. | H16: n/a
B18: Table 5.1 | C18: Network Augmentation/ Growth capacity development [Columns P:Q; S:W] | D18: Estimated [Column P] | E18: FY15 data is an estimate based on 7 months actuals and 5 months forecast. | F18: Source for direct un-escalated costs: AAD - Capex Forecast Model - v19 - 04 Jun 15.xlsb Source for escalation: AA17 - AAD Capex Cost Escalation Weights - V4 - 070515.xlsx Source for workings: AAD AA RIN working file 17Jun15.xlsx | G18: Estimated capital expenditure is based on 7 mths actuals and 5 months forecast. Estimated escalation is based on the forecast escalators and escalation weights dervied from the FY14 actuals. | H18: n/a
D19: Forecast [Column Q,S:W] | E19: n/a | G19: Forecast direct un-escalated costs are based on individual cost estimation model (for projects > $200k). The forecast escalation is calculated in the capex forecast model. It is based on the BIS Shrapnel forecasted escalators and weights derived from FY14 actuals. For the forecast RPM, refers to the Global Basis of preparation. The forecast overheads are based on an estimated 6% AAD cost allocation methodology, commencing from FY16. | H19: Project timings are subject to project assessments and budget.
B21: Table 6.1.1 | C21: Proactive mains replacement expenditure [Columns P:V] | D21: Estimated [Column Q:V] Forecast [Column M:R] | E21: There is no proactive mains replacement projects planned in the access arrangement period of 2016-2021.
B22: Table 6.1.2 | C22: Ad hoc/reactive mains and services replacement [Columns P:V] | D22: Estimated [Column Q:V] | E22: FY15 data is an estimate based on 7 months actuals and 5 months forecast. | F22: Source for direct un-escalated costs: AAD - Capex Forecast Model - v19 - 04 Jun 15.xlsb Source for escalation: AA17 - AAD Capex Cost Escalation Weights - V4 - 070515.xlsx Source for workings: AAD AA RIN working file 17Jun15.xlsx | G22: Estimated capital expenditure is based on 7 mths actuals and 5 months forecast. Estimated escalation is based on the forecast escalators and escalation weights dervied from the FY14 actuals. | H22: n/a
D23: Forecast [Column M:R] | E23: n/a | G23: Forecast direct un-escalated costs for ActewAGL Funded Relocation Projects is an allocation for relocation projects identified durng the year. The forecast escalation is calculated in the capex forecast model. It is based on the BIS Shrapnel forecasted escalators and weights derived from FY14 actuals. For the forecast RPM, refers to the Global Basis of preparation. The forecast overheads are based on an estimated 6% AAD cost allocation methodology, commencing from FY16.
B24: Table 6.1.3 | C24: Total mains replacement expenditure [Columns P:V] | D24: Estimated [Column Q:V] Forecast [Column M:R] | E24: Formula summing up Tables 6.1.1 and 6.1.2. | F24: Formula summing up Tables 6.1.1 and 6.1.2. | G24: Formula summing up Tables 6.1.1 and 6.1.2. | H24: n/a
B26: Table 7.1 | C26: Facilities renewal and upgrade expenditure [Columns P:Q; S:W] | D26: Estimated [Column P] | E26: FY15 data is an estimate based on 7 months actuals and 5 months forecast. | F26: Source for direct un-escalated costs: AAD - Capex Forecast Model - v19 - 04 Jun 15.xlsb Source for escalation: AA17 - AAD Capex Cost Escalation Weights - V4 - 070515.xlsx Source for workings: AAD AA RIN working file 17Jun15.xlsx | G26: Estimated capital expenditure is based on 7 mths actuals and 5 months forecast. Estimated escalation is based on the forecast escalators and escalation weights dervied from the FY14 actuals. | H26: n/a
D27: Forecast [Column Q,S:W] | E27: n/a | G27: Forecast direct un-escalated costs are based on individual cost estimation model (for projects > $200k). The forecast escalation is calculated in the capex forecast model. It is based on the BIS Shrapnel forecasted escalators and weights derived from FY14 actuals. For the forecast RPM, refers to the Global Basis of preparation. The forecast overheads are based on an estimated 6% AAD cost allocation methodology, commencing from FY16. | H27: Project timings are subject to project assessments and budget.
B29: Table 8.2 | C29: Meter replacement expenditure [Columns M:S] | D29: Estimated [Column M] | E29: FY15 data is an estimate based on 7 months actuals and 5 months forecast. | F29: Formula summing up Tables 8.3, 8.5 and 8.6. | G29: Formula summing up Tables 8.3, 8.5 and 8.6. | H29: n/a
D30: Forecast [Column N:S] | E30: n/a
B31: Table 8.3.1 to 8.3.3 | C31: Meter replacement installation expenditure - Residential / Industrial and commercial / Water | D31: Estimated [Column M] | E31: FY15 data is an estimate based on 7 months actuals and 5 months forecast. | F31: Source for gross capex: (1) AAD - Capex Forecast Model - v19 - 04 Jun 15.xlsb and (2) AAD - ACT SIB meter replacement unit rate model - v4 - 07May15.xlsx Source for escalation: AA17 - AAD Capex Cost Escalation Weights - V4 - 070515.xlsx Source for workings: AAD AA RIN working file 17Jun15.xlsx | G31: Estimated capital expenditure is based on 7 mths actuals and 5 months forecast. Forecast capex is based on replacement volumes and ASA unit rates. Installation expenditure is forecasted based on the actual FY14 weightings for ZNX labour and contract labour reported in the financial reports. | H31: n/a
D32: Forecast [Column N:S] | E32: n/a
B33: Table 8.3.4 | C33: Total meter replacement installation expenditure | D33: Estimated [Column M] | E33: FY15 data is an estimate based on 7 months actuals and 5 months forecast. | F33: Formula summing up Tables 8.3.1 to 8.3.3. | G33: Formula summing up Tables 8.3.1 to 8.3.3. | H33: n/a
D34: Forecast [Column N:S] | E34: n/a
B35: Table 8.5.1 | C35: Meter replacement expenditure - New meters acquired | D35: Estimated [Column M] | E35: FY15 data is an estimate based on 7 months actuals and 5 months forecast. | F35: Source for gross capex: (1) AAD - Capex Forecast Model - v19 - 04 Jun 15.xlsb and (2) AAD - ACT SIB meter replacement unit rate model - v4 - 07May15.xlsx Source for escalation: AA17 - AAD Capex Cost Escalation Weights - V4 - 070515.xlsx Source for workings: AAD AA RIN working file 17Jun15.xlsx | G35: Estimated capital expenditure is based on 7 mths actuals and 5 months forecast. Forecast capex is based on replacement volumes and ASA unit rates. Installation expenditure is forecasted based on the actual FY14 weightings for ZNX materials and other direct costs reported in the financial reports. | H35: New residential gas meters and water meters are assumed in the replacement programs. Refurbished I&C meters are assumed in the replacement programs.
D36: Forecast [Column N:S] | E36: n/a
B37: Table 8.5.2 | C37: Meter replacement expenditure - Meters refurbished | D37: Estimated [Column M] | E37: FY15 data is an estimate based on 7 months actuals and 5 months forecast.
D38: Forecast [Column N:S] | E38: n/a
B39: Table 8.6 | C39: Other meter replacement expenditure | D39: Estimated [Column M] | E39: FY15 data is an estimate based on 7 months actuals and 5 months forecast. | F39: Source for gross capex: (1) AAD - Capex Forecast Model - v19 - 04 Jun 15.xlsb and (2) AAD - ACT SIB meter replacement unit rate model - v4 - 07May15.xlsx Source for escalation: AA17 - AAD Capex Cost Escalation Weights - V4 - 070515.xlsx Source for workings: AAD AA RIN working file 17Jun15.xlsx | G39: This table includes estimated/forecast capex expenditures for metering devices other than meters. Estimated capital expenditure is based on 7 mths actuals and 5 months forecast. Forecast capex is based on replacement volumes and ASA unit rates. | H39: n/a
D40: Forecast [Column N:S] | E40: n/a
B42: Table 12.1 | C42: IT & communications expenditure | D42: Forecast | E42: n/a | F42: Source for gross capex: AAD - Capex Forecast Model - v19 - 04 Jun 15.xlsb Source for escalation: AA17 - AAD Capex Cost Escalation Weights - V4 - 070515.xlsx Source for workings: AAD AA RIN working file 17Jun15.xlsx | G42: Forecast capex is documented in the Opportunity Brief. The forecast escalation and capital contributions are calculated in the capex forecast model. It is based on the BIS Shrapnel forecasted escalators and weights derived from FY14 actuals. For the forecast RPM, refers to the Global Basis of preparation. The forecast overheads are based on an estimated 6% AAD cost allocation methodology, commencing from FY16. | H42: n/a
B44: Table 14.4 | C44: Capex overhead rates - Capex overhead amount | D44: Forecast | E44: n/a | F44: Formula summing up overhead in the summary tables in Tab 4,5,6,7,8,11,and 12. | G44: The forecast overheads are based on an estimated 6% AAD cost allocation methodology, commencing from FY16. | H44: n/a
B46: Table 15.1 | C46: Payments made by ActewAGL Distribution to Related Party | D46: Forecast | E46: n/a | F46: Source for workings: AAD AA RIN working file 17Jun15.xlsx | G46: For forecast RPM, refer to the Global Basis of Preparation. Nominated JAM (nil RPM) & ZNX (5% in CMF + 5% on NRW <$500k) | H46: n/a
B47: Table 15.3 | C47: Related party margin expenditure | D47: Forecast | E47: n/a | F47: Formula summing up RPM in the summary tables in Tab 4,5,6,7,8,11,and 12. | G47: For forecast RPM, refer to the Global Basis of Preparation. There is nil RPM from JAM. | H47: n/a
B49: Table 16.1 [Table 16.1.1 to 16.1.13] | C49: Allocation of capital expenditure driver classes to asset classes | D49: Forecast | E49: n/a | F49: Source for gross capex: AAD - Capex Forecast Model - v19 - 04 Jun 15.xlsb Source for workings: AAD AA RIN working file 17Jun15.xlsx | G49: Capex by asset class by capex category. | H49: n/a
B51: Table 17.1 | C51: Gross capex including RPM | D51: Forecast | E51: n/a | F51: Source for gross capex: AAD - Capex Forecast Model - v19 - 04 Jun 15.xlsb Sheet: Output|Reg | G51: Gross capex by asset class. For forecast RPM, refer to the Global Basis of Preparation. | H51: n/a
B52: Table 17.3 | C52: Gross capex excluding RPM | D52: Forecast | E52: n/a
B54: Table 24.1 | C54: Cost category matrix - Capex | D54: Forecast | E54: n/a | F54: Formula summing up un-escalated direct expenditures in the summary tables in Tab 4,5,6,7,8,11,and 12. | G54: Formula summing up un-escalated direct expenditures in the summary tables in Tab 4,5,6,7,8,11,and 12. | H54: n/a
B56: Table 30.1 | C56: Network Characteristics - Network Length | D56: Actual [Columns C:K] | E56: n/a | F56: Actual network lengths data is extracted from the GIS system. Source: AAD RIN Tb 30 network lengths - 21May15.xlsx | G56: GIS data is pivoted by pipe materials and commissioning year. Data presents the total lengths commissioned in the year. | H56: Latest records are dependent on the mapping updates.
D57: Forecast [Column M:R] | E57: n/a | F57: Forecast network lengths data is based on the forecast capex program. Source: AAD - Capex Forecast Model - v19 - 04 Jun 15.xlsb | G57: Data presented in the columns are cumulative from the actuals. The additional lengths from the forecast are based on the forecasted new mains in Market Expansion and Capacity Development projects in which lengths are included at the project completion. | H57: The forecasted new mains lengths are dependent on the number and type of connections in Maraket Expansion, as well as the project timings and actual measure-up in the Capacity Development projects.
B58: Table 30.2 | C58: Network Characteristics - City Gates/Regulators | D58: Actual [Columns C:K] | E58: n/a | F58: Actual stations data is provided by Jemena Asset Management. Source: AAD RIN Tb 30 network lengths - 21May15.xlsx | G58: Data presented in the columns are cumulative and included to the asset base at commissioning. | H58: n/a
D59: Forecast [Column M:R] | E59: n/a | F59: Forecast stations data is based on the forecast capex program. Source: AAD - Capex Forecast Model - v19 - 04 Jun 15.xlsb | G59: Data presented in the columns are cumulative from the actuals. The additional stations from the forecast are based on the forecasted Capacity Development projects in which stations are included at the project completion. | H59: The forecasted stations are dependent on the project timings in the Capacity Development projects.

Sheet 31. Pass throughs
B1: =SheetHeader -> 
B2: =dms_TradingName -> 
B3: =CONCATENATE(FRCP_y1," to ",FRCP_y5) -> 
B4: 31. PASS THROUGHS
B7: Instructions
B8: This template asks for information relating to cost pass through events.
B9: Reported expenditure is to be entered INCLUSIVE of any profit margins or management fees paid pursuant to arrangements or contracts between ActewAGL and any related parties.
B10: In tables 31.1 and 31.2 enter the required details into the yellow cells. This may require the insertion of new lines in each table. Provide details/links to supporting information.
B11: In table 31.1 report the actual expense incurred as a result of an event that gave rise to a cost pass through.
B12: In table 31.2 report the expense approved by the relevant regulator for the cost pass through event.
B15: Table 31 - PASS THROUGHS | Q15: REAL $ CONVERSION OF HISTORICAL DATA
B16: Table 31.1 - Pass through event expenditure (actual)
C17: Previous access arrangement period | H17: Current access arrangement period | Q17: Previous access arrangement period | V17: Current access arrangement period
C18: $0's, nominal | L18: =CONCATENATE("$0's, real ",dms_DollarReal) ->  | Q18: =CONCATENATE("$0's, real ",dms_DollarReal) -> 
C19: Actual | L19: Forecast | Q19: Actual
C20: 2005-06 | D20: 2006-07 | E20: 2007-08 | F20: 2008-09 | G20: 2009-10 | H20: 2010-11 | I20: 2011-12 | J20: 2012-13 | K20: 2013-14 | L20: 2014-15 | M20: 2015-16 | Q20: =PRCP ->  | V20: =CRCP_y1 ->  | W20: =CRCP_y2 ->  | X20: =CRCP_y3 ->  | Y20: =CRCP_y4 -> 
B38: Total | C38: =SUM(C21:C37) -> 0 | D38: =SUM(D21:D37) -> 0 | E38: 0 | F38: 0 | G38: 0 | H38: 0 | I38: 0 | J38: 0 | K38: 0 | L38: 0 | M38: 0 | Q38: =SUM(Q21:Q24) -> 0 | R38: 0 | S38: 0 | T38: 0 | U38: 0 | V38: 0 | W38: 0 | X38: 0 | Y38: 0
B39: Source(s) of data:
B41: Table 31.2 - Pass through event expenditure (approved)
C42: Previous access arrangement period | H42: Current access arrangement period | Q42: Previous access arrangement period | V42: Current access arrangement period
C43: $0's, nominal | Q43: =CONCATENATE("$0's, real ",dms_DollarReal) -> 
C44: Approved | Q44: Approved
C45: 2005-06 | D45: 2006-07 | E45: 2007-08 | F45: 2008-09 | G45: 2009-10 | H45: 2010-11 | I45: 2011-12 | J45: 2012-13 | K45: 2013-14 | L45: 2014-15 | M45: 2015-16 | Q45: =PRCP ->  | V45: =CRCP_y1 ->  | W45: =CRCP_y2 ->  | X45: =CRCP_y3 ->  | Y45: =CRCP_y4 -> 
B65: Total | C65: =SUM(C46:C63) -> 0 | D65: =SUM(D46:D64) -> 0 | E65: 0 | F65: 0 | G65: 0 | H65: 0 | I65: 0 | J65: 0 | K65: 0 | L65: 0 | M65: =SUM(M46:M64) -> 0 | Q65: =SUM(Q46:Q49) -> 0 | R65: 0 | S65: 0 | T65: 0 | U65: 0 | V65: 0 | W65: 0 | X65: 0 | Y65: 0
B66: Source(s) of data: | C66: Cost pass through documentation sent to the AER as part of the cost pass through process.
